Publisher Label,Publisher URI,"Directorate code","Directorate","Service code","Service","Revenue or capital code","Revenue capital","Cost centre","Cost centre description","Bvsub Category","Bvsub description","Bvsum code","Bvsum description","Account code","Account description","Transaction No","Period","Transaction Date","Amount","Classification code","Classification description","Supplier ID","Supplier description","Company registration number","Company registration number Uri","VAT registration number"
"London Borough of Redbridge","http://opendatacommunities.org/doc/london-borough-council/redbridge","5BGFHOUSING","General Fund Housing","5CHOMELESS","Homelessness","REV","Revenue","R5630","HAC Temporary Accomodation","05-THIRD","Third Party Payments","05H","Private contractors","6900","Nightly Let Plus Charges","3465726","201712",17/03/2017 00:00:00,700,"31230","Employment and Recruitment Agencies","REDACTED DATA","ADAM HTT LIMITED T/A ADAM","7718565","http://opencorporates.com/companies/gb/7718565","198573349"
"London Borough of Redbridge","http://opendatacommunities.org/doc/london-borough-council/redbridge","5BGFHOUSING","General Fund Housing","5CHOMELESS","Homelessness","REV","Revenue","R5630","HAC Temporary Accomodation","05-THIRD","Third Party Payments","05H","Private contractors","6900","Nightly Let Plus Charges","3465726","201712",17/03/2017 00:00:00,1064,"31230","Employment and Recruitment Agencies","REDACTED DATA","ADAM HTT LIMITED T/A ADAM","7718565","http://opencorporates.com/companies/gb/7718565","198573349"
"London Borough of Redbridge","http://opendatacommunities.org/doc/london-borough-council/redbridge","5BGFHOUSING","General Fund Housing","5CHOMELESS","Homelessness","REV","Revenue","R5630","HAC Temporary Accomodation","05-THIRD","Third Party Payments","05H","Private contractors","6900","Nightly Let Plus Charges","3465726","201712",17/03/2017 00:00:00,1260,"31230","Employment and Recruitment Agencies","REDACTED DATA","ADAM HTT LIMITED T/A ADAM","7718565","http://opencorporates.com/companies/gb/7718565","198573349"
"London Borough of Redbridge","http://opendatacommunities.org/doc/london-borough-council/redbridge","5BGFHOUSING","General Fund Housing","5CHOMELESS","Homelessness","REV","Revenue","R5630","HAC Temporary Accomodation","05-THIRD","Third Party Payments","05H","Private contractors","6900","Nightly Let Plus Charges","3465726","201712",17/03/2017 00:00:00,1848,"31230","Employment and Recruitment Agencies","REDACTED DATA","ADAM HTT LIMITED T/A ADAM","7718565","http://opencorporates.com/companies/gb/7718565","198573349"
"London Borough of Redbridge","http://opendatacommunities.org/doc/london-borough-council/redbridge","5BGFHOUSING","General Fund Housing","5CHOMELESS","Homelessness","REV","Revenue","R5630","HAC Temporary Accomodation","05-THIRD","Third Party Payments","05H","Private contractors","6900","Nightly Let Plus Charges","3465726","201712",17/03/2017 00:00:00,1064,"31230","Employment and Recruitment Agencies","REDACTED DATA","ADAM HTT LIMITED T/A ADAM","7718565","http://opencorporates.com/companies/gb/7718565","198573349"
"London Borough of Redbridge","http://opendatacommunities.org/doc/london-borough-council/redbridge","5BGFHOUSING","General Fund Housing","5CHOMELESS","Homelessness","REV","Revenue","R5630","HAC Temporary Accomodation","05-THIRD","Third Party Payments","05H","Private contractors","6900","Nightly Let Plus Charges","3465726","201712",17/03/2017 00:00:00,1820,"31230","Employment and Recruitment Agencies","REDACTED DATA","ADAM HTT LIMITED T/A ADAM","7718565","http://opencorporates.com/companies/gb/7718565","198573349"
"London Borough of Redbridge","http://opendatacommunities.org/doc/london-borough-council/redbridge","5BGFHOUSING","General Fund Housing","5CHOMELESS","Homelessness","REV","Revenue","R5630","HAC Temporary Accomodation","05-THIRD","Third Party Payments","05H","Private contractors","6900","Nightly Let Plus Charges","3465726","201712",17/03/2017 00:00:00,1260,"31230","Employment and Recruitment Agencies","REDACTED DATA","ADAM HTT LIMITED T/A ADAM","7718565","http://opencorporates.com/companies/gb/7718565","198573349"
"London Borough of Redbridge","http://opendatacommunities.org/doc/london-borough-council/redbridge","5BGFHOUSING","General Fund Housing","5CHOMELESS","Homelessness","REV","Revenue","R5630","HAC Temporary Accomodation","05-THIRD","Third Party Payments","05H","Private contractors","6900","Nightly Let Plus Charges","3465726","201712",17/03/2017 00:00:00,1708,"31230","Employment and Recruitment Agencies","REDACTED DATA","ADAM HTT LIMITED T/A ADAM","7718565","http://opencorporates.com/companies/gb/7718565","198573349"
"London Borough of Redbridge","http://opendatacommunities.org/doc/london-borough-council/redbridge","5BGFHOUSING","General Fund Housing","5CHOMELESS","Homelessness","REV","Revenue","R5630","HAC Temporary Accomodation","05-THIRD","Third Party Payments","05H","Private contractors","6900","Nightly Let Plus Charges","3465726","201712",17/03/2017 00:00:00,1680,"31230","Employment and Recruitment Agencies","REDACTED DATA","ADAM HTT LIMITED T/A ADAM","7718565","http://opencorporates.com/companies/gb/7718565","198573349"
"London Borough of Redbridge","http://opendatacommunities.org/doc/london-borough-council/redbridge","5BGFHOUSING","General Fund Housing","5CHOMELESS","Homelessness","REV","Revenue","R5630","HAC Temporary Accomodation","05-THIRD","Third Party Payments","05H","Private contractors","6900","Nightly Let Plus Charges","3465726","201712",17/03/2017 00:00:00,1176,"31230","Employment and Recruitment Agencies","REDACTED DATA","ADAM HTT LIMITED T/A ADAM","7718565","http://opencorporates.com/companies/gb/7718565","198573349"
"London Borough of Redbridge","http://opendatacommunities.org/doc/london-borough-council/redbridge","5BGFHOUSING","General Fund Housing","5CHOMELESS","Homelessness","REV","Revenue","R5630","HAC Temporary Accomodation","05-THIRD","Third Party Payments","05H","Private contractors","6900","Nightly Let Plus Charges","3465726","201712",17/03/2017 00:00:00,980,"31230","Employment and Recruitment Agencies","REDACTED DATA","ADAM HTT LIMITED T/A ADAM","7718565","http://opencorporates.com/companies/gb/7718565","198573349"
"London Borough of Redbridge","http://opendatacommunities.org/doc/london-borough-council/redbridge","5BGFHOUSING","General Fund Housing","5CHOMELESS","Homelessness","REV","Revenue","R5630","HAC Temporary Accomodation","05-THIRD","Third Party Payments","05H","Private contractors","6900","Nightly Let Plus Charges","3465726","201712",17/03/2017 00:00:00,1372,"31230","Employment and Recruitment Agencies","REDACTED DATA","ADAM HTT LIMITED T/A ADAM","7718565","http://opencorporates.com/companies/gb/7718565","198573349"
"London Borough of Redbridge","http://opendatacommunities.org/doc/london-borough-council/redbridge","5BGFHOUSING","General Fund Housing","5CHOMELESS","Homelessness","REV","Revenue","R5630","HAC Temporary Accomodation","05-THIRD","Third Party Payments","05H","Private contractors","6900","Nightly Let Plus Charges","3465726","201712",17/03/2017 00:00:00,952,"31230","Employment and Recruitment Agencies","REDACTED DATA","ADAM HTT LIMITED T/A ADAM","7718565","http://opencorporates.com/companies/gb/7718565","198573349"
"London Borough of Redbridge","http://opendatacommunities.org/doc/london-borough-council/redbridge","5BGFHOUSING","General Fund Housing","5CHOMELESS","Homelessness","REV","Revenue","R5630","HAC Temporary Accomodation","05-THIRD","Third Party Payments","05H","Private contractors","6900","Nightly Let Plus Charges","3465726","201712",17/03/2017 00:00:00,1260,"31230","Employment and Recruitment Agencies","REDACTED DATA","ADAM HTT LIMITED T/A ADAM","7718565","http://opencorporates.com/companies/gb/7718565","198573349"
"London Borough of Redbridge","http://opendatacommunities.org/doc/london-borough-council/redbridge","5BGFHOUSING","General Fund Housing","5CHOMELESS","Homelessness","REV","Revenue","R5630","HAC Temporary Accomodation","05-THIRD","Third Party Payments","05H","Private contractors","6900","Nightly Let Plus Charges","3465726","201712",17/03/2017 00:00:00,1064,"31230","Employment and Recruitment Agencies","REDACTED DATA","ADAM HTT LIMITED T/A ADAM","7718565","http://opencorporates.com/companies/gb/7718565","198573349"
"London Borough of Redbridge","http://opendatacommunities.org/doc/london-borough-council/redbridge","5BGFHOUSING","General Fund Housing","5CHOMELESS","Homelessness","REV","Revenue","R5630","HAC Temporary Accomodation","05-THIRD","Third Party Payments","05H","Private contractors","6900","Nightly Let Plus Charges","3465726","201712",17/03/2017 00:00:00,1400,"31230","Employment and Recruitment Agencies","REDACTED DATA","ADAM HTT LIMITED T/A ADAM","7718565","http://opencorporates.com/companies/gb/7718565","198573349"
"London Borough of Redbridge","http://opendatacommunities.org/doc/london-borough-council/redbridge","5BGFHOUSING","General Fund Housing","5CHOMELESS","Homelessness","REV","Revenue","R5630","HAC Temporary Accomodation","05-THIRD","Third Party Payments","05H","Private contractors","6900","Nightly Let Plus Charges","3465726","201712",17/03/2017 00:00:00,1008,"31230","Employment and Recruitment Agencies","REDACTED DATA","ADAM HTT LIMITED T/A ADAM","7718565","http://opencorporates.com/companies/gb/7718565","198573349"
"London Borough of Redbridge","http://opendatacommunities.org/doc/london-borough-council/redbridge","5BGFHOUSING","General Fund Housing","5CHOMELESS","Homelessness","REV","Revenue","R5630","HAC Temporary Accomodation","05-THIRD","Third Party Payments","05H","Private contractors","6900","Nightly Let Plus Charges","3465726","201712",17/03/2017 00:00:00,866.04,"31230","Employment and Recruitment Agencies","REDACTED DATA","ADAM HTT LIMITED T/A ADAM","7718565","http://opencorporates.com/companies/gb/7718565","198573349"
"London Borough of Redbridge","http://opendatacommunities.org/doc/london-borough-council/redbridge","5BGFHOUSING","General Fund Housing","5CHOMELESS","Homelessness","REV","Revenue","R5630","HAC Temporary Accomodation","05-THIRD","Third Party Payments","05H","Private contractors","6900","Nightly Let Plus Charges","3465726","201712",17/03/2017 00:00:00,1540,"31230","Employment and Recruitment Agencies","REDACTED DATA","ADAM HTT LIMITED T/A ADAM","7718565","http://opencorporates.com/companies/gb/7718565","198573349"
"London Borough of Redbridge","http://opendatacommunities.org/doc/london-borough-council/redbridge","5BGFHOUSING","General Fund Housing","5CHOMELESS","Homelessness","REV","Revenue","R5630","HAC Temporary Accomodation","05-THIRD","Third Party Payments","05H","Private contractors","6900","Nightly Let Plus Charges","3465726","201712",17/03/2017 00:00:00,1260,"31230","Employment and Recruitment Agencies","REDACTED DATA","ADAM HTT LIMITED T/A ADAM","7718565","http://opencorporates.com/companies/gb/7718565","198573349"
"London Borough of Redbridge","http://opendatacommunities.org/doc/london-borough-council/redbridge","5BGFHOUSING","General Fund Housing","5CHOMELESS","Homelessness","REV","Revenue","R5630","HAC Temporary Accomodation","05-THIRD","Third Party Payments","05H","Private contractors","6900","Nightly Let Plus Charges","3465726","201712",17/03/2017 00:00:00,720.72,"31230","Employment and Recruitment Agencies","REDACTED DATA","ADAM HTT LIMITED T/A ADAM","7718565","http://opencorporates.com/companies/gb/7718565","198573349"
"London Borough of Redbridge","http://opendatacommunities.org/doc/london-borough-council/redbridge","5BGFHOUSING","General Fund Housing","5CHOMELESS","Homelessness","REV","Revenue","R5630","HAC Temporary Accomodation","05-THIRD","Third Party Payments","05H","Private contractors","6900","Nightly Let Plus Charges","3465726","201712",17/03/2017 00:00:00,1260,"31230","Employment and Recruitment Agencies","REDACTED DATA","ADAM HTT LIMITED T/A ADAM","7718565","http://opencorporates.com/companies/gb/7718565","198573349"
"London Borough of Redbridge","http://opendatacommunities.org/doc/london-borough-council/redbridge","5BGFHOUSING","General Fund Housing","5CHOMELESS","Homelessness","REV","Revenue","R5630","HAC Temporary Accomodation","05-THIRD","Third Party Payments","05H","Private contractors","6900","Nightly Let Plus Charges","3465726","201712",17/03/2017 00:00:00,1260,"31230","Employment and Recruitment Agencies","REDACTED DATA","ADAM HTT LIMITED T/A ADAM","7718565","http://opencorporates.com/companies/gb/7718565","198573349"
"London Borough of Redbridge","http://opendatacommunities.org/doc/london-borough-council/redbridge","5BGFHOUSING","General Fund Housing","5CHOMELESS","Homelessness","REV","Revenue","R5630","HAC Temporary Accomodation","05-THIRD","Third Party Payments","05H","Private contractors","6900","Nightly Let Plus Charges","3465726","201712",17/03/2017 00:00:00,1260,"31230","Employment and Recruitment Agencies","REDACTED DATA","ADAM HTT LIMITED T/A ADAM","7718565","http://opencorporates.com/companies/gb/7718565","198573349"
"London Borough of Redbridge","http://opendatacommunities.org/doc/london-borough-council/redbridge","5BGFHOUSING","General Fund Housing","5CHOMELESS","Homelessness","REV","Revenue","R5630","HAC Temporary Accomodation","05-THIRD","Third Party Payments","05H","Private contractors","6900","Nightly Let Plus Charges","3465726","201712",17/03/2017 00:00:00,1260,"31230","Employment and Recruitment Agencies","REDACTED DATA","ADAM HTT LIMITED T/A ADAM","7718565","http://opencorporates.com/companies/gb/7718565","198573349"
"London Borough of Redbridge","http://opendatacommunities.org/doc/london-borough-council/redbridge","5BGFHOUSING","General Fund Housing","5CHOMELESS","Homelessness","REV","Revenue","R5630","HAC Temporary Accomodation","05-THIRD","Third Party Payments","05H","Private contractors","6900","Nightly Let Plus Charges","3465726","201712",17/03/2017 00:00:00,1540,"31230","Employment and Recruitment Agencies","REDACTED DATA","ADAM HTT LIMITED T/A ADAM","7718565","http://opencorporates.com/companies/gb/7718565","198573349"
"London Borough of Redbridge","http://opendatacommunities.org/doc/london-borough-council/redbridge","5BGFHOUSING","General Fund Housing","5CHOMELESS","Homelessness","REV","Revenue","R5630","HAC Temporary Accomodation","05-THIRD","Third Party Payments","05H","Private contractors","6900","Nightly Let Plus Charges","3465726","201712",17/03/2017 00:00:00,1064,"31230","Employment and Recruitment Agencies","REDACTED DATA","ADAM HTT LIMITED T/A ADAM","7718565","http://opencorporates.com/companies/gb/7718565","198573349"
"London Borough of Redbridge","http://opendatacommunities.org/doc/london-borough-council/redbridge","5BGFHOUSING","General Fund Housing","5CHOMELESS","Homelessness","REV","Revenue","R5630","HAC Temporary Accomodation","05-THIRD","Third Party Payments","05H","Private contractors","6900","Nightly Let Plus Charges","3465726","201712",17/03/2017 00:00:00,1323,"31230","Employment and Recruitment Agencies","REDACTED DATA","ADAM HTT LIMITED T/A ADAM","7718565","http://opencorporates.com/companies/gb/7718565","198573349"
"London Borough of Redbridge","http://opendatacommunities.org/doc/london-borough-council/redbridge","5BGFHOUSING","General Fund Housing","5CHOMELESS","Homelessness","REV","Revenue","R5630","HAC Temporary Accomodation","05-THIRD","Third Party Payments","05H","Private contractors","6900","Nightly Let Plus Charges","3465726","201712",17/03/2017 00:00:00,1540,"31230","Employment and Recruitment Agencies","REDACTED DATA","ADAM HTT LIMITED T/A ADAM","7718565","http://opencorporates.com/companies/gb/7718565","198573349"
"London Borough of Redbridge","http://opendatacommunities.org/doc/london-borough-council/redbridge","5BGFHOUSING","General Fund Housing","5CHOMELESS","Homelessness","REV","Revenue","R5630","HAC Temporary Accomodation","05-THIRD","Third Party Payments","05H","Private contractors","6900","Nightly Let Plus Charges","3465726","201712",17/03/2017 00:00:00,700,"31230","Employment and Recruitment Agencies","REDACTED DATA","ADAM HTT LIMITED T/A ADAM","7718565","http://opencorporates.com/companies/gb/7718565","198573349"
"London Borough of Redbridge","http://opendatacommunities.org/doc/london-borough-council/redbridge","5BGFHOUSING","General Fund Housing","5CHOMELESS","Homelessness","REV","Revenue","R5630","HAC Temporary Accomodation","05-THIRD","Third Party Payments","05H","Private contractors","6900","Nightly Let Plus Charges","3465726","201712",17/03/2017 00:00:00,924,"31230","Employment and Recruitment Agencies","REDACTED DATA","ADAM HTT LIMITED T/A ADAM","7718565","http://opencorporates.com/companies/gb/7718565","198573349"
"London Borough of Redbridge","http://opendatacommunities.org/doc/london-borough-council/redbridge","5BGFHOUSING","General Fund Housing","5CHOMELESS","Homelessness","REV","Revenue","R5630","HAC Temporary Accomodation","05-THIRD","Third Party Payments","05H","Private contractors","6900","Nightly Let Plus Charges","3465726","201712",17/03/2017 00:00:00,1204,"31230","Employment and Recruitment Agencies","REDACTED DATA","ADAM HTT LIMITED T/A ADAM","7718565","http://opencorporates.com/companies/gb/7718565","198573349"
"London Borough of Redbridge","http://opendatacommunities.org/doc/london-borough-council/redbridge","5BGFHOUSING","General Fund Housing","5CHOMELESS","Homelessness","REV","Revenue","R5630","HAC Temporary Accomodation","05-THIRD","Third Party Payments","05H","Private contractors","6900","Nightly Let Plus Charges","3465726","201712",17/03/2017 00:00:00,1624,"31230","Employment and Recruitment Agencies","REDACTED DATA","ADAM HTT LIMITED T/A ADAM","7718565","http://opencorporates.com/companies/gb/7718565","198573349"
"London Borough of Redbridge","http://opendatacommunities.org/doc/london-borough-council/redbridge","1BOTHEROPI&E","Other Operating Income & Expenditure","1CTRADSURDEF","Trading Account Surpluses & Deficits","REV","Revenue","R9252","IT Services","04-SUPPLIES","Supplies And Services","04F","Communications and computing","5854","Exchange Line Rental","3465657","201712",10/03/2017 00:00:00,10,"76520","Telecommunications Equipment and Systems","REDACTED DATA","O2 (UK) LTD","",,""
"London Borough of Redbridge","http://opendatacommunities.org/doc/london-borough-council/redbridge","1BOTHEROPI&E","Other Operating Income & Expenditure","1CTRADSURDEF","Trading Account Surpluses & Deficits","REV","Revenue","R9252","IT Services","04-SUPPLIES","Supplies And Services","04F","Communications and computing","5854","Exchange Line Rental","3465657","201712",10/03/2017 00:00:00,10,"76520","Telecommunications Equipment and Systems","REDACTED DATA","O2 (UK) LTD","",,""
"London Borough of Redbridge","http://opendatacommunities.org/doc/london-borough-council/redbridge","1BOTHEROPI&E","Other Operating Income & Expenditure","1CTRADSURDEF","Trading Account Surpluses & Deficits","REV","Revenue","R9252","IT Services","04-SUPPLIES","Supplies And Services","04F","Communications and computing","5854","Exchange Line Rental","3465657","201712",10/03/2017 00:00:00,678.75,"76520","Telecommunications Equipment and Systems","REDACTED DATA","O2 (UK) LTD","",,""
"London Borough of Redbridge","http://opendatacommunities.org/doc/london-borough-council/redbridge","1BOTHEROPI&E","Other Operating Income & Expenditure","1CTRADSURDEF","Trading Account Surpluses & Deficits","REV","Revenue","R9252","IT Services","04-SUPPLIES","Supplies And Services","04F","Communications and computing","5854","Exchange Line Rental","3465657","201712",10/03/2017 00:00:00,10,"76520","Telecommunications Equipment and Systems","REDACTED DATA","O2 (UK) LTD","",,""
"London Borough of Redbridge","http://opendatacommunities.org/doc/london-borough-council/redbridge","1BOTHEROPI&E","Other Operating Income & Expenditure","1CTRADSURDEF","Trading Account Surpluses & Deficits","REV","Revenue","R9252","IT Services","04-SUPPLIES","Supplies And Services","04F","Communications and computing","5854","Exchange Line Rental","3465657","201712",10/03/2017 00:00:00,11.05,"76520","Telecommunications Equipment and Systems","REDACTED DATA","O2 (UK) LTD","",,""
"London Borough of Redbridge","http://opendatacommunities.org/doc/london-borough-council/redbridge","1BOTHEROPI&E","Other Operating Income & Expenditure","1CTRADSURDEF","Trading Account Surpluses & Deficits","REV","Revenue","R9252","IT Services","04-SUPPLIES","Supplies And Services","04F","Communications and computing","5854","Exchange Line Rental","3465657","201712",10/03/2017 00:00:00,10,"76520","Telecommunications Equipment and Systems","REDACTED DATA","O2 (UK) LTD","",,""
"London Borough of Redbridge","http://opendatacommunities.org/doc/london-borough-council/redbridge","1BOTHEROPI&E","Other Operating Income & Expenditure","1CTRADSURDEF","Trading Account Surpluses & Deficits","REV","Revenue","R9252","IT Services","04-SUPPLIES","Supplies And Services","04F","Communications and computing","5854","Exchange Line Rental","3465657","201712",10/03/2017 00:00:00,301,"76520","Telecommunications Equipment and Systems","REDACTED DATA","O2 (UK) LTD","",,""
"London Borough of Redbridge","http://opendatacommunities.org/doc/london-borough-council/redbridge","1BOTHEROPI&E","Other Operating Income & Expenditure","1CTRADSURDEF","Trading Account Surpluses & Deficits","REV","Revenue","R9252","IT Services","04-SUPPLIES","Supplies And Services","04F","Communications and computing","5854","Exchange Line Rental","3465657","201712",10/03/2017 00:00:00,424,"76520","Telecommunications Equipment and Systems","REDACTED DATA","O2 (UK) LTD","",,""
"London Borough of Redbridge","http://opendatacommunities.org/doc/london-borough-council/redbridge","1BOTHEROPI&E","Other Operating Income & Expenditure","1CTRADSURDEF","Trading Account Surpluses & Deficits","REV","Revenue","R9252","IT Services","04-SUPPLIES","Supplies And Services","04F","Communications and computing","5854","Exchange Line Rental","3465657","201712",10/03/2017 00:00:00,40,"76520","Telecommunications Equipment and Systems","REDACTED DATA","O2 (UK) LTD","",,""
"London Borough of Redbridge","http://opendatacommunities.org/doc/london-borough-council/redbridge","1BOTHEROPI&E","Other Operating Income & Expenditure","1CTRADSURDEF","Trading Account Surpluses & Deficits","REV","Revenue","R9252","IT Services","04-SUPPLIES","Supplies And Services","04F","Communications and computing","5854","Exchange Line Rental","3465657","201712",10/03/2017 00:00:00,20,"76520","Telecommunications Equipment and Systems","REDACTED DATA","O2 (UK) LTD","",,""
"London Borough of Redbridge","http://opendatacommunities.org/doc/london-borough-council/redbridge","1BOTHEROPI&E","Other Operating Income & Expenditure","1CTRADSURDEF","Trading Account Surpluses & Deficits","REV","Revenue","R9252","IT Services","04-SUPPLIES","Supplies And Services","04F","Communications and computing","5854","Exchange Line Rental","3465657","201712",10/03/2017 00:00:00,1810.75,"76520","Telecommunications Equipment and Systems","REDACTED DATA","O2 (UK) LTD","",,""
"London Borough of Redbridge","http://opendatacommunities.org/doc/london-borough-council/redbridge","5BGFHOUSING","General Fund Housing","5CHOMELESS","Homelessness","REV","Revenue","R5630","HAC Temporary Accomodation","05-THIRD","Third Party Payments","05H","Private contractors","6900","Nightly Let Plus Charges","3465726","201712",17/03/2017 00:00:00,1484,"31230","Employment and Recruitment Agencies","REDACTED DATA","ADAM HTT LIMITED T/A ADAM","7718565","http://opencorporates.com/companies/gb/7718565","198573349"
"London Borough of Redbridge","http://opendatacommunities.org/doc/london-borough-council/redbridge","5BGFHOUSING","General Fund Housing","5CHOMELESS","Homelessness","REV","Revenue","R5630","HAC Temporary Accomodation","05-THIRD","Third Party Payments","05H","Private contractors","6900","Nightly Let Plus Charges","3465726","201712",17/03/2017 00:00:00,924,"31230","Employment and Recruitment Agencies","REDACTED DATA","ADAM HTT LIMITED T/A ADAM","7718565","http://opencorporates.com/companies/gb/7718565","198573349"
"London Borough of Redbridge","http://opendatacommunities.org/doc/london-borough-council/redbridge","5BGFHOUSING","General Fund Housing","5CHOMELESS","Homelessness","REV","Revenue","R5630","HAC Temporary Accomodation","05-THIRD","Third Party Payments","05H","Private contractors","6900","Nightly Let Plus Charges","3465726","201712",17/03/2017 00:00:00,1680,"31230","Employment and Recruitment Agencies","REDACTED DATA","ADAM HTT LIMITED T/A ADAM","7718565","http://opencorporates.com/companies/gb/7718565","198573349"
"London Borough of Redbridge","http://opendatacommunities.org/doc/london-borough-council/redbridge","5BGFHOUSING","General Fund Housing","5CHOMELESS","Homelessness","REV","Revenue","R5630","HAC Temporary Accomodation","05-THIRD","Third Party Payments","05H","Private contractors","6900","Nightly Let Plus Charges","3465726","201712",17/03/2017 00:00:00,1064,"31230","Employment and Recruitment Agencies","REDACTED DATA","ADAM HTT LIMITED T/A ADAM","7718565","http://opencorporates.com/companies/gb/7718565","198573349"
"London Borough of Redbridge","http://opendatacommunities.org/doc/london-borough-council/redbridge","5BGFHOUSING","General Fund Housing","5CHOMELESS","Homelessness","REV","Revenue","R5630","HAC Temporary Accomodation","05-THIRD","Third Party Payments","05H","Private contractors","6900","Nightly Let Plus Charges","3465726","201712",17/03/2017 00:00:00,826,"31230","Employment and Recruitment Agencies","REDACTED DATA","ADAM HTT LIMITED T/A ADAM","7718565","http://opencorporates.com/companies/gb/7718565","198573349"
"London Borough of Redbridge","http://opendatacommunities.org/doc/london-borough-council/redbridge","5BGFHOUSING","General Fund Housing","5CHOMELESS","Homelessness","REV","Revenue","R5630","HAC Temporary Accomodation","05-THIRD","Third Party Payments","05H","Private contractors","6900","Nightly Let Plus Charges","3465726","201712",17/03/2017 00:00:00,1680,"31230","Employment and Recruitment Agencies","REDACTED DATA","ADAM HTT LIMITED T/A ADAM","7718565","http://opencorporates.com/companies/gb/7718565","198573349"
"London Borough of Redbridge","http://opendatacommunities.org/doc/london-borough-council/redbridge","5BGFHOUSING","General Fund Housing","5CHOMELESS","Homelessness","REV","Revenue","R5630","HAC Temporary Accomodation","05-THIRD","Third Party Payments","05H","Private contractors","6900","Nightly Let Plus Charges","3465726","201712",17/03/2017 00:00:00,1260,"31230","Employment and Recruitment Agencies","REDACTED DATA","ADAM HTT LIMITED T/A ADAM","7718565","http://opencorporates.com/companies/gb/7718565","198573349"
"London Borough of Redbridge","http://opendatacommunities.org/doc/london-borough-council/redbridge","5BGFHOUSING","General Fund Housing","5CHOMELESS","Homelessness","REV","Revenue","R5630","HAC Temporary Accomodation","05-THIRD","Third Party Payments","05H","Private contractors","6900","Nightly Let Plus Charges","3465726","201712",17/03/2017 00:00:00,1400,"31230","Employment and Recruitment Agencies","REDACTED DATA","ADAM HTT LIMITED T/A ADAM","7718565","http://opencorporates.com/companies/gb/7718565","198573349"
"London Borough of Redbridge","http://opendatacommunities.org/doc/london-borough-council/redbridge","5BGFHOUSING","General Fund Housing","5CHOMELESS","Homelessness","REV","Revenue","R5630","HAC Temporary Accomodation","05-THIRD","Third Party Payments","05H","Private contractors","6900","Nightly Let Plus Charges","3465726","201712",17/03/2017 00:00:00,840,"31230","Employment and Recruitment Agencies","REDACTED DATA","ADAM HTT LIMITED T/A ADAM","7718565","http://opencorporates.com/companies/gb/7718565","198573349"
"London Borough of Redbridge","http://opendatacommunities.org/doc/london-borough-council/redbridge","5BGFHOUSING","General Fund Housing","5CHOMELESS","Homelessness","REV","Revenue","R5630","HAC Temporary Accomodation","05-THIRD","Third Party Payments","05H","Private contractors","6900","Nightly Let Plus Charges","3465726","201712",17/03/2017 00:00:00,1260,"31230","Employment and Recruitment Agencies","REDACTED DATA","ADAM HTT LIMITED T/A ADAM","7718565","http://opencorporates.com/companies/gb/7718565","198573349"
"London Borough of Redbridge","http://opendatacommunities.org/doc/london-borough-council/redbridge","5BGFHOUSING","General Fund Housing","5CHOMELESS","Homelessness","REV","Revenue","R5630","HAC Temporary Accomodation","05-THIRD","Third Party Payments","05H","Private contractors","6900","Nightly Let Plus Charges","3465726","201712",17/03/2017 00:00:00,1540,"31230","Employment and Recruitment Agencies","REDACTED DATA","ADAM HTT LIMITED T/A ADAM","7718565","http://opencorporates.com/companies/gb/7718565","198573349"
"London Borough of Redbridge","http://opendatacommunities.org/doc/london-borough-council/redbridge","1BOTHEROPI&E","Other Operating Income & Expenditure","1CTRADSURDEF","Trading Account Surpluses & Deficits","REV","Revenue","R9252","IT Services","04-SUPPLIES","Supplies And Services","04F","Communications and computing","5854","Exchange Line Rental","3465657","201712",10/03/2017 00:00:00,10,"76520","Telecommunications Equipment and Systems","REDACTED DATA","O2 (UK) LTD","",,""
"London Borough of Redbridge","http://opendatacommunities.org/doc/london-borough-council/redbridge","1BOTHEROPI&E","Other Operating Income & Expenditure","1CTRADSURDEF","Trading Account Surpluses & Deficits","REV","Revenue","R9252","IT Services","04-SUPPLIES","Supplies And Services","04F","Communications and computing","5854","Exchange Line Rental","3465657","201712",10/03/2017 00:00:00,20,"76520","Telecommunications Equipment and Systems","REDACTED DATA","O2 (UK) LTD","",,""
"London Borough of Redbridge","http://opendatacommunities.org/doc/london-borough-council/redbridge","1BOTHEROPI&E","Other Operating Income & Expenditure","1CTRADSURDEF","Trading Account Surpluses & Deficits","REV","Revenue","R9252","IT Services","04-SUPPLIES","Supplies And Services","04F","Communications and computing","5854","Exchange Line Rental","3465657","201712",10/03/2017 00:00:00,10,"76520","Telecommunications Equipment and Systems","REDACTED DATA","O2 (UK) LTD","",,""
"London Borough of Redbridge","http://opendatacommunities.org/doc/london-borough-council/redbridge","1BOTHEROPI&E","Other Operating Income & Expenditure","1CTRADSURDEF","Trading Account Surpluses & Deficits","REV","Revenue","R9252","IT Services","04-SUPPLIES","Supplies And Services","04F","Communications and computing","5854","Exchange Line Rental","3465657","201712",10/03/2017 00:00:00,10,"76520","Telecommunications Equipment and Systems","REDACTED DATA","O2 (UK) LTD","",,""
"London Borough of Redbridge","http://opendatacommunities.org/doc/london-borough-council/redbridge","1BOTHEROPI&E","Other Operating Income & Expenditure","1CTRADSURDEF","Trading Account Surpluses & Deficits","REV","Revenue","R9252","IT Services","04-SUPPLIES","Supplies And Services","04F","Communications and computing","5854","Exchange Line Rental","3465657","201712",10/03/2017 00:00:00,10,"76520","Telecommunications Equipment and Systems","REDACTED DATA","O2 (UK) LTD","",,""
"London Borough of Redbridge","http://opendatacommunities.org/doc/london-borough-council/redbridge","1BOTHEROPI&E","Other Operating Income & Expenditure","1CTRADSURDEF","Trading Account Surpluses & Deficits","REV","Revenue","R9252","IT Services","04-SUPPLIES","Supplies And Services","04F","Communications and computing","5854","Exchange Line Rental","3465657","201712",10/03/2017 00:00:00,10,"76520","Telecommunications Equipment and Systems","REDACTED DATA","O2 (UK) LTD","",,""
"London Borough of Redbridge","http://opendatacommunities.org/doc/london-borough-council/redbridge","1BOTHEROPI&E","Other Operating Income & Expenditure","1CTRADSURDEF","Trading Account Surpluses & Deficits","REV","Revenue","R9252","IT Services","04-SUPPLIES","Supplies And Services","04F","Communications and computing","5854","Exchange Line Rental","3465657","201712",10/03/2017 00:00:00,10,"76520","Telecommunications Equipment and Systems","REDACTED DATA","O2 (UK) LTD","",,""
"London Borough of Redbridge","http://opendatacommunities.org/doc/london-borough-council/redbridge","1BOTHEROPI&E","Other Operating Income & Expenditure","1CTRADSURDEF","Trading Account Surpluses & Deficits","REV","Revenue","R9252","IT Services","04-SUPPLIES","Supplies And Services","04F","Communications and computing","5854","Exchange Line Rental","3465657","201712",10/03/2017 00:00:00,10,"76520","Telecommunications Equipment and Systems","REDACTED DATA","O2 (UK) LTD","",,""
"London Borough of Redbridge","http://opendatacommunities.org/doc/london-borough-council/redbridge","1BOTHEROPI&E","Other Operating Income & Expenditure","1CTRADSURDEF","Trading Account Surpluses & Deficits","REV","Revenue","R9252","IT Services","04-SUPPLIES","Supplies And Services","04F","Communications and computing","5854","Exchange Line Rental","3465657","201712",10/03/2017 00:00:00,10,"76520","Telecommunications Equipment and Systems","REDACTED DATA","O2 (UK) LTD","",,""
"London Borough of Redbridge","http://opendatacommunities.org/doc/london-borough-council/redbridge","1BOTHEROPI&E","Other Operating Income & Expenditure","1CTRADSURDEF","Trading Account Surpluses & Deficits","REV","Revenue","R9252","IT Services","04-SUPPLIES","Supplies And Services","04F","Communications and computing","5854","Exchange Line Rental","3465657","201712",10/03/2017 00:00:00,10,"76520","Telecommunications Equipment and Systems","REDACTED DATA","O2 (UK) LTD","",,""
"London Borough of Redbridge","http://opendatacommunities.org/doc/london-borough-council/redbridge","1BOTHEROPI&E","Other Operating Income & Expenditure","1CTRADSURDEF","Trading Account Surpluses & Deficits","REV","Revenue","R9252","IT Services","04-SUPPLIES","Supplies And Services","04F","Communications and computing","5854","Exchange Line Rental","3465657","201712",10/03/2017 00:00:00,11,"76520","Telecommunications Equipment and Systems","REDACTED DATA","O2 (UK) LTD","",,""
"London Borough of Redbridge","http://opendatacommunities.org/doc/london-borough-council/redbridge","1BOTHEROPI&E","Other Operating Income & Expenditure","1CTRADSURDEF","Trading Account Surpluses & Deficits","REV","Revenue","R9252","IT Services","04-SUPPLIES","Supplies And Services","04F","Communications and computing","5854","Exchange Line Rental","3465657","201712",10/03/2017 00:00:00,10,"76520","Telecommunications Equipment and Systems","REDACTED DATA","O2 (UK) LTD","",,""
"London Borough of Redbridge","http://opendatacommunities.org/doc/london-borough-council/redbridge","1BOTHEROPI&E","Other Operating Income & Expenditure","1CTRADSURDEF","Trading Account Surpluses & Deficits","REV","Revenue","R9252","IT Services","04-SUPPLIES","Supplies And Services","04F","Communications and computing","5854","Exchange Line Rental","3465657","201712",10/03/2017 00:00:00,12,"76520","Telecommunications Equipment and Systems","REDACTED DATA","O2 (UK) LTD","",,""
"London Borough of Redbridge","http://opendatacommunities.org/doc/london-borough-council/redbridge","1BOTHEROPI&E","Other Operating Income & Expenditure","1CTRADSURDEF","Trading Account Surpluses & Deficits","REV","Revenue","R9252","IT Services","04-SUPPLIES","Supplies And Services","04F","Communications and computing","5854","Exchange Line Rental","3465657","201712",10/03/2017 00:00:00,10,"76520","Telecommunications Equipment and Systems","REDACTED DATA","O2 (UK) LTD","",,""
"London Borough of Redbridge","http://opendatacommunities.org/doc/london-borough-council/redbridge","1BOTHEROPI&E","Other Operating Income & Expenditure","1CTRADSURDEF","Trading Account Surpluses & Deficits","REV","Revenue","R9252","IT Services","04-SUPPLIES","Supplies And Services","04F","Communications and computing","5854","Exchange Line Rental","3465657","201712",10/03/2017 00:00:00,10,"76520","Telecommunications Equipment and Systems","REDACTED DATA","O2 (UK) LTD","",,""
"London Borough of Redbridge","http://opendatacommunities.org/doc/london-borough-council/redbridge","1BOTHEROPI&E","Other Operating Income & Expenditure","1CTRADSURDEF","Trading Account Surpluses & Deficits","REV","Revenue","R9252","IT Services","04-SUPPLIES","Supplies And Services","04F","Communications and computing","5854","Exchange Line Rental","3465657","201712",10/03/2017 00:00:00,10,"76520","Telecommunications Equipment and Systems","REDACTED DATA","O2 (UK) LTD","",,""
"London Borough of Redbridge","http://opendatacommunities.org/doc/london-borough-council/redbridge","1BOTHEROPI&E","Other Operating Income & Expenditure","1CTRADSURDEF","Trading Account Surpluses & Deficits","REV","Revenue","R9252","IT Services","04-SUPPLIES","Supplies And Services","04F","Communications and computing","5854","Exchange Line Rental","3465657","201712",10/03/2017 00:00:00,10,"76520","Telecommunications Equipment and Systems","REDACTED DATA","O2 (UK) LTD","",,""
"London Borough of Redbridge","http://opendatacommunities.org/doc/london-borough-council/redbridge","1BOTHEROPI&E","Other Operating Income & Expenditure","1CTRADSURDEF","Trading Account Surpluses & Deficits","REV","Revenue","R9252","IT Services","04-SUPPLIES","Supplies And Services","04F","Communications and computing","5854","Exchange Line Rental","3465657","201712",10/03/2017 00:00:00,10,"76520","Telecommunications Equipment and Systems","REDACTED DATA","O2 (UK) LTD","",,""
"London Borough of Redbridge","http://opendatacommunities.org/doc/london-borough-council/redbridge","1BOTHEROPI&E","Other Operating Income & Expenditure","1CTRADSURDEF","Trading Account Surpluses & Deficits","REV","Revenue","R9252","IT Services","04-SUPPLIES","Supplies And Services","04F","Communications and computing","5854","Exchange Line Rental","3465657","201712",10/03/2017 00:00:00,10,"76520","Telecommunications Equipment and Systems","REDACTED DATA","O2 (UK) LTD","",,""
"London Borough of Redbridge","http://opendatacommunities.org/doc/london-borough-council/redbridge","1BOTHEROPI&E","Other Operating Income & Expenditure","1CTRADSURDEF","Trading Account Surpluses & Deficits","REV","Revenue","R9252","IT Services","04-SUPPLIES","Supplies And Services","04F","Communications and computing","5854","Exchange Line Rental","3465657","201712",10/03/2017 00:00:00,10,"76520","Telecommunications Equipment and Systems","REDACTED DATA","O2 (UK) LTD","",,""
"London Borough of Redbridge","http://opendatacommunities.org/doc/london-borough-council/redbridge","1BOTHEROPI&E","Other Operating Income & Expenditure","1CTRADSURDEF","Trading Account Surpluses & Deficits","REV","Revenue","R9252","IT Services","04-SUPPLIES","Supplies And Services","04F","Communications and computing","5854","Exchange Line Rental","3465657","201712",10/03/2017 00:00:00,10,"76520","Telecommunications Equipment and Systems","REDACTED DATA","O2 (UK) LTD","",,""
"London Borough of Redbridge","http://opendatacommunities.org/doc/london-borough-council/redbridge","1BOTHEROPI&E","Other Operating Income & Expenditure","1CTRADSURDEF","Trading Account Surpluses & Deficits","REV","Revenue","R9252","IT Services","04-SUPPLIES","Supplies And Services","04F","Communications and computing","5854","Exchange Line Rental","3465657","201712",10/03/2017 00:00:00,10,"76520","Telecommunications Equipment and Systems","REDACTED DATA","O2 (UK) LTD","",,""
"London Borough of Redbridge","http://opendatacommunities.org/doc/london-borough-council/redbridge","1BOTHEROPI&E","Other Operating Income & Expenditure","1CTRADSURDEF","Trading Account Surpluses & Deficits","REV","Revenue","R9252","IT Services","04-SUPPLIES","Supplies And Services","04F","Communications and computing","5854","Exchange Line Rental","3465657","201712",10/03/2017 00:00:00,10,"76520","Telecommunications Equipment and Systems","REDACTED DATA","O2 (UK) LTD","",,""
"London Borough of Redbridge","http://opendatacommunities.org/doc/london-borough-council/redbridge","1BOTHEROPI&E","Other Operating Income & Expenditure","1CTRADSURDEF","Trading Account Surpluses & Deficits","REV","Revenue","R9252","IT Services","04-SUPPLIES","Supplies And Services","04F","Communications and computing","5854","Exchange Line Rental","3465657","201712",10/03/2017 00:00:00,1177.67,"76520","Telecommunications Equipment and Systems","REDACTED DATA","O2 (UK) LTD","",,""
"London Borough of Redbridge","http://opendatacommunities.org/doc/london-borough-council/redbridge","1BOTHEROPI&E","Other Operating Income & Expenditure","1CTRADSURDEF","Trading Account Surpluses & Deficits","REV","Revenue","R9252","IT Services","04-SUPPLIES","Supplies And Services","04F","Communications and computing","5854","Exchange Line Rental","3465657","201712",10/03/2017 00:00:00,10.18,"76520","Telecommunications Equipment and Systems","REDACTED DATA","O2 (UK) LTD","",,""
"London Borough of Redbridge","http://opendatacommunities.org/doc/london-borough-council/redbridge","1BOTHEROPI&E","Other Operating Income & Expenditure","1CTRADSURDEF","Trading Account Surpluses & Deficits","REV","Revenue","R9252","IT Services","04-SUPPLIES","Supplies And Services","04F","Communications and computing","5854","Exchange Line Rental","3465657","201712",10/03/2017 00:00:00,10,"76520","Telecommunications Equipment and Systems","REDACTED DATA","O2 (UK) LTD","",,""
"London Borough of Redbridge","http://opendatacommunities.org/doc/london-borough-council/redbridge","1BOTHEROPI&E","Other Operating Income & Expenditure","1CTRADSURDEF","Trading Account Surpluses & Deficits","REV","Revenue","R9252","IT Services","04-SUPPLIES","Supplies And Services","04F","Communications and computing","5854","Exchange Line Rental","3465657","201712",10/03/2017 00:00:00,10,"76520","Telecommunications Equipment and Systems","REDACTED DATA","O2 (UK) LTD","",,""
"London Borough of Redbridge","http://opendatacommunities.org/doc/london-borough-council/redbridge","1BOTHEROPI&E","Other Operating Income & Expenditure","1CTRADSURDEF","Trading Account Surpluses & Deficits","REV","Revenue","R9252","IT Services","04-SUPPLIES","Supplies And Services","04F","Communications and computing","5854","Exchange Line Rental","3465657","201712",10/03/2017 00:00:00,10,"76520","Telecommunications Equipment and Systems","REDACTED DATA","O2 (UK) LTD","",,""
"London Borough of Redbridge","http://opendatacommunities.org/doc/london-borough-council/redbridge","1BOTHEROPI&E","Other Operating Income & Expenditure","1CTRADSURDEF","Trading Account Surpluses & Deficits","REV","Revenue","R9252","IT Services","04-SUPPLIES","Supplies And Services","04F","Communications and computing","5854","Exchange Line Rental","3465657","201712",10/03/2017 00:00:00,20,"76520","Telecommunications Equipment and Systems","REDACTED DATA","O2 (UK) LTD","",,""
"London Borough of Redbridge","http://opendatacommunities.org/doc/london-borough-council/redbridge","1BOTHEROPI&E","Other Operating Income & Expenditure","1CTRADSURDEF","Trading Account Surpluses & Deficits","REV","Revenue","R9252","IT Services","04-SUPPLIES","Supplies And Services","04F","Communications and computing","5854","Exchange Line Rental","3465657","201712",10/03/2017 00:00:00,10,"76520","Telecommunications Equipment and Systems","REDACTED DATA","O2 (UK) LTD","",,""
"London Borough of Redbridge","http://opendatacommunities.org/doc/london-borough-council/redbridge","1BOTHEROPI&E","Other Operating Income & Expenditure","1CTRADSURDEF","Trading Account Surpluses & Deficits","REV","Revenue","R9560","Facilities Management","04-SUPPLIES","Supplies And Services","04F","Communications and computing","5854","Exchange Line Rental","3465657","201712",10/03/2017 00:00:00,10,"76520","Telecommunications Equipment and Systems","REDACTED DATA","O2 (UK) LTD","",,""
"London Borough of Redbridge","http://opendatacommunities.org/doc/london-borough-council/redbridge","1BOTHEROPI&E","Other Operating Income & Expenditure","1CTRADSURDEF","Trading Account Surpluses & Deficits","REV","Revenue","R9560","Facilities Management","04-SUPPLIES","Supplies And Services","04F","Communications and computing","5854","Exchange Line Rental","3465657","201712",10/03/2017 00:00:00,10,"76520","Telecommunications Equipment and Systems","REDACTED DATA","O2 (UK) LTD","",,""
"London Borough of Redbridge","http://opendatacommunities.org/doc/london-borough-council/redbridge","1BOTHEROPI&E","Other Operating Income & Expenditure","1CTRADSURDEF","Trading Account Surpluses & Deficits","REV","Revenue","R9575","Ilford Chambers Service Charge Account","04-SUPPLIES","Supplies And Services","04F","Communications and computing","5854","Exchange Line Rental","3465657","201712",10/03/2017 00:00:00,10,"76520","Telecommunications Equipment and Systems","REDACTED DATA","O2 (UK) LTD","",,""
"London Borough of Redbridge","http://opendatacommunities.org/doc/london-borough-council/redbridge","1BOTHEROPI&E","Other Operating Income & Expenditure","1CTRADSURDEF","Trading Account Surpluses & Deficits","REV","Revenue","R9575","Ilford Chambers Service Charge Account","04-SUPPLIES","Supplies And Services","04F","Communications and computing","5854","Exchange Line Rental","3465657","201712",10/03/2017 00:00:00,10,"76520","Telecommunications Equipment and Systems","REDACTED DATA","O2 (UK) LTD","",,""
"London Borough of Redbridge","http://opendatacommunities.org/doc/london-borough-council/redbridge","1BOTHEROPI&E","Other Operating Income & Expenditure","1CTRADSURDEF","Trading Account Surpluses & Deficits","REV","Revenue","R9600","Town Hall","02-PREMISES","Premises","02A","Repairs, alteration and maintenance of buildings","3026","Minor Maintenance","3465657","201712",10/03/2017 00:00:00,10,"76520","Telecommunications Equipment and Systems","REDACTED DATA","O2 (UK) LTD","",,""
"London Borough of Redbridge","http://opendatacommunities.org/doc/london-borough-council/redbridge","1BOTHEROPI&E","Other Operating Income & Expenditure","1CTRADSURDEF","Trading Account Surpluses & Deficits","REV","Revenue","R9601","Lynton House","02-PREMISES","Premises","02A","Repairs, alteration and maintenance of buildings","3026","Minor Maintenance","3465657","201712",10/03/2017 00:00:00,10,"76520","Telecommunications Equipment and Systems","REDACTED DATA","O2 (UK) LTD","",,""
"London Borough of Redbridge","http://opendatacommunities.org/doc/london-borough-council/redbridge","1BOTHEROPI&E","Other Operating Income & Expenditure","1CTRADSURDEF","Trading Account Surpluses & Deficits","REV","Revenue","R9601","Lynton House","02-PREMISES","Premises","02A","Repairs, alteration and maintenance of buildings","3026","Minor Maintenance","3465657","201712",10/03/2017 00:00:00,10,"76520","Telecommunications Equipment and Systems","REDACTED DATA","O2 (UK) LTD","",,""
"London Borough of Redbridge","http://opendatacommunities.org/doc/london-borough-council/redbridge","1BOTHEROPI&E","Other Operating Income & Expenditure","1CTRADSURDEF","Trading Account Surpluses & Deficits","REV","Revenue","R9601","Lynton House","02-PREMISES","Premises","02A","Repairs, alteration and maintenance of buildings","3026","Minor Maintenance","3465657","201712",10/03/2017 00:00:00,10,"76520","Telecommunications Equipment and Systems","REDACTED DATA","O2 (UK) LTD","",,""
"London Borough of Redbridge","http://opendatacommunities.org/doc/london-borough-council/redbridge","1BOTHEROPI&E","Other Operating Income & Expenditure","1CTRADSURDEF","Trading Account Surpluses & Deficits","REV","Revenue","R9602","Olympic House","04-SUPPLIES","Supplies And Services","04F","Communications and computing","5858","Phones","3465657","201712",10/03/2017 00:00:00,10,"76520","Telecommunications Equipment and Systems","REDACTED DATA","O2 (UK) LTD","",,""
"London Borough of Redbridge","http://opendatacommunities.org/doc/london-borough-council/redbridge","1BOTHEROPI&E","Other Operating Income & Expenditure","1CTRADSURDEF","Trading Account Surpluses & Deficits","REV","Revenue","R9603","17-23 Clements Rd","04-SUPPLIES","Supplies And Services","04F","Communications and computing","5854","Exchange Line Rental","3465657","201712",10/03/2017 00:00:00,10,"76520","Telecommunications Equipment and Systems","REDACTED DATA","O2 (UK) LTD","",,""
"London Borough of Redbridge","http://opendatacommunities.org/doc/london-borough-council/redbridge","1BOTHEROPI&E","Other Operating Income & Expenditure","1CTRADSURDEF","Trading Account Surpluses & Deficits","REV","Revenue","R9603","17-23 Clements Rd","04-SUPPLIES","Supplies And Services","04F","Communications and computing","5854","Exchange Line Rental","3465657","201712",10/03/2017 00:00:00,10,"76520","Telecommunications Equipment and Systems","REDACTED DATA","O2 (UK) LTD","",,""
"London Borough of Redbridge","http://opendatacommunities.org/doc/london-borough-council/redbridge","1BOTHEROPI&E","Other Operating Income & Expenditure","1CTRADSURDEF","Trading Account Surpluses & Deficits","REV","Revenue","R9604","22-26 Clements Rd","02-PREMISES","Premises","02A","Repairs, alteration and maintenance of buildings","3026","Minor Maintenance","3465657","201712",10/03/2017 00:00:00,10,"76520","Telecommunications Equipment and Systems","REDACTED DATA","O2 (UK) LTD","",,""
"London Borough of Redbridge","http://opendatacommunities.org/doc/london-borough-council/redbridge","1BOTHEROPI&E","Other Operating Income & Expenditure","1CTRADSURDEF","Trading Account Surpluses & Deficits","REV","Revenue","R9607","Ley Street Depot","04-SUPPLIES","Supplies And Services","04F","Communications and computing","5858","Phones","3465657","201712",10/03/2017 00:00:00,10,"76520","Telecommunications Equipment and Systems","REDACTED DATA","O2 (UK) LTD","",,""
"London Borough of Redbridge","http://opendatacommunities.org/doc/london-borough-council/redbridge","1BOTHEROPI&E","Other Operating Income & Expenditure","1CTRADSURDEF","Trading Account Surpluses & Deficits","REV","Revenue","R9607","Ley Street Depot","04-SUPPLIES","Supplies And Services","04F","Communications and computing","5858","Phones","3465657","201712",10/03/2017 00:00:00,14.02,"76520","Telecommunications Equipment and Systems","REDACTED DATA","O2 (UK) LTD","",,""
"London Borough of Redbridge","http://opendatacommunities.org/doc/london-borough-council/redbridge","1BOTHEROPI&E","Other Operating Income & Expenditure","1CTRADSURDEF","Trading Account Surpluses & Deficits","REV","Revenue","R9607","Ley Street Depot","04-SUPPLIES","Supplies And Services","04F","Communications and computing","5858","Phones","3465657","201712",10/03/2017 00:00:00,10,"76520","Telecommunications Equipment and Systems","REDACTED DATA","O2 (UK) LTD","",,""
"London Borough of Redbridge","http://opendatacommunities.org/doc/london-borough-council/redbridge","1BOTHEROPI&E","Other Operating Income & Expenditure","1CTRADSURDEF","Trading Account Surpluses & Deficits","REV","Revenue","R9607","Ley Street Depot","04-SUPPLIES","Supplies And Services","04F","Communications and computing","5858","Phones","3465657","201712",10/03/2017 00:00:00,11.6,"76520","Telecommunications Equipment and Systems","REDACTED DATA","O2 (UK) LTD","",,""
"London Borough of Redbridge","http://opendatacommunities.org/doc/london-borough-council/redbridge","1BOTHEROPI&E","Other Operating Income & Expenditure","1CTRADSURDEF","Trading Account Surpluses & Deficits","REV","Revenue","R9607","Ley Street Depot","04-SUPPLIES","Supplies And Services","04F","Communications and computing","5858","Phones","3465657","201712",10/03/2017 00:00:00,10,"76520","Telecommunications Equipment and Systems","REDACTED DATA","O2 (UK) LTD","",,""
"London Borough of Redbridge","http://opendatacommunities.org/doc/london-borough-council/redbridge","1BOTHEROPI&E","Other Operating Income & Expenditure","1CTRADSURDEF","Trading Account Surpluses & Deficits","REV","Revenue","R9607","Ley Street Depot","04-SUPPLIES","Supplies And Services","04F","Communications and computing","5858","Phones","3465657","201712",10/03/2017 00:00:00,12.77,"76520","Telecommunications Equipment and Systems","REDACTED DATA","O2 (UK) LTD","",,""
"London Borough of Redbridge","http://opendatacommunities.org/doc/london-borough-council/redbridge","1BOTHEROPI&E","Other Operating Income & Expenditure","1CTRADSURDEF","Trading Account Surpluses & Deficits","REV","Revenue","R9607","Ley Street Depot","04-SUPPLIES","Supplies And Services","04F","Communications and computing","5858","Phones","3465657","201712",10/03/2017 00:00:00,10,"76520","Telecommunications Equipment and Systems","REDACTED DATA","O2 (UK) LTD","",,""
"London Borough of Redbridge","http://opendatacommunities.org/doc/london-borough-council/redbridge","1BOTHEROPI&E","Other Operating Income & Expenditure","1CTRADSURDEF","Trading Account Surpluses & Deficits","REV","Revenue","R9607","Ley Street Depot","04-SUPPLIES","Supplies And Services","04F","Communications and computing","5858","Phones","3465657","201712",10/03/2017 00:00:00,11.6,"76520","Telecommunications Equipment and Systems","REDACTED DATA","O2 (UK) LTD","",,""
"London Borough of Redbridge","http://opendatacommunities.org/doc/london-borough-council/redbridge","1BOTHEROPI&E","Other Operating Income & Expenditure","1CTRADSURDEF","Trading Account Surpluses & Deficits","REV","Revenue","R9607","Ley Street Depot","04-SUPPLIES","Supplies And Services","04F","Communications and computing","5858","Phones","3465657","201712",10/03/2017 00:00:00,10,"76520","Telecommunications Equipment and Systems","REDACTED DATA","O2 (UK) LTD","",,""
"London Borough of Redbridge","http://opendatacommunities.org/doc/london-borough-council/redbridge","1BOTHEROPI&E","Other Operating Income & Expenditure","1CTRADSURDEF","Trading Account Surpluses & Deficits","REV","Revenue","R9607","Ley Street Depot","04-SUPPLIES","Supplies And Services","04F","Communications and computing","5858","Phones","3465657","201712",10/03/2017 00:00:00,10,"76520","Telecommunications Equipment and Systems","REDACTED DATA","O2 (UK) LTD","",,""
"London Borough of Redbridge","http://opendatacommunities.org/doc/london-borough-council/redbridge","1BOTHEROPI&E","Other Operating Income & Expenditure","1CTRADSURDEF","Trading Account Surpluses & Deficits","REV","Revenue","R9607","Ley Street Depot","04-SUPPLIES","Supplies And Services","04F","Communications and computing","5858","Phones","3465657","201712",10/03/2017 00:00:00,13.31,"76520","Telecommunications Equipment and Systems","REDACTED DATA","O2 (UK) LTD","",,""
"London Borough of Redbridge","http://opendatacommunities.org/doc/london-borough-council/redbridge","1BOTHEROPI&E","Other Operating Income & Expenditure","1CTRADSURDEF","Trading Account Surpluses & Deficits","REV","Revenue","R9607","Ley Street Depot","04-SUPPLIES","Supplies And Services","04F","Communications and computing","5858","Phones","3465657","201712",10/03/2017 00:00:00,13.31,"76520","Telecommunications Equipment and Systems","REDACTED DATA","O2 (UK) LTD","",,""
"London Borough of Redbridge","http://opendatacommunities.org/doc/london-borough-council/redbridge","1BOTHEROPI&E","Other Operating Income & Expenditure","1CTRADSURDEF","Trading Account Surpluses & Deficits","REV","Revenue","R9607","Ley Street Depot","04-SUPPLIES","Supplies And Services","04F","Communications and computing","5858","Phones","3465657","201712",10/03/2017 00:00:00,83.19,"76520","Telecommunications Equipment and Systems","REDACTED DATA","O2 (UK) LTD","",,""
"London Borough of Redbridge","http://opendatacommunities.org/doc/london-borough-council/redbridge","1BOTHEROPI&E","Other Operating Income & Expenditure","1CTRADSURDEF","Trading Account Surpluses & Deficits","REV","Revenue","R9607","Ley Street Depot","04-SUPPLIES","Supplies And Services","04F","Communications and computing","5858","Phones","3465657","201712",10/03/2017 00:00:00,13.01,"76520","Telecommunications Equipment and Systems","REDACTED DATA","O2 (UK) LTD","",,""
"London Borough of Redbridge","http://opendatacommunities.org/doc/london-borough-council/redbridge","1BOTHEROPI&E","Other Operating Income & Expenditure","1CTRADSURDEF","Trading Account Surpluses & Deficits","REV","Revenue","R9607","Ley Street Depot","04-SUPPLIES","Supplies And Services","04F","Communications and computing","5858","Phones","3465657","201712",10/03/2017 00:00:00,10,"76520","Telecommunications Equipment and Systems","REDACTED DATA","O2 (UK) LTD","",,""
"London Borough of Redbridge","http://opendatacommunities.org/doc/london-borough-council/redbridge","1BOTHEROPI&E","Other Operating Income & Expenditure","1CTRADSURDEF","Trading Account Surpluses & Deficits","REV","Revenue","R9607","Ley Street Depot","04-SUPPLIES","Supplies And Services","04F","Communications and computing","5858","Phones","3465657","201712",10/03/2017 00:00:00,10,"76520","Telecommunications Equipment and Systems","REDACTED DATA","O2 (UK) LTD","",,""
"London Borough of Redbridge","http://opendatacommunities.org/doc/london-borough-council/redbridge","1BOTHEROPI&E","Other Operating Income & Expenditure","1CTRADSURDEF","Trading Account Surpluses & Deficits","REV","Revenue","R9607","Ley Street Depot","04-SUPPLIES","Supplies And Services","04F","Communications and computing","5858","Phones","3465657","201712",10/03/2017 00:00:00,13.01,"76520","Telecommunications Equipment and Systems","REDACTED DATA","O2 (UK) LTD","",,""
"London Borough of Redbridge","http://opendatacommunities.org/doc/london-borough-council/redbridge","1BOTHEROPI&E","Other Operating Income & Expenditure","1CTRADSURDEF","Trading Account Surpluses & Deficits","REV","Revenue","R9614","852 Cranbrook Rd","04-SUPPLIES","Supplies And Services","04F","Communications and computing","5854","Exchange Line Rental","3465657","201712",10/03/2017 00:00:00,10,"76520","Telecommunications Equipment and Systems","REDACTED DATA","O2 (UK) LTD","",,""
"London Borough of Redbridge","http://opendatacommunities.org/doc/london-borough-council/redbridge","2BECODEV","Economic Development","","","REV","Revenue","R9870","Chadwick Road and Janice Mews.","04-SUPPLIES","Supplies And Services","04F","Communications and computing","5854","Exchange Line Rental","3465657","201712",10/03/2017 00:00:00,10,"76520","Telecommunications Equipment and Systems","REDACTED DATA","O2 (UK) LTD","",,""
"London Borough of Redbridge","http://opendatacommunities.org/doc/london-borough-council/redbridge","2BENVIRONMEN","Environmental Services","2CSTCLEANS","Street Cleansing (not chargeable to Highways)","REV","Revenue","R6060","Street Scene Enforcement","04-SUPPLIES","Supplies And Services","04F","Communications and computing","5854","Exchange Line Rental","3465657","201712",10/03/2017 00:00:00,12.55,"76520","Telecommunications Equipment and Systems","REDACTED DATA","O2 (UK) LTD","",,""
"London Borough of Redbridge","http://opendatacommunities.org/doc/london-borough-council/redbridge","3BLEACENTFND","LEA Centrally Held School Funds","3CASSURACCES","Assuring Access to Schools","REV","Revenue","R3265","Drama Centre Del","04-SUPPLIES","Supplies And Services","04F","Communications and computing","5854","Exchange Line Rental","3465657","201712",10/03/2017 00:00:00,13.31,"76520","Telecommunications Equipment and Systems","REDACTED DATA","O2 (UK) LTD","",,""
"London Borough of Redbridge","http://opendatacommunities.org/doc/london-borough-council/redbridge","3BLEACENTFND","LEA Centrally Held School Funds","3CFACILIMPRO","Facilitating School Improvement","REV","Revenue","R3877","Recruitment Services","04-SUPPLIES","Supplies And Services","04F","Communications and computing","5854","Exchange Line Rental","3465657","201712",10/03/2017 00:00:00,10,"76520","Telecommunications Equipment and Systems","REDACTED DATA","O2 (UK) LTD","",,""
"London Borough of Redbridge","http://opendatacommunities.org/doc/london-borough-council/redbridge","3BLEACENTFND","LEA Centrally Held School Funds","3CNONSCH","Non Schools","REV","Revenue","R3434","Pupil Referral Unit (KS3)","04-SUPPLIES","Supplies And Services","04F","Communications and computing","5854","Exchange Line Rental","3465657","201712",10/03/2017 00:00:00,10,"76520","Telecommunications Equipment and Systems","REDACTED DATA","O2 (UK) LTD","",,""
"London Borough of Redbridge","http://opendatacommunities.org/doc/london-borough-council/redbridge","3BNONSCHFUND","Non-School Funding","3CNONSCH","Non Schools","REV","Revenue","R3932","Aldersbrook CC","04-SUPPLIES","Supplies And Services","04F","Communications and computing","5858","Phones","3465657","201712",10/03/2017 00:00:00,10,"76520","Telecommunications Equipment and Systems","REDACTED DATA","O2 (UK) LTD","",,""
"London Borough of Redbridge","http://opendatacommunities.org/doc/london-borough-council/redbridge","3BNONSCHFUND","Non-School Funding","3CNONSCH","Non Schools","REV","Revenue","R3933","Peabody CC","04-SUPPLIES","Supplies And Services","04F","Communications and computing","5854","Exchange Line Rental","3465657","201712",10/03/2017 00:00:00,11.47,"76520","Telecommunications Equipment and Systems","REDACTED DATA","O2 (UK) LTD","",,""
"London Borough of Redbridge","http://opendatacommunities.org/doc/london-borough-council/redbridge","3BNONSCHFUND","Non-School Funding","3CNONSCH","Non Schools","REV","Revenue","R3933","Peabody CC","04-SUPPLIES","Supplies And Services","04F","Communications and computing","5854","Exchange Line Rental","3465657","201712",10/03/2017 00:00:00,10,"76520","Telecommunications Equipment and Systems","REDACTED DATA","O2 (UK) LTD","",,""
"London Borough of Redbridge","http://opendatacommunities.org/doc/london-borough-council/redbridge","3BNONSCHFUND","Non-School Funding","3CNONSCH","Non Schools","REV","Revenue","R3933","Peabody CC","04-SUPPLIES","Supplies And Services","04F","Communications and computing","5854","Exchange Line Rental","3465657","201712",10/03/2017 00:00:00,10,"76520","Telecommunications Equipment and Systems","REDACTED DATA","O2 (UK) LTD","",,""
"London Borough of Redbridge","http://opendatacommunities.org/doc/london-borough-council/redbridge","3BNONSCHFUND","Non-School Funding","3CNONSCH","Non Schools","REV","Revenue","R3934","StLukes/Loxford CC","04-SUPPLIES","Supplies And Services","04F","Communications and computing","5854","Exchange Line Rental","3465657","201712",10/03/2017 00:00:00,10,"76520","Telecommunications Equipment and Systems","REDACTED DATA","O2 (UK) LTD","",,""
"London Borough of Redbridge","http://opendatacommunities.org/doc/london-borough-council/redbridge","3BNONSCHFUND","Non-School Funding","3CNONSCH","Non Schools","REV","Revenue","R3934","StLukes/Loxford CC","04-SUPPLIES","Supplies And Services","04F","Communications and computing","5854","Exchange Line Rental","3465657","201712",10/03/2017 00:00:00,10,"76520","Telecommunications Equipment and Systems","REDACTED DATA","O2 (UK) LTD","",,""
"London Borough of Redbridge","http://opendatacommunities.org/doc/london-borough-council/redbridge","3BNONSCHFUND","Non-School Funding","3CNONSCH","Non Schools","REV","Revenue","R3934","StLukes/Loxford CC","04-SUPPLIES","Supplies And Services","04F","Communications and computing","5854","Exchange Line Rental","3465657","201712",10/03/2017 00:00:00,10,"76520","Telecommunications Equipment and Systems","REDACTED DATA","O2 (UK) LTD","",,""
"London Borough of Redbridge","http://opendatacommunities.org/doc/london-borough-council/redbridge","3BNONSCHFUND","Non-School Funding","3CNONSCH","Non Schools","REV","Revenue","R3934","StLukes/Loxford CC","04-SUPPLIES","Supplies And Services","04F","Communications and computing","5854","Exchange Line Rental","3465657","201712",10/03/2017 00:00:00,10,"76520","Telecommunications Equipment and Systems","REDACTED DATA","O2 (UK) LTD","",,""
"London Borough of Redbridge","http://opendatacommunities.org/doc/london-borough-council/redbridge","3BNONSCHFUND","Non-School Funding","3CNONSCH","Non Schools","REV","Revenue","R3941","Newbury CC","04-SUPPLIES","Supplies And Services","04F","Communications and computing","5854","Exchange Line Rental","3465657","201712",10/03/2017 00:00:00,10,"76520","Telecommunications Equipment and Systems","REDACTED DATA","O2 (UK) LTD","",,""
"London Borough of Redbridge","http://opendatacommunities.org/doc/london-borough-council/redbridge","3BNONSCHFUND","Non-School Funding","3CNONSCH","Non Schools","REV","Revenue","R3942","Cranbrook CC","04-SUPPLIES","Supplies And Services","04F","Communications and computing","5854","Exchange Line Rental","3465657","201712",10/03/2017 00:00:00,105.96,"76520","Telecommunications Equipment and Systems","REDACTED DATA","O2 (UK) LTD","",,""
"London Borough of Redbridge","http://opendatacommunities.org/doc/london-borough-council/redbridge","3BNONSCHFUND","Non-School Funding","3CNONSCH","Non Schools","REV","Revenue","R3947","Loxford CC Nursery","04-SUPPLIES","Supplies And Services","04F","Communications and computing","5854","Exchange Line Rental","3465657","201712",10/03/2017 00:00:00,10,"76520","Telecommunications Equipment and Systems","REDACTED DATA","O2 (UK) LTD","",,""
"London Borough of Redbridge","http://opendatacommunities.org/doc/london-borough-council/redbridge","3BNONSCHFUND","Non-School Funding","3CNONSCH","Non Schools","REV","Revenue","R3948","Ray Lodge CC Nursery","04-SUPPLIES","Supplies And Services","04F","Communications and computing","5854","Exchange Line Rental","3465657","201712",10/03/2017 00:00:00,18.24,"76520","Telecommunications Equipment and Systems","REDACTED DATA","O2 (UK) LTD","",,""
"London Borough of Redbridge","http://opendatacommunities.org/doc/london-borough-council/redbridge","3BNONSCHFUND","Non-School Funding","3CNONSCH","Non Schools","REV","Revenue","R3954","Gearies Infants CC","04-SUPPLIES","Supplies And Services","04F","Communications and computing","5854","Exchange Line Rental","3465657","201712",10/03/2017 00:00:00,10,"76520","Telecommunications Equipment and Systems","REDACTED DATA","O2 (UK) LTD","",,""
"London Borough of Redbridge","http://opendatacommunities.org/doc/london-borough-council/redbridge","3BNONSCHFUND","Non-School Funding","3CNONSCH","Non Schools","REV","Revenue","R3960","FiND","04-SUPPLIES","Supplies And Services","04F","Communications and computing","5854","Exchange Line Rental","3465657","201712",10/03/2017 00:00:00,10,"76520","Telecommunications Equipment and Systems","REDACTED DATA","O2 (UK) LTD","",,""
"London Borough of Redbridge","http://opendatacommunities.org/doc/london-borough-council/redbridge","3BOPTIONHLDG","Optional Holding Accounts","3CYOUTH","Youth Service","REV","Revenue","R3371","LBR Costs","04-SUPPLIES","Supplies And Services","04F","Communications and computing","5854","Exchange Line Rental","3465657","201712",10/03/2017 00:00:00,60.79,"76520","Telecommunications Equipment and Systems","REDACTED DATA","O2 (UK) LTD","",,""
"London Borough of Redbridge","http://opendatacommunities.org/doc/london-borough-council/redbridge","3BOPTIONHLDG","Optional Holding Accounts","3CYOUTH","Youth Service","REV","Revenue","R3408","Wanstead YC Delegated","04-SUPPLIES","Supplies And Services","04F","Communications and computing","5854","Exchange Line Rental","3465657","201712",10/03/2017 00:00:00,10.45,"76520","Telecommunications Equipment and Systems","REDACTED DATA","O2 (UK) LTD","",,""
"London Borough of Redbridge","http://opendatacommunities.org/doc/london-borough-council/redbridge","3BOPTIONHLDG","Optional Holding Accounts","3CYOUTH","Youth Service","REV","Revenue","R3408","Wanstead YC Delegated","04-SUPPLIES","Supplies And Services","04F","Communications and computing","5854","Exchange Line Rental","3465657","201712",10/03/2017 00:00:00,10,"76520","Telecommunications Equipment and Systems","REDACTED DATA","O2 (UK) LTD","",,""
"London Borough of Redbridge","http://opendatacommunities.org/doc/london-borough-council/redbridge","3BOPTIONHLDG","Optional Holding Accounts","3CYOUTH","Youth Service","REV","Revenue","R3409","Loxford YC Delegated","04-SUPPLIES","Supplies And Services","04F","Communications and computing","5854","Exchange Line Rental","3465657","201712",10/03/2017 00:00:00,13.6,"76520","Telecommunications Equipment and Systems","REDACTED DATA","O2 (UK) LTD","",,""
"London Borough of Redbridge","http://opendatacommunities.org/doc/london-borough-council/redbridge","3BOPTIONHLDG","Optional Holding Accounts","3CYOUTH","Youth Service","REV","Revenue","R3413","Hainault YC Delegated","04-SUPPLIES","Supplies And Services","04F","Communications and computing","5854","Exchange Line Rental","3465657","201712",10/03/2017 00:00:00,15.24,"76520","Telecommunications Equipment and Systems","REDACTED DATA","O2 (UK) LTD","",,""
"London Borough of Redbridge","http://opendatacommunities.org/doc/london-borough-council/redbridge","4BMANGT&SUPP","Management & Support Services","4CHIGHRDROUT","Highways/Roads (Routine)","REV","Revenue","R7061","Lighting Energy","05-THIRD","Third Party Payments","05H","Private contractors","6915","Contractor Payments","3465657","201712",10/03/2017 00:00:00,10,"76520","Telecommunications Equipment and Systems","REDACTED DATA","O2 (UK) LTD","",,""
"London Borough of Redbridge","http://opendatacommunities.org/doc/london-borough-council/redbridge","4BTRANSPORT","Transport Planning, Policy & Strategy","4CMANGT&SUPP","Management & Support Services","REV","Revenue","R7000","Highways Executive","04-SUPPLIES","Supplies And Services","04F","Communications and computing","5854","Exchange Line Rental","3465657","201712",10/03/2017 00:00:00,10,"76520","Telecommunications Equipment and Systems","REDACTED DATA","O2 (UK) LTD","",,""
"London Borough of Redbridge","http://opendatacommunities.org/doc/london-borough-council/redbridge","5BGFHOUSING","General Fund Housing","5CHOMELESS","Homelessness","REV","Revenue","R5633","Hylefords Hostel","04-SUPPLIES","Supplies And Services","04F","Communications and computing","5854","Exchange Line Rental","3465657","201712",10/03/2017 00:00:00,15.1,"76520","Telecommunications Equipment and Systems","REDACTED DATA","O2 (UK) LTD","",,""
"London Borough of Redbridge","http://opendatacommunities.org/doc/london-borough-council/redbridge","5BGFHOUSING","General Fund Housing","5CHOUSBENADM","Housing Benefits Administration","REV","Revenue","R5771","Benefits Administration","04-SUPPLIES","Supplies And Services","04F","Communications and computing","5854","Exchange Line Rental","3465657","201712",10/03/2017 00:00:00,10.12,"76520","Telecommunications Equipment and Systems","REDACTED DATA","O2 (UK) LTD","",,""
"London Borough of Redbridge","http://opendatacommunities.org/doc/london-borough-council/redbridge","6BADULTSOCIA","Adult Social Care","6CADLEARNDIS","Adults Under 65 with Learning Disabilities","REV","Revenue","R4293","Woodbine Club House","04-SUPPLIES","Supplies And Services","04F","Communications and computing","5854","Exchange Line Rental","3465657","201712",10/03/2017 00:00:00,10,"76520","Telecommunications Equipment and Systems","REDACTED DATA","O2 (UK) LTD","",,""
"London Borough of Redbridge","http://opendatacommunities.org/doc/london-borough-council/redbridge","6BADULTSOCIA","Adult Social Care","6CADLEARNDIS","Adults Under 65 with Learning Disabilities","REV","Revenue","R4296","Mulberry Lodge","04-SUPPLIES","Supplies And Services","04F","Communications and computing","5854","Exchange Line Rental","3465657","201712",10/03/2017 00:00:00,10.04,"76520","Telecommunications Equipment and Systems","REDACTED DATA","O2 (UK) LTD","",,""
"London Borough of Redbridge","http://opendatacommunities.org/doc/london-borough-council/redbridge","6BADULTSOCIA","Adult Social Care","6CADPHYSDIS","Adults Under 65 with Phys Disab or Sensory Impair","REV","Revenue","R4276","Link Place","04-SUPPLIES","Supplies And Services","04F","Communications and computing","5854","Exchange Line Rental","3465657","201712",10/03/2017 00:00:00,20.81,"76520","Telecommunications Equipment and Systems","REDACTED DATA","O2 (UK) LTD","",,""
"London Borough of Redbridge","http://opendatacommunities.org/doc/london-borough-council/redbridge","6BADULTSOCIA","Adult Social Care","6CADPHYSDIS","Adults Under 65 with Phys Disab or Sensory Impair","REV","Revenue","R4276","Link Place","04-SUPPLIES","Supplies And Services","04F","Communications and computing","5854","Exchange Line Rental","3465657","201712",10/03/2017 00:00:00,10,"76520","Telecommunications Equipment and Systems","REDACTED DATA","O2 (UK) LTD","",,""
"London Borough of Redbridge","http://opendatacommunities.org/doc/london-borough-council/redbridge","6BADULTSOCIA","Adult Social Care","6COLDINCMENT","Older People (65 or over) incl. Older Mentally Ill","REV","Revenue","R4212","Hyleford Kitchens","04-SUPPLIES","Supplies And Services","04F","Communications and computing","5854","Exchange Line Rental","3465657","201712",10/03/2017 00:00:00,10.96,"76520","Telecommunications Equipment and Systems","REDACTED DATA","O2 (UK) LTD","",,""
"London Borough of Redbridge","http://opendatacommunities.org/doc/london-borough-council/redbridge","6BADULTSOCIA","Adult Social Care","6COLDINCMENT","Older People (65 or over) incl. Older Mentally Ill","REV","Revenue","R4322","Manford Lodge","04-SUPPLIES","Supplies And Services","04F","Communications and computing","5854","Exchange Line Rental","3465657","201712",10/03/2017 00:00:00,10,"76520","Telecommunications Equipment and Systems","REDACTED DATA","O2 (UK) LTD","",,""
"London Borough of Redbridge","http://opendatacommunities.org/doc/london-borough-council/redbridge","6BADULTSOCIA","Adult Social Care","6COLDINCMENT","Older People (65 or over) incl. Older Mentally Ill","REV","Revenue","R4329","Elderberries","04-SUPPLIES","Supplies And Services","04F","Communications and computing","5854","Exchange Line Rental","3465657","201712",10/03/2017 00:00:00,10,"76520","Telecommunications Equipment and Systems","REDACTED DATA","O2 (UK) LTD","",,""
"London Borough of Redbridge","http://opendatacommunities.org/doc/london-borough-council/redbridge","6BADULTSOCIA","Adult Social Care","6COLDINCMENT","Older People (65 or over) incl. Older Mentally Ill","REV","Revenue","R4333","George Davis Lodge Sheltered Unit","04-SUPPLIES","Supplies And Services","04F","Communications and computing","5854","Exchange Line Rental","3465657","201712",10/03/2017 00:00:00,10,"76520","Telecommunications Equipment and Systems","REDACTED DATA","O2 (UK) LTD","",,""
"London Borough of Redbridge","http://opendatacommunities.org/doc/london-borough-council/redbridge","6BADULTSOCIA","Adult Social Care","6COLDINCMENT","Older People (65 or over) incl. Older Mentally Ill","REV","Revenue","R4340","Oakfield Lodge Sheltered Unit","04-SUPPLIES","Supplies And Services","04F","Communications and computing","5854","Exchange Line Rental","3465657","201712",10/03/2017 00:00:00,303.71,"76520","Telecommunications Equipment and Systems","REDACTED DATA","O2 (UK) LTD","",,""
"London Borough of Redbridge","http://opendatacommunities.org/doc/london-borough-council/redbridge","6BADULTSOCIA","Adult Social Care","6COLDINCMENT","Older People (65 or over) incl. Older Mentally Ill","REV","Revenue","R4485","Multi-Disciplinary Team (Seven Kings)","04-SUPPLIES","Supplies And Services","04F","Communications and computing","5854","Exchange Line Rental","3465657","201712",10/03/2017 00:00:00,10,"76520","Telecommunications Equipment and Systems","REDACTED DATA","O2 (UK) LTD","",,""
"London Borough of Redbridge","http://opendatacommunities.org/doc/london-borough-council/redbridge","6BADULTSOCIA","Adult Social Care","6COLDINCMENT","Older People (65 or over) incl. Older Mentally Ill","REV","Revenue","R4485","Multi-Disciplinary Team (Seven Kings)","04-SUPPLIES","Supplies And Services","04F","Communications and computing","5854","Exchange Line Rental","3465657","201712",10/03/2017 00:00:00,10,"76520","Telecommunications Equipment and Systems","REDACTED DATA","O2 (UK) LTD","",,""
"London Borough of Redbridge","http://opendatacommunities.org/doc/london-borough-council/redbridge","6BADULTSOCIA","Adult Social Care","6COLDINCMENT","Older People (65 or over) incl. Older Mentally Ill","REV","Revenue","R4485","Multi-Disciplinary Team (Seven Kings)","04-SUPPLIES","Supplies And Services","04F","Communications and computing","5854","Exchange Line Rental","3465657","201712",10/03/2017 00:00:00,10,"76520","Telecommunications Equipment and Systems","REDACTED DATA","O2 (UK) LTD","",,""
"London Borough of Redbridge","http://opendatacommunities.org/doc/london-borough-council/redbridge","6BADULTSOCIA","Adult Social Care","6COLDINCMENT","Older People (65 or over) incl. Older Mentally Ill","REV","Revenue","R4485","Multi-Disciplinary Team (Seven Kings)","04-SUPPLIES","Supplies And Services","04F","Communications and computing","5854","Exchange Line Rental","3465657","201712",10/03/2017 00:00:00,10,"76520","Telecommunications Equipment and Systems","REDACTED DATA","O2 (UK) LTD","",,""
"London Borough of Redbridge","http://opendatacommunities.org/doc/london-borough-council/redbridge","6BSOCIALSERV","Social Services","6CCHILCOMSNG","Children's Services - Commissioning & Social Work","REV","Revenue","R2126","Station Road Building","04-SUPPLIES","Supplies And Services","04F","Communications and computing","5854","Exchange Line Rental","3465657","201712",10/03/2017 00:00:00,10,"76520","Telecommunications Equipment and Systems","REDACTED DATA","O2 (UK) LTD","",,""
"London Borough of Redbridge","http://opendatacommunities.org/doc/london-borough-council/redbridge","6BSOCIALSERV","Social Services","6CCHILLOOKED","Children Looked After","REV","Revenue","R2110","SEN and CD - Business and Finance Social Care","04-SUPPLIES","Supplies And Services","04F","Communications and computing","5854","Exchange Line Rental","3465657","201712",10/03/2017 00:00:00,85.7,"76520","Telecommunications Equipment and Systems","REDACTED DATA","O2 (UK) LTD","",,""
"London Borough of Redbridge","http://opendatacommunities.org/doc/london-borough-council/redbridge","6BSOCIALSERV","Social Services","6CCHILLOOKED","Children Looked After","REV","Revenue","R2110","SEN and CD - Business and Finance Social Care","04-SUPPLIES","Supplies And Services","04F","Communications and computing","5854","Exchange Line Rental","3465657","201712",10/03/2017 00:00:00,10,"76520","Telecommunications Equipment and Systems","REDACTED DATA","O2 (UK) LTD","",,""
"London Borough of Redbridge","http://opendatacommunities.org/doc/london-borough-council/redbridge","6BSOCIALSERV","Social Services","6CCHILLOOKED","Children Looked After","REV","Revenue","R2138","Psy Social Work","04-SUPPLIES","Supplies And Services","04F","Communications and computing","5854","Exchange Line Rental","3465657","201712",10/03/2017 00:00:00,10,"76520","Telecommunications Equipment and Systems","REDACTED DATA","O2 (UK) LTD","",,""
"London Borough of Redbridge","http://opendatacommunities.org/doc/london-borough-council/redbridge","6BSOCIALSERV","Social Services","6CCHILLOOKED","Children Looked After","REV","Revenue","R2138","Psy Social Work","04-SUPPLIES","Supplies And Services","04F","Communications and computing","5854","Exchange Line Rental","3465657","201712",10/03/2017 00:00:00,10,"76520","Telecommunications Equipment and Systems","REDACTED DATA","O2 (UK) LTD","",,""
"London Borough of Redbridge","http://opendatacommunities.org/doc/london-borough-council/redbridge","6BSOCIALSERV","Social Services","6CCHILLOOKED","Children Looked After","REV","Revenue","R2138","Psy Social Work","04-SUPPLIES","Supplies And Services","04F","Communications and computing","5854","Exchange Line Rental","3465657","201712",10/03/2017 00:00:00,10.37,"76520","Telecommunications Equipment and Systems","REDACTED DATA","O2 (UK) LTD","",,""
"London Borough of Redbridge","http://opendatacommunities.org/doc/london-borough-council/redbridge","6BSOCIALSERV","Social Services","6CCHILLOOKED","Children Looked After","REV","Revenue","R2138","Psy Social Work","04-SUPPLIES","Supplies And Services","04F","Communications and computing","5854","Exchange Line Rental","3465657","201712",10/03/2017 00:00:00,10,"76520","Telecommunications Equipment and Systems","REDACTED DATA","O2 (UK) LTD","",,""
"London Borough of Redbridge","http://opendatacommunities.org/doc/london-borough-council/redbridge","6BSOCIALSERV","Social Services","6CCHILLOOKED","Children Looked After","REV","Revenue","R2175","Ray Lodge Building","04-SUPPLIES","Supplies And Services","04F","Communications and computing","5854","Exchange Line Rental","3465657","201712",10/03/2017 00:00:00,10,"76520","Telecommunications Equipment and Systems","REDACTED DATA","O2 (UK) LTD","",,""
"London Borough of Redbridge","http://opendatacommunities.org/doc/london-borough-council/redbridge","6BSOCIALSERV","Social Services","6CFAMSUPPSER","Family Support Services","REV","Revenue","R2159","Thackeray Drive Building","04-SUPPLIES","Supplies And Services","04F","Communications and computing","5854","Exchange Line Rental","3465657","201712",10/03/2017 00:00:00,10,"76520","Telecommunications Equipment and Systems","REDACTED DATA","O2 (UK) LTD","",,""
"London Borough of Redbridge","http://opendatacommunities.org/doc/london-borough-council/redbridge","6BSOCIALSERV","Social Services","6CFAMSUPPSER","Family Support Services","REV","Revenue","R2159","Thackeray Drive Building","04-SUPPLIES","Supplies And Services","04F","Communications and computing","5854","Exchange Line Rental","3465657","201712",10/03/2017 00:00:00,10.5,"76520","Telecommunications Equipment and Systems","REDACTED DATA","O2 (UK) LTD","",,""
"London Borough of Redbridge","http://opendatacommunities.org/doc/london-borough-council/redbridge","6BSOCIALSERV","Social Services","6CFAMSUPPSER","Family Support Services","REV","Revenue","R2159","Thackeray Drive Building","04-SUPPLIES","Supplies And Services","04F","Communications and computing","5854","Exchange Line Rental","3465657","201712",10/03/2017 00:00:00,10,"76520","Telecommunications Equipment and Systems","REDACTED DATA","O2 (UK) LTD","",,""
"London Borough of Redbridge","http://opendatacommunities.org/doc/london-borough-council/redbridge","9BNONBVO","Outside the BVACOP Objective Structure","9CNONBVO","Outside the BVACOP Objective Structure","CAP","Capital","C4287","Redbridge Primary School","99-NONBV","Capital, Balance Sheet and Control","50B","Capital - Contracted Works","9094","ICT","3465657","201712",10/03/2017 00:00:00,10,"76520","Telecommunications Equipment and Systems","REDACTED DATA","O2 (UK) LTD","",,""
"London Borough of Redbridge","http://opendatacommunities.org/doc/london-borough-council/redbridge","9BNONBVO","Outside the BVACOP Objective Structure","9CNONBVO","Outside the BVACOP Objective Structure","REV","Revenue","R5211","Orchard and Manford Office Costs","04-SUPPLIES","Supplies And Services","04F","Communications and computing","5858","Phones","3465657","201712",10/03/2017 00:00:00,10.33,"76520","Telecommunications Equipment and Systems","REDACTED DATA","O2 (UK) LTD","",,""
"London Borough of Redbridge","http://opendatacommunities.org/doc/london-borough-council/redbridge","6BADULTSOCIA","Adult Social Care","6CADLEARNDIS","Adults Under 65 with Learning Disabilities","REV","Revenue","R4188","LD - Residential Care","05-THIRD","Third Party Payments","05F","Voluntary associations","6802","Residential Homes","90825890","201712",24/02/2017 00:00:00,8254.24,"17020","Charities and Voluntary Organisations","REDACTED DATA","VIBRANCE","7094318","http://opencorporates.com/companies/gb/7094318",""
"London Borough of Redbridge","http://opendatacommunities.org/doc/london-borough-council/redbridge","6BADULTSOCIA","Adult Social Care","6CADLEARNDIS","Adults Under 65 with Learning Disabilities","REV","Revenue","R4188","LD - Residential Care","05-THIRD","Third Party Payments","05F","Voluntary associations","6802","Residential Homes","90825888","201712",24/02/2017 00:00:00,8254.24,"17020","Charities and Voluntary Organisations","REDACTED DATA","VIBRANCE","7094318","http://opencorporates.com/companies/gb/7094318",""
"London Borough of Redbridge","http://opendatacommunities.org/doc/london-borough-council/redbridge","6BADULTSOCIA","Adult Social Care","6CADLEARNDIS","Adults Under 65 with Learning Disabilities","REV","Revenue","R4188","LD - Residential Care","05-THIRD","Third Party Payments","05F","Voluntary associations","6802","Residential Homes","90825889","201712",24/02/2017 00:00:00,8254.24,"17020","Charities and Voluntary Organisations","REDACTED DATA","VIBRANCE","7094318","http://opencorporates.com/companies/gb/7094318",""
"London Borough of Redbridge","http://opendatacommunities.org/doc/london-borough-council/redbridge","6BADULTSOCIA","Adult Social Care","6CADLEARNDIS","Adults Under 65 with Learning Disabilities","REV","Revenue","R4188","LD - Residential Care","09-INCOME","Income","09C","Customer and Client Receipts","8555","Accommodation Charges","90825889","201712",24/02/2017 00:00:00,-643.6,"17020","Charities and Voluntary Organisations","REDACTED DATA","VIBRANCE","7094318","http://opencorporates.com/companies/gb/7094318",""
"London Borough of Redbridge","http://opendatacommunities.org/doc/london-borough-council/redbridge","6BADULTSOCIA","Adult Social Care","6CADLEARNDIS","Adults Under 65 with Learning Disabilities","REV","Revenue","R4188","LD - Residential Care","09-INCOME","Income","09C","Customer and Client Receipts","8555","Accommodation Charges","90825888","201712",24/02/2017 00:00:00,-643.6,"17020","Charities and Voluntary Organisations","REDACTED DATA","VIBRANCE","7094318","http://opencorporates.com/companies/gb/7094318",""
"London Borough of Redbridge","http://opendatacommunities.org/doc/london-borough-council/redbridge","6BADULTSOCIA","Adult Social Care","6CADLEARNDIS","Adults Under 65 with Learning Disabilities","REV","Revenue","R4188","LD - Residential Care","09-INCOME","Income","09C","Customer and Client Receipts","8555","Accommodation Charges","90825890","201712",24/02/2017 00:00:00,-643.6,"17020","Charities and Voluntary Organisations","REDACTED DATA","VIBRANCE","7094318","http://opencorporates.com/companies/gb/7094318",""
"London Borough of Redbridge","http://opendatacommunities.org/doc/london-borough-council/redbridge","1BOTHEROPI&E","Other Operating Income & Expenditure","1CTRADSURDEF","Trading Account Surpluses & Deficits","REV","Revenue","R9607","Ley Street Depot","02-PREMISES","Premises","02B","Energy costs","4000","Electricity","80026081","201712",17/03/2017 00:00:00,6340.73,"39564","Gas Companies","REDACTED DATA","KENT COUNTY COUNCIL (GAS & ELECTRIC)","",,"204269191"
"London Borough of Redbridge","http://opendatacommunities.org/doc/london-borough-council/redbridge","1BOTHEROPI&E","Other Operating Income & Expenditure","1CTRADSURDEF","Trading Account Surpluses & Deficits","REV","Revenue","R9148","Contracts Holding Account","02-PREMISES","Premises","02I","Grounds maintenance costs","4753","Trees / Recreational","60337290","201712",07/03/2017 00:00:00,6340,"80228","Tree Work and Forestry Services","REDACTED DATA","WARD ARBORICULTURE LTD","6394386","http://opencorporates.com/companies/gb/6394386","920964517"
"London Borough of Redbridge","http://opendatacommunities.org/doc/london-borough-council/redbridge","6BADULTSOCIA","Adult Social Care","6CADLEARNDIS","Adults Under 65 with Learning Disabilities","REV","Revenue","R4188","LD - Residential Care","05-THIRD","Third Party Payments","05F","Voluntary associations","6802","Residential Homes","90826004","201712",24/02/2017 00:00:00,7583.92,"64710","Residential Care Homes","REDACTED DATA","ASHWOOD HOUSE LIMITED","3581014","http://opencorporates.com/companies/gb/3581014",""
"London Borough of Redbridge","http://opendatacommunities.org/doc/london-borough-council/redbridge","1BCENTRALPUB","Central Services to the Public","1CLOCALTAXCO","Local Tax Collection","REV","Revenue","R5760","Local Tax Collection","04-SUPPLIES","Supplies And Services","04H","Grants and subscriptions","5957","Bailiff Fees","70093258","201712",28/01/2017 00:00:00,1417.51,"24230","Debt Collection Agencies","REDACTED DATA","NEWLYN PLC","3770985","http://opencorporates.com/companies/gb/3770985","739828088"
"London Borough of Redbridge","http://opendatacommunities.org/doc/london-borough-council/redbridge","9BNONBVO","Outside the BVACOP Objective Structure","9CNONBVO","Outside the BVACOP Objective Structure","BAL","Balance Sheet","B0059","DUMMY VAT ACCOUNT","99-NONBV","Capital, Balance Sheet and Control","50L","Debtors","9359","VAT only invoices","70093258","201712",28/01/2017 00:00:00,5878.78,"24230","Debt Collection Agencies","REDACTED DATA","NEWLYN PLC","3770985","http://opencorporates.com/companies/gb/3770985","739828088"
"London Borough of Redbridge","http://opendatacommunities.org/doc/london-borough-council/redbridge","9BNONBVO","Outside the BVACOP Objective Structure","9CNONBVO","Outside the BVACOP Objective Structure","BAL","Balance Sheet","B0059","DUMMY VAT ACCOUNT","99-NONBV","Capital, Balance Sheet and Control","50L","Debtors","9359","VAT only invoices","70093258","201712",28/01/2017 00:00:00,-5878.78,"24230","Debt Collection Agencies","REDACTED DATA","NEWLYN PLC","3770985","http://opencorporates.com/companies/gb/3770985","739828088"
"London Borough of Redbridge","http://opendatacommunities.org/doc/london-borough-council/redbridge","4BMANGT&SUPP","Management & Support Services","4CHIGHRDROUT","Highways/Roads (Routine)","REV","Revenue","R7064","Markings and Traffic Lights","05-THIRD","Third Party Payments","05H","Private contractors","6915","Contractor Payments","3465221","201712",16/03/2017 00:00:00,6301.04,"18632","Civil Engineers","REDACTED DATA","KENSON CONTRACTORS BENINGTON LTD","1314691","http://opencorporates.com/companies/gb/1314691","301629589"
"London Borough of Redbridge","http://opendatacommunities.org/doc/london-borough-council/redbridge","3BINDSCHFUND","Individual School Funds","3CDELSECOND","Delegated Individual Secondary School Budgets","REV","Revenue","S2001","TRINITY : Teachers - Supply","04-SUPPLIES","Supplies And Services","04H","Grants and subscriptions","5955","Fees","60338868","201712",20/03/2017 00:00:00,6282.04,"29360","Educational Services","REDACTED DATA","SMART TEACHERS LTD","5497433","http://opencorporates.com/companies/gb/5497433","870331835"
"London Borough of Redbridge","http://opendatacommunities.org/doc/london-borough-council/redbridge","1BOTHEROPI&E","Other Operating Income & Expenditure","1CTRADSURDEF","Trading Account Surpluses & Deficits","REV","Revenue","R9256","Redbridge-i Development","04-SUPPLIES","Supplies And Services","04E","Services","5754","Consultancy","60337012","201712",03/03/2017 00:00:00,6279,"84280","Web Site Design","REDACTED DATA","PUBLIC CONSULTING GROUP UK LTD","6654748","http://opencorporates.com/companies/gb/6654748","221000691"
"London Borough of Redbridge","http://opendatacommunities.org/doc/london-borough-council/redbridge","1BOTHEROPI&E","Other Operating Income & Expenditure","1CTRADSURDEF","Trading Account Surpluses & Deficits","REV","Revenue","R9460","Human Resources misc","05-THIRD","Third Party Payments","05A","Independent units within the council","6513","Agency & Contracted Services","60334141","201712",31/01/2017 00:00:00,7524,"16580","Central Government","REDACTED DATA","DISCLOSURE AND BARRING SERVICE(DBS)","",,""
"London Borough of Redbridge","http://opendatacommunities.org/doc/london-borough-council/redbridge","9BNONBVO","Outside the BVACOP Objective Structure","9CNONBVO","Outside the BVACOP Objective Structure","REV","Revenue","R5218","Responsive Repairs Team","04-SUPPLIES","Supplies And Services","04E","Services","5754","Consultancy","3465197","201712",13/03/2017 00:00:00,6262.38,"18632","Civil Engineers","REDACTED DATA","KENSON CONTRACTORS BENINGTON LTD","1314691","http://opencorporates.com/companies/gb/1314691","301629589"
"London Borough of Redbridge","http://opendatacommunities.org/doc/london-borough-council/redbridge","6BADULTSOCIA","Adult Social Care","6CADMENHLTH","Adults Under 65 with Mental Health Needs","REV","Revenue","R4219","MH - Supported Living","06-TRANSFER","Transfer Payments","06B","Social Services Clients","7066","Supportive Lodgings (Transfer Payments)","90825845","201712",01/03/2017 00:00:00,7505.31,"1266","Accommodation Agencies - Residential","REDACTED DATA","FAMILY MOSAIC HOUSING ASSOCIATION (ALBION HSE)","",,"547939979"
"London Borough of Redbridge","http://opendatacommunities.org/doc/london-borough-council/redbridge","6BADULTSOCIA","Adult Social Care","6CADMENHLTH","Adults Under 65 with Mental Health Needs","REV","Revenue","R4219","MH - Supported Living","06-TRANSFER","Transfer Payments","06B","Social Services Clients","7066","Supportive Lodgings (Transfer Payments)","90825848","201712",01/03/2017 00:00:00,7505.31,"1266","Accommodation Agencies - Residential","REDACTED DATA","FAMILY MOSAIC HOUSING ASSOCIATION (ALBION HSE)","",,"547939979"
"London Borough of Redbridge","http://opendatacommunities.org/doc/london-borough-council/redbridge","6BADULTSOCIA","Adult Social Care","6CADMENHLTH","Adults Under 65 with Mental Health Needs","REV","Revenue","R4219","MH - Supported Living","06-TRANSFER","Transfer Payments","06B","Social Services Clients","7066","Supportive Lodgings (Transfer Payments)","90825847","201712",01/03/2017 00:00:00,7505.31,"1266","Accommodation Agencies - Residential","REDACTED DATA","FAMILY MOSAIC HOUSING ASSOCIATION (ALBION HSE)","",,"547939979"
"London Borough of Redbridge","http://opendatacommunities.org/doc/london-borough-council/redbridge","6BADULTSOCIA","Adult Social Care","6CADMENHLTH","Adults Under 65 with Mental Health Needs","REV","Revenue","R4219","MH - Supported Living","06-TRANSFER","Transfer Payments","06B","Social Services Clients","7066","Supportive Lodgings (Transfer Payments)","90825849","201712",01/03/2017 00:00:00,7505.31,"1266","Accommodation Agencies - Residential","REDACTED DATA","FAMILY MOSAIC HOUSING ASSOCIATION (ALBION HSE)","",,"547939979"
"London Borough of Redbridge","http://opendatacommunities.org/doc/london-borough-council/redbridge","6BADULTSOCIA","Adult Social Care","6CADMENHLTH","Adults Under 65 with Mental Health Needs","REV","Revenue","R4219","MH - Supported Living","06-TRANSFER","Transfer Payments","06B","Social Services Clients","7066","Supportive Lodgings (Transfer Payments)","90825846","201712",01/03/2017 00:00:00,7505.31,"1266","Accommodation Agencies - Residential","REDACTED DATA","FAMILY MOSAIC HOUSING ASSOCIATION (ALBION HSE)","",,"547939979"
"London Borough of Redbridge","http://opendatacommunities.org/doc/london-borough-council/redbridge","9BNONBVO","Outside the BVACOP Objective Structure","9CNONBVO","Outside the BVACOP Objective Structure","CAP","Capital","C2234","Green Corridor 2","99-NONBV","Capital, Balance Sheet and Control","50E","Capital - Contract Payments","9157","Footways & cycle tracks","60338900","201712",22/03/2017 00:00:00,7500,"48583","Local Government","REDACTED DATA","VISION REDBRIDGE CULTURE AND LEISURE","6032714","http://opencorporates.com/companies/gb/6032714","906429031"
"London Borough of Redbridge","http://opendatacommunities.org/doc/london-borough-council/redbridge","9BNONBVO","Outside the BVACOP Objective Structure","9CNONBVO","Outside the BVACOP Objective Structure","CAP","Capital","C2108","Aids and Adaptations","99-NONBV","Capital, Balance Sheet and Control","50E","Capital - Contract Payments","9150","Main Contract","60338199","201712",10/03/2017 00:00:00,2482.67,"11400","Building Services","REDACTED DATA","BUILDTRUST LTD","8075822764","http://opencorporates.com/companies/gb/8075822764","944671303"
"London Borough of Redbridge","http://opendatacommunities.org/doc/london-borough-council/redbridge","9BNONBVO","Outside the BVACOP Objective Structure","9CNONBVO","Outside the BVACOP Objective Structure","CAP","Capital","C2108","Aids and Adaptations","99-NONBV","Capital, Balance Sheet and Control","50E","Capital - Contract Payments","9150","Main Contract","60338199","201712",10/03/2017 00:00:00,3724.01,"11400","Building Services","REDACTED DATA","BUILDTRUST LTD","8075822764","http://opencorporates.com/companies/gb/8075822764","944671303"
"London Borough of Redbridge","http://opendatacommunities.org/doc/london-borough-council/redbridge","9BNONBVO","Outside the BVACOP Objective Structure","9CNONBVO","Outside the BVACOP Objective Structure","CAP","Capital","C2108","Aids and Adaptations","99-NONBV","Capital, Balance Sheet and Control","50E","Capital - Contract Payments","9150","Main Contract","60338199","201712",10/03/2017 00:00:00,-6206.68,"11400","Building Services","REDACTED DATA","BUILDTRUST LTD","8075822764","http://opencorporates.com/companies/gb/8075822764","944671303"
"London Borough of Redbridge","http://opendatacommunities.org/doc/london-borough-council/redbridge","9BNONBVO","Outside the BVACOP Objective Structure","9CNONBVO","Outside the BVACOP Objective Structure","CAP","Capital","C2108","Aids and Adaptations","99-NONBV","Capital, Balance Sheet and Control","50E","Capital - Contract Payments","9150","Main Contract","60338199","201712",10/03/2017 00:00:00,6206.68,"11400","Building Services","REDACTED DATA","BUILDTRUST LTD","8075822764","http://opencorporates.com/companies/gb/8075822764","944671303"
"London Borough of Redbridge","http://opendatacommunities.org/doc/london-borough-council/redbridge","3BLEACENTFND","LEA Centrally Held School Funds","3CSUPPORTSEN","Supporting Special Education Needs","REV","Revenue","R3923","EOTAS Commissioning Service","04-SUPPLIES","Supplies And Services","04K","Miscellaneous expenses","6220","Education Otherwise","60337291","201712",07/03/2017 00:00:00,7447.5,"67981","Schools - Local Authority","REDACTED DATA","THE FOREST ACADEMY","7835788","http://opencorporates.com/companies/gb/7835788",""
"London Borough of Redbridge","http://opendatacommunities.org/doc/london-borough-council/redbridge","6BADULTSOCIA","Adult Social Care","6COLDINCMENT","Older People (65 or over) incl. Older Mentally Ill","REV","Revenue","R4385","OP Nursing","05-THIRD","Third Party Payments","05H","Private contractors","6909","Nursing Homes","90825833","201712",24/02/2017 00:00:00,9534.88,"64710","Residential Care Homes","REDACTED DATA","MEADBANK NURSING CENTRE(BUPA CARE SERVICES)","",,""
"London Borough of Redbridge","http://opendatacommunities.org/doc/london-borough-council/redbridge","6BADULTSOCIA","Adult Social Care","6COLDINCMENT","Older People (65 or over) incl. Older Mentally Ill","REV","Revenue","R4385","OP Nursing","05-THIRD","Third Party Payments","05H","Private contractors","6909","Nursing Homes","90825833","201712",24/02/2017 00:00:00,1792,"64710","Residential Care Homes","REDACTED DATA","MEADBANK NURSING CENTRE(BUPA CARE SERVICES)","",,""
"London Borough of Redbridge","http://opendatacommunities.org/doc/london-borough-council/redbridge","6BADULTSOCIA","Adult Social Care","6COLDINCMENT","Older People (65 or over) incl. Older Mentally Ill","REV","Revenue","R4385","OP Nursing","09-INCOME","Income","09C","Customer and Client Receipts","8557","Nursing Home Charges","90825833","201712",24/02/2017 00:00:00,-1792,"64710","Residential Care Homes","REDACTED DATA","MEADBANK NURSING CENTRE(BUPA CARE SERVICES)","",,""
"London Borough of Redbridge","http://opendatacommunities.org/doc/london-borough-council/redbridge","6BADULTSOCIA","Adult Social Care","6COLDINCMENT","Older People (65 or over) incl. Older Mentally Ill","REV","Revenue","R4385","OP Nursing","09-INCOME","Income","09C","Customer and Client Receipts","8557","Nursing Home Charges","90825833","201712",24/02/2017 00:00:00,-2091.2,"64710","Residential Care Homes","REDACTED DATA","MEADBANK NURSING CENTRE(BUPA CARE SERVICES)","",,""
"London Borough of Redbridge","http://opendatacommunities.org/doc/london-borough-council/redbridge","6BADULTSOCIA","Adult Social Care","6CADLEARNDIS","Adults Under 65 with Learning Disabilities","REV","Revenue","R4185","LD - Supported Living","06-TRANSFER","Transfer Payments","06B","Social Services Clients","7066","Supportive Lodgings (Transfer Payments)","90832011","201712",01/03/2017 00:00:00,7595,"1266","Accommodation Agencies - Residential","REDACTED DATA","SPENCER & ARLINGTON LTD","4377774","http://opencorporates.com/companies/gb/4377774",""
"London Borough of Redbridge","http://opendatacommunities.org/doc/london-borough-council/redbridge","6BADULTSOCIA","Adult Social Care","6CADLEARNDIS","Adults Under 65 with Learning Disabilities","REV","Revenue","R4185","LD - Supported Living","09-INCOME","Income","09C","Customer and Client Receipts","8553","Care Package Charges","90832011","201712",01/03/2017 00:00:00,-162.36,"1266","Accommodation Agencies - Residential","REDACTED DATA","SPENCER & ARLINGTON LTD","4377774","http://opencorporates.com/companies/gb/4377774",""
"London Borough of Redbridge","http://opendatacommunities.org/doc/london-borough-council/redbridge","6BADULTSOCIA","Adult Social Care","6CADMENHLTH","Adults Under 65 with Mental Health Needs","REV","Revenue","R4190","MH - Residential Care","05-THIRD","Third Party Payments","05F","Voluntary associations","6802","Residential Homes","90826003","201712",24/02/2017 00:00:00,7430.75,"64710","Residential Care Homes","REDACTED DATA","ASHWOOD HOUSE LIMITED","3581014","http://opencorporates.com/companies/gb/3581014",""
"London Borough of Redbridge","http://opendatacommunities.org/doc/london-borough-council/redbridge","6BADULTSOCIA","Adult Social Care","6COLDINCMENT","Older People (65 or over) incl. Older Mentally Ill","REV","Revenue","R4378","OP Residential","05-THIRD","Third Party Payments","05F","Voluntary associations","6802","Residential Homes","90825874","201712",24/02/2017 00:00:00,7411.04,"17020","Charities and Voluntary Organisations","REDACTED DATA","VIBRANCE","7094318","http://opencorporates.com/companies/gb/7094318",""
"London Borough of Redbridge","http://opendatacommunities.org/doc/london-borough-council/redbridge","6BADULTSOCIA","Adult Social Care","6CADLEARNDIS","Adults Under 65 with Learning Disabilities","REV","Revenue","R4383","LD - External Day Care","05-THIRD","Third Party Payments","05H","Private contractors","6904","Day Centres","90831938","201712",01/03/2017 00:00:00,7376.91,"68200","Schools - Special","REDACTED DATA","KISHARON","",,""
"London Borough of Redbridge","http://opendatacommunities.org/doc/london-borough-council/redbridge","6BSOCIALSERV","Social Services","6CCHILLOOKED","Children Looked After","REV","Revenue","R2127","Fostering and Adoption","04-SUPPLIES","Supplies And Services","04H","Grants and subscriptions","5955","Fees","60338969","201712",23/03/2017 00:00:00,7373.46,"17020","Charities and Voluntary Organisations","REDACTED DATA","BARNARDOS (TANNERS LANE)","1227919","http://opencorporates.com/companies/gb/1227919","507477337"
"London Borough of Redbridge","http://opendatacommunities.org/doc/london-borough-council/redbridge","6BADULTSOCIA","Adult Social Care","6CADMENHLTH","Adults Under 65 with Mental Health Needs","REV","Revenue","R4190","MH - Residential Care","05-THIRD","Third Party Payments","05F","Voluntary associations","6802","Residential Homes","90825891","201712",24/02/2017 00:00:00,7364.48,"17020","Charities and Voluntary Organisations","REDACTED DATA","VIBRANCE","7094318","http://opencorporates.com/companies/gb/7094318",""
"London Borough of Redbridge","http://opendatacommunities.org/doc/london-borough-council/redbridge","3BNONSCHFUND","Non-School Funding","6CCHILLOOKED","Children Looked After","REV","Revenue","R2238","Looked After Children Placements LA","05-THIRD","Third Party Payments","05H","Private contractors","6907","Private Homes","60336473","201712",28/02/2017 00:00:00,7362.5,"64710","Residential Care Homes","REDACTED DATA","RESOLVE CARE LTD","7905820","http://opencorporates.com/companies/gb/7905820",""
"London Borough of Redbridge","http://opendatacommunities.org/doc/london-borough-council/redbridge","6BADULTSOCIA","Adult Social Care","6CADMENHLTH","Adults Under 65 with Mental Health Needs","REV","Revenue","R4190","MH - Residential Care","05-THIRD","Third Party Payments","05F","Voluntary associations","6802","Residential Homes","90825871","201712",24/02/2017 00:00:00,7339.2,"17020","Charities and Voluntary Organisations","REDACTED DATA","VIBRANCE","7094318","http://opencorporates.com/companies/gb/7094318",""
"London Borough of Redbridge","http://opendatacommunities.org/doc/london-borough-council/redbridge","6BADULTSOCIA","Adult Social Care","6CADMENHLTH","Adults Under 65 with Mental Health Needs","REV","Revenue","R4190","MH - Residential Care","05-THIRD","Third Party Payments","05F","Voluntary associations","6802","Residential Homes","90825878","201712",24/02/2017 00:00:00,7337.76,"17020","Charities and Voluntary Organisations","REDACTED DATA","VIBRANCE","7094318","http://opencorporates.com/companies/gb/7094318",""
"London Borough of Redbridge","http://opendatacommunities.org/doc/london-borough-council/redbridge","6BADULTSOCIA","Adult Social Care","6CADMENHLTH","Adults Under 65 with Mental Health Needs","REV","Revenue","R4190","MH - Residential Care","05-THIRD","Third Party Payments","05F","Voluntary associations","6802","Residential Homes","90825873","201712",24/02/2017 00:00:00,7337.76,"17020","Charities and Voluntary Organisations","REDACTED DATA","VIBRANCE","7094318","http://opencorporates.com/companies/gb/7094318",""
"London Borough of Redbridge","http://opendatacommunities.org/doc/london-borough-council/redbridge","4BMANGT&SUPP","Management & Support Services","4CHIGHRDROUT","Highways/Roads (Routine)","REV","Revenue","R7066","Vehicle Activated Signs","05-THIRD","Third Party Payments","05H","Private contractors","6915","Contractor Payments","3465512","201712",16/03/2017 00:00:00,6113.72,"21555","Construction Contractors - General","REDACTED DATA","SKANSKA CONSTRUCTION UK LTD","191408","http://opencorporates.com/companies/gb/191408","378403142"
"London Borough of Redbridge","http://opendatacommunities.org/doc/london-borough-council/redbridge","6BADULTSOCIA","Adult Social Care","6CADLEARNDIS","Adults Under 65 with Learning Disabilities","REV","Revenue","R4185","LD - Supported Living","06-TRANSFER","Transfer Payments","06B","Social Services Clients","7066","Supportive Lodgings (Transfer Payments)","90825895","201712",01/03/2017 00:00:00,6321.43,"24200","Day Centres","REDACTED DATA","ACCESS LIVING LTD","6043506","http://opencorporates.com/companies/gb/6043506",""
"London Borough of Redbridge","http://opendatacommunities.org/doc/london-borough-council/redbridge","6BADULTSOCIA","Adult Social Care","6CADLEARNDIS","Adults Under 65 with Learning Disabilities","REV","Revenue","R4185","LD - Supported Living","09-INCOME","Income","09C","Customer and Client Receipts","8553","Care Package Charges","90825895","201712",01/03/2017 00:00:00,980.76,"24200","Day Centres","REDACTED DATA","ACCESS LIVING LTD","6043506","http://opencorporates.com/companies/gb/6043506",""
"London Borough of Redbridge","http://opendatacommunities.org/doc/london-borough-council/redbridge","3BINDSCHFUND","Individual School Funds","3CDELSECOND","Delegated Individual Secondary School Budgets","REV","Revenue","S3571","KING SOLOMON - Exams","04-SUPPLIES","Supplies And Services","04H","Grants and subscriptions","5955","Fees","60338826","201712",10/03/2017 00:00:00,7301.35,"62725","Quality Procedures Processes and Assessment","REDACTED DATA","ASSESSMENT & QUALIFICATION ALLIANCE (GUILDFORD)","3644723","http://opencorporates.com/companies/gb/3644723","709227045"
"London Borough of Redbridge","http://opendatacommunities.org/doc/london-borough-council/redbridge","9BNONBVO","Outside the BVACOP Objective Structure","9CNONBVO","Outside the BVACOP Objective Structure","CAP","Capital","C4091","Mayfield - Add Sec Sch Places","99-NONBV","Capital, Balance Sheet and Control","50E","Capital - Contract Payments","9163","Main Building / structure","70093590","201712",22/03/2017 00:00:00,6082.17,"44140","House Builders","REDACTED DATA","SWIFT MANUFACTURING SOLUTIONS LTD","7825214","http://opencorporates.com/companies/gb/7825214","125236145"
"London Borough of Redbridge","http://opendatacommunities.org/doc/london-borough-council/redbridge","3BLEACENTFND","LEA Centrally Held School Funds","3CNONSCH","Non Schools","REV","Revenue","R2230","Local Offer","05-THIRD","Third Party Payments","05A","Independent units within the council","6513","Agency & Contracted Services","60336710","201712",01/03/2017 00:00:00,6061,"31230","Employment and Recruitment Agencies","REDACTED DATA","BALTIMORE CONSULTING LTD","8387222","http://opencorporates.com/companies/gb/8387222","156711312"
"London Borough of Redbridge","http://opendatacommunities.org/doc/london-borough-council/redbridge","3BLEACENTFND","LEA Centrally Held School Funds","3CNONSCH","Non Schools","REV","Revenue","R3257","ISS Investment Programme","04-SUPPLIES","Supplies And Services","04A","Equipment, furniture and materials","5502","Equipment Purchase","60339334","201712",28/03/2017 00:00:00,7271.91,"67981","Schools - Local Authority","REDACTED DATA","RAY LODGE PRIMARY SCHOOL A/C","",,""
"London Borough of Redbridge","http://opendatacommunities.org/doc/london-borough-council/redbridge","3BNONSCHFUND","Non-School Funding","3CNONSCH","Non Schools","REV","Revenue","R3962","Early Years - 3 and 4 Year Olds","05-THIRD","Third Party Payments","05A","Independent units within the council","6517","Non-Maintained Schools","3464921","201712",15/03/2017 00:00:00,7266.35,"17580","Childcare Services","REDACTED DATA","BARNEY BEARS NURSERY LTD","4793063","http://opencorporates.com/companies/gb/4793063",""
"London Borough of Redbridge","http://opendatacommunities.org/doc/london-borough-council/redbridge","6BADULTSOCIA","Adult Social Care","6CADPHYSDIS","Adults Under 65 with Phys Disab or Sensory Impair","REV","Revenue","R4061","PD Section 5 and 6 Direct Payments","06-TRANSFER","Transfer Payments","06B","Social Services Clients","7053","Direct Payments","3463474","201712",07/03/2017 00:00:00,7554.04,"90005","Home Care Services DP","REDACTED DATA","REDACTED DATA","",,""
"London Borough of Redbridge","http://opendatacommunities.org/doc/london-borough-council/redbridge","6BADULTSOCIA","Adult Social Care","6CADPHYSDIS","Adults Under 65 with Phys Disab or Sensory Impair","REV","Revenue","R4061","PD Section 5 and 6 Direct Payments","09-INCOME","Income","09C","Customer and Client Receipts","8545","Direct Payments Income","3463474","201712",07/03/2017 00:00:00,-289.68,"90005","Home Care Services DP","REDACTED DATA","REDACTED DATA","",,""
"London Borough of Redbridge","http://opendatacommunities.org/doc/london-borough-council/redbridge","5BGFHOUSING","General Fund Housing","5CHOMELESS","Homelessness","REV","Revenue","R5630","HAC Temporary Accomodation","05-THIRD","Third Party Payments","05H","Private contractors","6912","Bed & Breakfast Charges","70093130","201712",06/03/2017 00:00:00,6053,"47846","Letting Agents","REDACTED DATA","FINEFAIR CONSULTANCY  LTD(NIGHTLY LETS)","4661895","http://opencorporates.com/companies/gb/4661895","809945391"
"London Borough of Redbridge","http://opendatacommunities.org/doc/london-borough-council/redbridge","5BGFHOUSING","General Fund Housing","5CHOMELESS","Homelessness","REV","Revenue","R5632","Abury House Hostel","04-SUPPLIES","Supplies And Services","04K","Miscellaneous expenses","6258","Security Patrol Services","60337331","201712",28/02/2017 00:00:00,6038.88,"69240","Security Services","REDACTED DATA","CHARTER SECURITY PLC","1530957","http://opencorporates.com/companies/gb/1530957","342117968"
"London Borough of Redbridge","http://opendatacommunities.org/doc/london-borough-council/redbridge","6BADULTSOCIA","Adult Social Care","6CADMENHLTH","Adults Under 65 with Mental Health Needs","REV","Revenue","R4190","MH - Residential Care","05-THIRD","Third Party Payments","05F","Voluntary associations","6802","Residential Homes","90825859","201712",24/02/2017 00:00:00,7245.92,"64710","Residential Care Homes","REDACTED DATA","KHAYA PROJECT LTD","6036747","http://opencorporates.com/companies/gb/6036747",""
"London Borough of Redbridge","http://opendatacommunities.org/doc/london-borough-council/redbridge","3BNONSCHFUND","Non-School Funding","3CNONSCH","Non Schools","REV","Revenue","R3962","Early Years - 3 and 4 Year Olds","05-THIRD","Third Party Payments","05A","Independent units within the council","6517","Non-Maintained Schools","3464853","201712",15/03/2017 00:00:00,7238.42,"59760","Playgroups, Nurseries and Creches","REDACTED DATA","LITTLE CHERUBS KINDERGARTEN LTD","",,""
"London Borough of Redbridge","http://opendatacommunities.org/doc/london-borough-council/redbridge","1BCENTRALPUB","Central Services to the Public","1CLOCALTAXCO","Local Tax Collection","REV","Revenue","R5760","Local Tax Collection","04-SUPPLIES","Supplies And Services","04H","Grants and subscriptions","5957","Bailiff Fees","70093255","201712",01/02/2017 00:00:00,398.8,"24230","Debt Collection Agencies","REDACTED DATA","EQUITA LIMITED","",,""
"London Borough of Redbridge","http://opendatacommunities.org/doc/london-borough-council/redbridge","9BNONBVO","Outside the BVACOP Objective Structure","9CNONBVO","Outside the BVACOP Objective Structure","BAL","Balance Sheet","B0059","DUMMY VAT ACCOUNT","99-NONBV","Capital, Balance Sheet and Control","50L","Debtors","9359","VAT only invoices","70093255","201712",01/02/2017 00:00:00,-6748.74,"24230","Debt Collection Agencies","REDACTED DATA","EQUITA LIMITED","",,""
"London Borough of Redbridge","http://opendatacommunities.org/doc/london-borough-council/redbridge","9BNONBVO","Outside the BVACOP Objective Structure","9CNONBVO","Outside the BVACOP Objective Structure","BAL","Balance Sheet","B0059","DUMMY VAT ACCOUNT","99-NONBV","Capital, Balance Sheet and Control","50L","Debtors","9359","VAT only invoices","70093255","201712",01/02/2017 00:00:00,6748.74,"24230","Debt Collection Agencies","REDACTED DATA","EQUITA LIMITED","",,""
"London Borough of Redbridge","http://opendatacommunities.org/doc/london-borough-council/redbridge","3BNONSCHFUND","Non-School Funding","3CNONSCH","Non Schools","REV","Revenue","R3962","Early Years - 3 and 4 Year Olds","05-THIRD","Third Party Payments","05A","Independent units within the council","6517","Non-Maintained Schools","3464922","201712",15/03/2017 00:00:00,7191.33,"59760","Playgroups, Nurseries and Creches","REDACTED DATA","LITTLE LEARNERS ILFORD","CHARITY251549","http://opencorporates.com/companies/gb/CHARITY251549",""
"London Borough of Redbridge","http://opendatacommunities.org/doc/london-borough-council/redbridge","6BADULTSOCIA","Adult Social Care","6CADLEARNDIS","Adults Under 65 with Learning Disabilities","REV","Revenue","R4188","LD - Residential Care","05-THIRD","Third Party Payments","05F","Voluntary associations","6802","Residential Homes","90826148","201712",24/02/2017 00:00:00,7461.16,"17020","Charities and Voluntary Organisations","REDACTED DATA","NORWOOD SCHOOLS LTD","516901","http://opencorporates.com/companies/gb/516901","629720917"
"London Borough of Redbridge","http://opendatacommunities.org/doc/london-borough-council/redbridge","6BADULTSOCIA","Adult Social Care","6CADLEARNDIS","Adults Under 65 with Learning Disabilities","REV","Revenue","R4188","LD - Residential Care","09-INCOME","Income","09C","Customer and Client Receipts","8555","Accommodation Charges","90826148","201712",24/02/2017 00:00:00,-321.8,"17020","Charities and Voluntary Organisations","REDACTED DATA","NORWOOD SCHOOLS LTD","516901","http://opencorporates.com/companies/gb/516901","629720917"
"London Borough of Redbridge","http://opendatacommunities.org/doc/london-borough-council/redbridge","1BCENTRALPUB","Central Services to the Public","1CREGBDM","Reg. of Births, Deaths & Marriages","REV","Revenue","R3970","Corporate Policy and Performance","04-SUPPLIES","Supplies And Services","04F","Communications and computing","5858","Phones","3464695","201712",03/03/2017 00:00:00,12.5,"51500","Mobile Phones - Personal Numbers","REDACTED DATA","EE LTD (AIRTIME PAYMENTS)","2382161","http://opencorporates.com/companies/gb/2382161","771592016"
"London Borough of Redbridge","http://opendatacommunities.org/doc/london-borough-council/redbridge","1BCENTRALPUB","Central Services to the Public","1CTRADSURDEF","Trading Account Surpluses & Deficits","REV","Revenue","R3971","Local London Director","04-SUPPLIES","Supplies And Services","04F","Communications and computing","5858","Phones","3464695","201712",03/03/2017 00:00:00,15.5,"51500","Mobile Phones - Personal Numbers","REDACTED DATA","EE LTD (AIRTIME PAYMENTS)","2382161","http://opencorporates.com/companies/gb/2382161","771592016"
"London Borough of Redbridge","http://opendatacommunities.org/doc/london-borough-council/redbridge","1BCENTRALPUB","Central Services to the Public","1CTRADSURDEF","Trading Account Surpluses & Deficits","REV","Revenue","R5770","Income Assessment","04-SUPPLIES","Supplies And Services","04F","Communications and computing","5858","Phones","3464695","201712",03/03/2017 00:00:00,12.5,"51500","Mobile Phones - Personal Numbers","REDACTED DATA","EE LTD (AIRTIME PAYMENTS)","2382161","http://opencorporates.com/companies/gb/2382161","771592016"
"London Borough of Redbridge","http://opendatacommunities.org/doc/london-borough-council/redbridge","1BCENTRALPUB","Central Services to the Public","1CTRADSURDEF","Trading Account Surpluses & Deficits","REV","Revenue","R5830","System and Transactional Development","04-SUPPLIES","Supplies And Services","04F","Communications and computing","5858","Phones","3464695","201712",03/03/2017 00:00:00,12.5,"51500","Mobile Phones - Personal Numbers","REDACTED DATA","EE LTD (AIRTIME PAYMENTS)","2382161","http://opencorporates.com/companies/gb/2382161","771592016"
"London Borough of Redbridge","http://opendatacommunities.org/doc/london-borough-council/redbridge","1BCENTRALPUB","Central Services to the Public","1CTRADSURDEF","Trading Account Surpluses & Deficits","REV","Revenue","R6755","Emergency Plan Stratgy","04-SUPPLIES","Supplies And Services","04F","Communications and computing","5858","Phones","3464695","201712",03/03/2017 00:00:00,12.5,"51500","Mobile Phones - Personal Numbers","REDACTED DATA","EE LTD (AIRTIME PAYMENTS)","2382161","http://opencorporates.com/companies/gb/2382161","771592016"
"London Borough of Redbridge","http://opendatacommunities.org/doc/london-borough-council/redbridge","1BCORPDEM","Corporate & Democratic Core","1CCORPMGT","Corporate Management","REV","Revenue","R0029","Chief Executive","04-SUPPLIES","Supplies And Services","04F","Communications and computing","5858","Phones","3464695","201712",03/03/2017 00:00:00,20,"51500","Mobile Phones - Personal Numbers","REDACTED DATA","EE LTD (AIRTIME PAYMENTS)","2382161","http://opencorporates.com/companies/gb/2382161","771592016"
"London Borough of Redbridge","http://opendatacommunities.org/doc/london-borough-council/redbridge","1BOTHEROPI&E","Other Operating Income & Expenditure","1CTRADSURDEF","Trading Account Surpluses & Deficits","REV","Revenue","R7207","Building Services","04-SUPPLIES","Supplies And Services","04F","Communications and computing","5858","Phones","3464695","201712",03/03/2017 00:00:00,12.5,"51500","Mobile Phones - Personal Numbers","REDACTED DATA","EE LTD (AIRTIME PAYMENTS)","2382161","http://opencorporates.com/companies/gb/2382161","771592016"
"London Borough of Redbridge","http://opendatacommunities.org/doc/london-borough-council/redbridge","1BOTHEROPI&E","Other Operating Income & Expenditure","1CTRADSURDEF","Trading Account Surpluses & Deficits","REV","Revenue","R7207","Building Services","04-SUPPLIES","Supplies And Services","04F","Communications and computing","5858","Phones","3464695","201712",03/03/2017 00:00:00,12.5,"51500","Mobile Phones - Personal Numbers","REDACTED DATA","EE LTD (AIRTIME PAYMENTS)","2382161","http://opencorporates.com/companies/gb/2382161","771592016"
"London Borough of Redbridge","http://opendatacommunities.org/doc/london-borough-council/redbridge","1BOTHEROPI&E","Other Operating Income & Expenditure","1CTRADSURDEF","Trading Account Surpluses & Deficits","REV","Revenue","R7207","Building Services","04-SUPPLIES","Supplies And Services","04F","Communications and computing","5858","Phones","3464695","201712",03/03/2017 00:00:00,12.5,"51500","Mobile Phones - Personal Numbers","REDACTED DATA","EE LTD (AIRTIME PAYMENTS)","2382161","http://opencorporates.com/companies/gb/2382161","771592016"
"London Borough of Redbridge","http://opendatacommunities.org/doc/london-borough-council/redbridge","1BOTHEROPI&E","Other Operating Income & Expenditure","1CTRADSURDEF","Trading Account Surpluses & Deficits","REV","Revenue","R7207","Building Services","04-SUPPLIES","Supplies And Services","04F","Communications and computing","5858","Phones","3464695","201712",03/03/2017 00:00:00,12.5,"51500","Mobile Phones - Personal Numbers","REDACTED DATA","EE LTD (AIRTIME PAYMENTS)","2382161","http://opencorporates.com/companies/gb/2382161","771592016"
"London Borough of Redbridge","http://opendatacommunities.org/doc/london-borough-council/redbridge","1BOTHEROPI&E","Other Operating Income & Expenditure","1CTRADSURDEF","Trading Account Surpluses & Deficits","REV","Revenue","R9152","Financial Services","04-SUPPLIES","Supplies And Services","04F","Communications and computing","5858","Phones","3464695","201712",03/03/2017 00:00:00,12.5,"51500","Mobile Phones - Personal Numbers","REDACTED DATA","EE LTD (AIRTIME PAYMENTS)","2382161","http://opencorporates.com/companies/gb/2382161","771592016"
"London Borough of Redbridge","http://opendatacommunities.org/doc/london-borough-council/redbridge","1BOTHEROPI&E","Other Operating Income & Expenditure","1CTRADSURDEF","Trading Account Surpluses & Deficits","REV","Revenue","R9152","Financial Services","04-SUPPLIES","Supplies And Services","04F","Communications and computing","5858","Phones","3464695","201712",03/03/2017 00:00:00,12.5,"51500","Mobile Phones - Personal Numbers","REDACTED DATA","EE LTD (AIRTIME PAYMENTS)","2382161","http://opencorporates.com/companies/gb/2382161","771592016"
"London Borough of Redbridge","http://opendatacommunities.org/doc/london-borough-council/redbridge","1BOTHEROPI&E","Other Operating Income & Expenditure","1CTRADSURDEF","Trading Account Surpluses & Deficits","REV","Revenue","R9252","IT Services","04-SUPPLIES","Supplies And Services","04F","Communications and computing","5858","Phones","3464695","201712",03/03/2017 00:00:00,15,"51500","Mobile Phones - Personal Numbers","REDACTED DATA","EE LTD (AIRTIME PAYMENTS)","2382161","http://opencorporates.com/companies/gb/2382161","771592016"
"London Borough of Redbridge","http://opendatacommunities.org/doc/london-borough-council/redbridge","1BOTHEROPI&E","Other Operating Income & Expenditure","1CTRADSURDEF","Trading Account Surpluses & Deficits","REV","Revenue","R9252","IT Services","04-SUPPLIES","Supplies And Services","04F","Communications and computing","5858","Phones","3464695","201712",03/03/2017 00:00:00,15,"51500","Mobile Phones - Personal Numbers","REDACTED DATA","EE LTD (AIRTIME PAYMENTS)","2382161","http://opencorporates.com/companies/gb/2382161","771592016"
"London Borough of Redbridge","http://opendatacommunities.org/doc/london-borough-council/redbridge","1BOTHEROPI&E","Other Operating Income & Expenditure","1CTRADSURDEF","Trading Account Surpluses & Deficits","REV","Revenue","R9252","IT Services","04-SUPPLIES","Supplies And Services","04F","Communications and computing","5858","Phones","3464695","201712",03/03/2017 00:00:00,15,"51500","Mobile Phones - Personal Numbers","REDACTED DATA","EE LTD (AIRTIME PAYMENTS)","2382161","http://opencorporates.com/companies/gb/2382161","771592016"
"London Borough of Redbridge","http://opendatacommunities.org/doc/london-borough-council/redbridge","1BOTHEROPI&E","Other Operating Income & Expenditure","1CTRADSURDEF","Trading Account Surpluses & Deficits","REV","Revenue","R9252","IT Services","04-SUPPLIES","Supplies And Services","04F","Communications and computing","5858","Phones","3464695","201712",03/03/2017 00:00:00,15,"51500","Mobile Phones - Personal Numbers","REDACTED DATA","EE LTD (AIRTIME PAYMENTS)","2382161","http://opencorporates.com/companies/gb/2382161","771592016"
"London Borough of Redbridge","http://opendatacommunities.org/doc/london-borough-council/redbridge","1BOTHEROPI&E","Other Operating Income & Expenditure","1CTRADSURDEF","Trading Account Surpluses & Deficits","REV","Revenue","R9252","IT Services","04-SUPPLIES","Supplies And Services","04F","Communications and computing","5858","Phones","3464695","201712",03/03/2017 00:00:00,30,"51500","Mobile Phones - Personal Numbers","REDACTED DATA","EE LTD (AIRTIME PAYMENTS)","2382161","http://opencorporates.com/companies/gb/2382161","771592016"
"London Borough of Redbridge","http://opendatacommunities.org/doc/london-borough-council/redbridge","1BOTHEROPI&E","Other Operating Income & Expenditure","1CTRADSURDEF","Trading Account Surpluses & Deficits","REV","Revenue","R9252","IT Services","04-SUPPLIES","Supplies And Services","04F","Communications and computing","5858","Phones","3464695","201712",03/03/2017 00:00:00,15,"51500","Mobile Phones - Personal Numbers","REDACTED DATA","EE LTD (AIRTIME PAYMENTS)","2382161","http://opencorporates.com/companies/gb/2382161","771592016"
"London Borough of Redbridge","http://opendatacommunities.org/doc/london-borough-council/redbridge","1BOTHEROPI&E","Other Operating Income & Expenditure","1CTRADSURDEF","Trading Account Surpluses & Deficits","REV","Revenue","R9252","IT Services","04-SUPPLIES","Supplies And Services","04F","Communications and computing","5858","Phones","3464695","201712",03/03/2017 00:00:00,15,"51500","Mobile Phones - Personal Numbers","REDACTED DATA","EE LTD (AIRTIME PAYMENTS)","2382161","http://opencorporates.com/companies/gb/2382161","771592016"
"London Borough of Redbridge","http://opendatacommunities.org/doc/london-borough-council/redbridge","1BOTHEROPI&E","Other Operating Income & Expenditure","1CTRADSURDEF","Trading Account Surpluses & Deficits","REV","Revenue","R9252","IT Services","04-SUPPLIES","Supplies And Services","04F","Communications and computing","5858","Phones","3464695","201712",03/03/2017 00:00:00,15,"51500","Mobile Phones - Personal Numbers","REDACTED DATA","EE LTD (AIRTIME PAYMENTS)","2382161","http://opencorporates.com/companies/gb/2382161","771592016"
"London Borough of Redbridge","http://opendatacommunities.org/doc/london-borough-council/redbridge","1BOTHEROPI&E","Other Operating Income & Expenditure","1CTRADSURDEF","Trading Account Surpluses & Deficits","REV","Revenue","R9252","IT Services","04-SUPPLIES","Supplies And Services","04F","Communications and computing","5858","Phones","3464695","201712",03/03/2017 00:00:00,15,"51500","Mobile Phones - Personal Numbers","REDACTED DATA","EE LTD (AIRTIME PAYMENTS)","2382161","http://opencorporates.com/companies/gb/2382161","771592016"
"London Borough of Redbridge","http://opendatacommunities.org/doc/london-borough-council/redbridge","1BOTHEROPI&E","Other Operating Income & Expenditure","1CTRADSURDEF","Trading Account Surpluses & Deficits","REV","Revenue","R9252","IT Services","04-SUPPLIES","Supplies And Services","04F","Communications and computing","5858","Phones","3464695","201712",03/03/2017 00:00:00,15,"51500","Mobile Phones - Personal Numbers","REDACTED DATA","EE LTD (AIRTIME PAYMENTS)","2382161","http://opencorporates.com/companies/gb/2382161","771592016"
"London Borough of Redbridge","http://opendatacommunities.org/doc/london-borough-council/redbridge","1BOTHEROPI&E","Other Operating Income & Expenditure","1CTRADSURDEF","Trading Account Surpluses & Deficits","REV","Revenue","R9252","IT Services","04-SUPPLIES","Supplies And Services","04F","Communications and computing","5858","Phones","3464695","201712",03/03/2017 00:00:00,15,"51500","Mobile Phones - Personal Numbers","REDACTED DATA","EE LTD (AIRTIME PAYMENTS)","2382161","http://opencorporates.com/companies/gb/2382161","771592016"
"London Borough of Redbridge","http://opendatacommunities.org/doc/london-borough-council/redbridge","1BOTHEROPI&E","Other Operating Income & Expenditure","1CTRADSURDEF","Trading Account Surpluses & Deficits","REV","Revenue","R9252","IT Services","04-SUPPLIES","Supplies And Services","04F","Communications and computing","5858","Phones","3464695","201712",03/03/2017 00:00:00,15,"51500","Mobile Phones - Personal Numbers","REDACTED DATA","EE LTD (AIRTIME PAYMENTS)","2382161","http://opencorporates.com/companies/gb/2382161","771592016"
"London Borough of Redbridge","http://opendatacommunities.org/doc/london-borough-council/redbridge","1BOTHEROPI&E","Other Operating Income & Expenditure","1CTRADSURDEF","Trading Account Surpluses & Deficits","REV","Revenue","R9252","IT Services","04-SUPPLIES","Supplies And Services","04F","Communications and computing","5858","Phones","3464695","201712",03/03/2017 00:00:00,15,"51500","Mobile Phones - Personal Numbers","REDACTED DATA","EE LTD (AIRTIME PAYMENTS)","2382161","http://opencorporates.com/companies/gb/2382161","771592016"
"London Borough of Redbridge","http://opendatacommunities.org/doc/london-borough-council/redbridge","1BOTHEROPI&E","Other Operating Income & Expenditure","1CTRADSURDEF","Trading Account Surpluses & Deficits","REV","Revenue","R9252","IT Services","04-SUPPLIES","Supplies And Services","04F","Communications and computing","5858","Phones","3464695","201712",03/03/2017 00:00:00,15,"51500","Mobile Phones - Personal Numbers","REDACTED DATA","EE LTD (AIRTIME PAYMENTS)","2382161","http://opencorporates.com/companies/gb/2382161","771592016"
"London Borough of Redbridge","http://opendatacommunities.org/doc/london-borough-council/redbridge","1BOTHEROPI&E","Other Operating Income & Expenditure","1CTRADSURDEF","Trading Account Surpluses & Deficits","REV","Revenue","R9252","IT Services","04-SUPPLIES","Supplies And Services","04F","Communications and computing","5858","Phones","3464695","201712",03/03/2017 00:00:00,15,"51500","Mobile Phones - Personal Numbers","REDACTED DATA","EE LTD (AIRTIME PAYMENTS)","2382161","http://opencorporates.com/companies/gb/2382161","771592016"
"London Borough of Redbridge","http://opendatacommunities.org/doc/london-borough-council/redbridge","1BOTHEROPI&E","Other Operating Income & Expenditure","1CTRADSURDEF","Trading Account Surpluses & Deficits","REV","Revenue","R9252","IT Services","04-SUPPLIES","Supplies And Services","04F","Communications and computing","5858","Phones","3464695","201712",03/03/2017 00:00:00,15,"51500","Mobile Phones - Personal Numbers","REDACTED DATA","EE LTD (AIRTIME PAYMENTS)","2382161","http://opencorporates.com/companies/gb/2382161","771592016"
"London Borough of Redbridge","http://opendatacommunities.org/doc/london-borough-council/redbridge","1BOTHEROPI&E","Other Operating Income & Expenditure","1CTRADSURDEF","Trading Account Surpluses & Deficits","REV","Revenue","R9252","IT Services","04-SUPPLIES","Supplies And Services","04F","Communications and computing","5858","Phones","3464695","201712",03/03/2017 00:00:00,15,"51500","Mobile Phones - Personal Numbers","REDACTED DATA","EE LTD (AIRTIME PAYMENTS)","2382161","http://opencorporates.com/companies/gb/2382161","771592016"
"London Borough of Redbridge","http://opendatacommunities.org/doc/london-borough-council/redbridge","1BOTHEROPI&E","Other Operating Income & Expenditure","1CTRADSURDEF","Trading Account Surpluses & Deficits","REV","Revenue","R9252","IT Services","04-SUPPLIES","Supplies And Services","04F","Communications and computing","5858","Phones","3464695","201712",03/03/2017 00:00:00,15,"51500","Mobile Phones - Personal Numbers","REDACTED DATA","EE LTD (AIRTIME PAYMENTS)","2382161","http://opencorporates.com/companies/gb/2382161","771592016"
"London Borough of Redbridge","http://opendatacommunities.org/doc/london-borough-council/redbridge","1BOTHEROPI&E","Other Operating Income & Expenditure","1CTRADSURDEF","Trading Account Surpluses & Deficits","REV","Revenue","R9252","IT Services","04-SUPPLIES","Supplies And Services","04F","Communications and computing","5858","Phones","3464695","201712",03/03/2017 00:00:00,15.5,"51500","Mobile Phones - Personal Numbers","REDACTED DATA","EE LTD (AIRTIME PAYMENTS)","2382161","http://opencorporates.com/companies/gb/2382161","771592016"
"London Borough of Redbridge","http://opendatacommunities.org/doc/london-borough-council/redbridge","1BOTHEROPI&E","Other Operating Income & Expenditure","1CTRADSURDEF","Trading Account Surpluses & Deficits","REV","Revenue","R9252","IT Services","04-SUPPLIES","Supplies And Services","04F","Communications and computing","5858","Phones","3464695","201712",03/03/2017 00:00:00,15,"51500","Mobile Phones - Personal Numbers","REDACTED DATA","EE LTD (AIRTIME PAYMENTS)","2382161","http://opencorporates.com/companies/gb/2382161","771592016"
"London Borough of Redbridge","http://opendatacommunities.org/doc/london-borough-council/redbridge","1BOTHEROPI&E","Other Operating Income & Expenditure","1CTRADSURDEF","Trading Account Surpluses & Deficits","REV","Revenue","R9252","IT Services","04-SUPPLIES","Supplies And Services","04F","Communications and computing","5858","Phones","3464695","201712",03/03/2017 00:00:00,15,"51500","Mobile Phones - Personal Numbers","REDACTED DATA","EE LTD (AIRTIME PAYMENTS)","2382161","http://opencorporates.com/companies/gb/2382161","771592016"
"London Borough of Redbridge","http://opendatacommunities.org/doc/london-borough-council/redbridge","1BOTHEROPI&E","Other Operating Income & Expenditure","1CTRADSURDEF","Trading Account Surpluses & Deficits","REV","Revenue","R9252","IT Services","04-SUPPLIES","Supplies And Services","04F","Communications and computing","5858","Phones","3464695","201712",03/03/2017 00:00:00,15,"51500","Mobile Phones - Personal Numbers","REDACTED DATA","EE LTD (AIRTIME PAYMENTS)","2382161","http://opencorporates.com/companies/gb/2382161","771592016"
"London Borough of Redbridge","http://opendatacommunities.org/doc/london-borough-council/redbridge","5BGFHOUSING","General Fund Housing","5CHOMELESS","Homelessness","REV","Revenue","R5630","HAC Temporary Accomodation","05-THIRD","Third Party Payments","05H","Private contractors","6900","Nightly Let Plus Charges","3465726","201712",17/03/2017 00:00:00,1288,"31230","Employment and Recruitment Agencies","REDACTED DATA","ADAM HTT LIMITED T/A ADAM","7718565","http://opencorporates.com/companies/gb/7718565","198573349"
"London Borough of Redbridge","http://opendatacommunities.org/doc/london-borough-council/redbridge","5BGFHOUSING","General Fund Housing","5CHOMELESS","Homelessness","REV","Revenue","R5630","HAC Temporary Accomodation","05-THIRD","Third Party Payments","05H","Private contractors","6900","Nightly Let Plus Charges","3465726","201712",17/03/2017 00:00:00,1260,"31230","Employment and Recruitment Agencies","REDACTED DATA","ADAM HTT LIMITED T/A ADAM","7718565","http://opencorporates.com/companies/gb/7718565","198573349"
"London Borough of Redbridge","http://opendatacommunities.org/doc/london-borough-council/redbridge","5BGFHOUSING","General Fund Housing","5CHOMELESS","Homelessness","REV","Revenue","R5630","HAC Temporary Accomodation","05-THIRD","Third Party Payments","05H","Private contractors","6900","Nightly Let Plus Charges","3465726","201712",17/03/2017 00:00:00,1260,"31230","Employment and Recruitment Agencies","REDACTED DATA","ADAM HTT LIMITED T/A ADAM","7718565","http://opencorporates.com/companies/gb/7718565","198573349"
"London Borough of Redbridge","http://opendatacommunities.org/doc/london-borough-council/redbridge","5BGFHOUSING","General Fund Housing","5CHOMELESS","Homelessness","REV","Revenue","R5630","HAC Temporary Accomodation","05-THIRD","Third Party Payments","05H","Private contractors","6900","Nightly Let Plus Charges","3465726","201712",17/03/2017 00:00:00,1064,"31230","Employment and Recruitment Agencies","REDACTED DATA","ADAM HTT LIMITED T/A ADAM","7718565","http://opencorporates.com/companies/gb/7718565","198573349"
"London Borough of Redbridge","http://opendatacommunities.org/doc/london-borough-council/redbridge","5BGFHOUSING","General Fund Housing","5CHOMELESS","Homelessness","REV","Revenue","R5630","HAC Temporary Accomodation","05-THIRD","Third Party Payments","05H","Private contractors","6900","Nightly Let Plus Charges","3465726","201712",17/03/2017 00:00:00,1680,"31230","Employment and Recruitment Agencies","REDACTED DATA","ADAM HTT LIMITED T/A ADAM","7718565","http://opencorporates.com/companies/gb/7718565","198573349"
"London Borough of Redbridge","http://opendatacommunities.org/doc/london-borough-council/redbridge","5BGFHOUSING","General Fund Housing","5CHOMELESS","Homelessness","REV","Revenue","R5630","HAC Temporary Accomodation","05-THIRD","Third Party Payments","05H","Private contractors","6900","Nightly Let Plus Charges","3465726","201712",17/03/2017 00:00:00,1260,"31230","Employment and Recruitment Agencies","REDACTED DATA","ADAM HTT LIMITED T/A ADAM","7718565","http://opencorporates.com/companies/gb/7718565","198573349"
"London Borough of Redbridge","http://opendatacommunities.org/doc/london-borough-council/redbridge","5BGFHOUSING","General Fund Housing","5CHOMELESS","Homelessness","REV","Revenue","R5630","HAC Temporary Accomodation","05-THIRD","Third Party Payments","05H","Private contractors","6900","Nightly Let Plus Charges","3465726","201712",17/03/2017 00:00:00,1008,"31230","Employment and Recruitment Agencies","REDACTED DATA","ADAM HTT LIMITED T/A ADAM","7718565","http://opencorporates.com/companies/gb/7718565","198573349"
"London Borough of Redbridge","http://opendatacommunities.org/doc/london-borough-council/redbridge","5BGFHOUSING","General Fund Housing","5CHOMELESS","Homelessness","REV","Revenue","R5630","HAC Temporary Accomodation","05-THIRD","Third Party Payments","05H","Private contractors","6900","Nightly Let Plus Charges","3465726","201712",17/03/2017 00:00:00,1260,"31230","Employment and Recruitment Agencies","REDACTED DATA","ADAM HTT LIMITED T/A ADAM","7718565","http://opencorporates.com/companies/gb/7718565","198573349"
"London Borough of Redbridge","http://opendatacommunities.org/doc/london-borough-council/redbridge","5BGFHOUSING","General Fund Housing","5CHOMELESS","Homelessness","REV","Revenue","R5630","HAC Temporary Accomodation","05-THIRD","Third Party Payments","05H","Private contractors","6900","Nightly Let Plus Charges","3465726","201712",17/03/2017 00:00:00,784,"31230","Employment and Recruitment Agencies","REDACTED DATA","ADAM HTT LIMITED T/A ADAM","7718565","http://opencorporates.com/companies/gb/7718565","198573349"
"London Borough of Redbridge","http://opendatacommunities.org/doc/london-borough-council/redbridge","5BGFHOUSING","General Fund Housing","5CHOMELESS","Homelessness","REV","Revenue","R5630","HAC Temporary Accomodation","05-THIRD","Third Party Payments","05H","Private contractors","6900","Nightly Let Plus Charges","3465726","201712",17/03/2017 00:00:00,1064,"31230","Employment and Recruitment Agencies","REDACTED DATA","ADAM HTT LIMITED T/A ADAM","7718565","http://opencorporates.com/companies/gb/7718565","198573349"
"London Borough of Redbridge","http://opendatacommunities.org/doc/london-borough-council/redbridge","5BGFHOUSING","General Fund Housing","5CHOMELESS","Homelessness","REV","Revenue","R5630","HAC Temporary Accomodation","05-THIRD","Third Party Payments","05H","Private contractors","6900","Nightly Let Plus Charges","3465726","201712",17/03/2017 00:00:00,1204,"31230","Employment and Recruitment Agencies","REDACTED DATA","ADAM HTT LIMITED T/A ADAM","7718565","http://opencorporates.com/companies/gb/7718565","198573349"
"London Borough of Redbridge","http://opendatacommunities.org/doc/london-borough-council/redbridge","1BOTHEROPI&E","Other Operating Income & Expenditure","1CTRADSURDEF","Trading Account Surpluses & Deficits","REV","Revenue","R9252","IT Services","04-SUPPLIES","Supplies And Services","04F","Communications and computing","5858","Phones","3464695","201712",03/03/2017 00:00:00,12,"51500","Mobile Phones - Personal Numbers","REDACTED DATA","EE LTD (AIRTIME PAYMENTS)","2382161","http://opencorporates.com/companies/gb/2382161","771592016"
"London Borough of Redbridge","http://opendatacommunities.org/doc/london-borough-council/redbridge","1BOTHEROPI&E","Other Operating Income & Expenditure","1CTRADSURDEF","Trading Account Surpluses & Deficits","REV","Revenue","R9252","IT Services","04-SUPPLIES","Supplies And Services","04F","Communications and computing","5858","Phones","3464695","201712",03/03/2017 00:00:00,15,"51500","Mobile Phones - Personal Numbers","REDACTED DATA","EE LTD (AIRTIME PAYMENTS)","2382161","http://opencorporates.com/companies/gb/2382161","771592016"
"London Borough of Redbridge","http://opendatacommunities.org/doc/london-borough-council/redbridge","1BOTHEROPI&E","Other Operating Income & Expenditure","1CTRADSURDEF","Trading Account Surpluses & Deficits","REV","Revenue","R9252","IT Services","04-SUPPLIES","Supplies And Services","04F","Communications and computing","5858","Phones","3464695","201712",03/03/2017 00:00:00,15,"51500","Mobile Phones - Personal Numbers","REDACTED DATA","EE LTD (AIRTIME PAYMENTS)","2382161","http://opencorporates.com/companies/gb/2382161","771592016"
"London Borough of Redbridge","http://opendatacommunities.org/doc/london-borough-council/redbridge","1BOTHEROPI&E","Other Operating Income & Expenditure","1CTRADSURDEF","Trading Account Surpluses & Deficits","REV","Revenue","R9252","IT Services","04-SUPPLIES","Supplies And Services","04F","Communications and computing","5858","Phones","3464695","201712",03/03/2017 00:00:00,15,"51500","Mobile Phones - Personal Numbers","REDACTED DATA","EE LTD (AIRTIME PAYMENTS)","2382161","http://opencorporates.com/companies/gb/2382161","771592016"
"London Borough of Redbridge","http://opendatacommunities.org/doc/london-borough-council/redbridge","1BOTHEROPI&E","Other Operating Income & Expenditure","1CTRADSURDEF","Trading Account Surpluses & Deficits","REV","Revenue","R9252","IT Services","04-SUPPLIES","Supplies And Services","04F","Communications and computing","5858","Phones","3464695","201712",03/03/2017 00:00:00,15,"51500","Mobile Phones - Personal Numbers","REDACTED DATA","EE LTD (AIRTIME PAYMENTS)","2382161","http://opencorporates.com/companies/gb/2382161","771592016"
"London Borough of Redbridge","http://opendatacommunities.org/doc/london-borough-council/redbridge","1BOTHEROPI&E","Other Operating Income & Expenditure","1CTRADSURDEF","Trading Account Surpluses & Deficits","REV","Revenue","R9252","IT Services","04-SUPPLIES","Supplies And Services","04F","Communications and computing","5858","Phones","3464695","201712",03/03/2017 00:00:00,15,"51500","Mobile Phones - Personal Numbers","REDACTED DATA","EE LTD (AIRTIME PAYMENTS)","2382161","http://opencorporates.com/companies/gb/2382161","771592016"
"London Borough of Redbridge","http://opendatacommunities.org/doc/london-borough-council/redbridge","1BOTHEROPI&E","Other Operating Income & Expenditure","1CTRADSURDEF","Trading Account Surpluses & Deficits","REV","Revenue","R9252","IT Services","04-SUPPLIES","Supplies And Services","04F","Communications and computing","5858","Phones","3464695","201712",03/03/2017 00:00:00,15,"51500","Mobile Phones - Personal Numbers","REDACTED DATA","EE LTD (AIRTIME PAYMENTS)","2382161","http://opencorporates.com/companies/gb/2382161","771592016"
"London Borough of Redbridge","http://opendatacommunities.org/doc/london-borough-council/redbridge","1BOTHEROPI&E","Other Operating Income & Expenditure","1CTRADSURDEF","Trading Account Surpluses & Deficits","REV","Revenue","R9252","IT Services","04-SUPPLIES","Supplies And Services","04F","Communications and computing","5858","Phones","3464695","201712",03/03/2017 00:00:00,12.5,"51500","Mobile Phones - Personal Numbers","REDACTED DATA","EE LTD (AIRTIME PAYMENTS)","2382161","http://opencorporates.com/companies/gb/2382161","771592016"
"London Borough of Redbridge","http://opendatacommunities.org/doc/london-borough-council/redbridge","1BOTHEROPI&E","Other Operating Income & Expenditure","1CTRADSURDEF","Trading Account Surpluses & Deficits","REV","Revenue","R9252","IT Services","04-SUPPLIES","Supplies And Services","04F","Communications and computing","5858","Phones","3464695","201712",03/03/2017 00:00:00,15,"51500","Mobile Phones - Personal Numbers","REDACTED DATA","EE LTD (AIRTIME PAYMENTS)","2382161","http://opencorporates.com/companies/gb/2382161","771592016"
"London Borough of Redbridge","http://opendatacommunities.org/doc/london-borough-council/redbridge","1BOTHEROPI&E","Other Operating Income & Expenditure","1CTRADSURDEF","Trading Account Surpluses & Deficits","REV","Revenue","R9252","IT Services","04-SUPPLIES","Supplies And Services","04F","Communications and computing","5858","Phones","3464695","201712",03/03/2017 00:00:00,15.5,"51500","Mobile Phones - Personal Numbers","REDACTED DATA","EE LTD (AIRTIME PAYMENTS)","2382161","http://opencorporates.com/companies/gb/2382161","771592016"
"London Borough of Redbridge","http://opendatacommunities.org/doc/london-borough-council/redbridge","1BOTHEROPI&E","Other Operating Income & Expenditure","1CTRADSURDEF","Trading Account Surpluses & Deficits","REV","Revenue","R9252","IT Services","04-SUPPLIES","Supplies And Services","04F","Communications and computing","5858","Phones","3464695","201712",03/03/2017 00:00:00,15,"51500","Mobile Phones - Personal Numbers","REDACTED DATA","EE LTD (AIRTIME PAYMENTS)","2382161","http://opencorporates.com/companies/gb/2382161","771592016"
"London Borough of Redbridge","http://opendatacommunities.org/doc/london-borough-council/redbridge","5BGFHOUSING","General Fund Housing","5CHOMELESS","Homelessness","REV","Revenue","R5630","HAC Temporary Accomodation","05-THIRD","Third Party Payments","05H","Private contractors","6900","Nightly Let Plus Charges","3465726","201712",17/03/2017 00:00:00,1260,"31230","Employment and Recruitment Agencies","REDACTED DATA","ADAM HTT LIMITED T/A ADAM","7718565","http://opencorporates.com/companies/gb/7718565","198573349"
"London Borough of Redbridge","http://opendatacommunities.org/doc/london-borough-council/redbridge","5BGFHOUSING","General Fund Housing","5CHOMELESS","Homelessness","REV","Revenue","R5630","HAC Temporary Accomodation","05-THIRD","Third Party Payments","05H","Private contractors","6900","Nightly Let Plus Charges","3465726","201712",17/03/2017 00:00:00,1260,"31230","Employment and Recruitment Agencies","REDACTED DATA","ADAM HTT LIMITED T/A ADAM","7718565","http://opencorporates.com/companies/gb/7718565","198573349"
"London Borough of Redbridge","http://opendatacommunities.org/doc/london-borough-council/redbridge","5BGFHOUSING","General Fund Housing","5CHOMELESS","Homelessness","REV","Revenue","R5630","HAC Temporary Accomodation","05-THIRD","Third Party Payments","05H","Private contractors","6900","Nightly Let Plus Charges","3465726","201712",17/03/2017 00:00:00,1260,"31230","Employment and Recruitment Agencies","REDACTED DATA","ADAM HTT LIMITED T/A ADAM","7718565","http://opencorporates.com/companies/gb/7718565","198573349"
"London Borough of Redbridge","http://opendatacommunities.org/doc/london-borough-council/redbridge","5BGFHOUSING","General Fund Housing","5CHOMELESS","Homelessness","REV","Revenue","R5630","HAC Temporary Accomodation","05-THIRD","Third Party Payments","05H","Private contractors","6900","Nightly Let Plus Charges","3465726","201712",17/03/2017 00:00:00,1008,"31230","Employment and Recruitment Agencies","REDACTED DATA","ADAM HTT LIMITED T/A ADAM","7718565","http://opencorporates.com/companies/gb/7718565","198573349"
"London Borough of Redbridge","http://opendatacommunities.org/doc/london-borough-council/redbridge","5BGFHOUSING","General Fund Housing","5CHOMELESS","Homelessness","REV","Revenue","R5630","HAC Temporary Accomodation","05-THIRD","Third Party Payments","05H","Private contractors","6900","Nightly Let Plus Charges","3465726","201712",17/03/2017 00:00:00,1540,"31230","Employment and Recruitment Agencies","REDACTED DATA","ADAM HTT LIMITED T/A ADAM","7718565","http://opencorporates.com/companies/gb/7718565","198573349"
"London Borough of Redbridge","http://opendatacommunities.org/doc/london-borough-council/redbridge","5BGFHOUSING","General Fund Housing","5CHOMELESS","Homelessness","REV","Revenue","R5630","HAC Temporary Accomodation","05-THIRD","Third Party Payments","05H","Private contractors","6900","Nightly Let Plus Charges","3465726","201712",17/03/2017 00:00:00,840,"31230","Employment and Recruitment Agencies","REDACTED DATA","ADAM HTT LIMITED T/A ADAM","7718565","http://opencorporates.com/companies/gb/7718565","198573349"
"London Borough of Redbridge","http://opendatacommunities.org/doc/london-borough-council/redbridge","5BGFHOUSING","General Fund Housing","5CHOMELESS","Homelessness","REV","Revenue","R5630","HAC Temporary Accomodation","05-THIRD","Third Party Payments","05H","Private contractors","6900","Nightly Let Plus Charges","3465726","201712",17/03/2017 00:00:00,1008,"31230","Employment and Recruitment Agencies","REDACTED DATA","ADAM HTT LIMITED T/A ADAM","7718565","http://opencorporates.com/companies/gb/7718565","198573349"
"London Borough of Redbridge","http://opendatacommunities.org/doc/london-borough-council/redbridge","5BGFHOUSING","General Fund Housing","5CHOMELESS","Homelessness","REV","Revenue","R5630","HAC Temporary Accomodation","05-THIRD","Third Party Payments","05H","Private contractors","6900","Nightly Let Plus Charges","3465726","201712",17/03/2017 00:00:00,840,"31230","Employment and Recruitment Agencies","REDACTED DATA","ADAM HTT LIMITED T/A ADAM","7718565","http://opencorporates.com/companies/gb/7718565","198573349"
"London Borough of Redbridge","http://opendatacommunities.org/doc/london-borough-council/redbridge","5BGFHOUSING","General Fund Housing","5CHOMELESS","Homelessness","REV","Revenue","R5630","HAC Temporary Accomodation","05-THIRD","Third Party Payments","05H","Private contractors","6900","Nightly Let Plus Charges","3465726","201712",17/03/2017 00:00:00,1400,"31230","Employment and Recruitment Agencies","REDACTED DATA","ADAM HTT LIMITED T/A ADAM","7718565","http://opencorporates.com/companies/gb/7718565","198573349"
"London Borough of Redbridge","http://opendatacommunities.org/doc/london-borough-council/redbridge","5BGFHOUSING","General Fund Housing","5CHOMELESS","Homelessness","REV","Revenue","R5630","HAC Temporary Accomodation","05-THIRD","Third Party Payments","05H","Private contractors","6900","Nightly Let Plus Charges","3465726","201712",17/03/2017 00:00:00,812,"31230","Employment and Recruitment Agencies","REDACTED DATA","ADAM HTT LIMITED T/A ADAM","7718565","http://opencorporates.com/companies/gb/7718565","198573349"
"London Borough of Redbridge","http://opendatacommunities.org/doc/london-borough-council/redbridge","5BGFHOUSING","General Fund Housing","5CHOMELESS","Homelessness","REV","Revenue","R5630","HAC Temporary Accomodation","05-THIRD","Third Party Payments","05H","Private contractors","6900","Nightly Let Plus Charges","3465726","201712",17/03/2017 00:00:00,784,"31230","Employment and Recruitment Agencies","REDACTED DATA","ADAM HTT LIMITED T/A ADAM","7718565","http://opencorporates.com/companies/gb/7718565","198573349"
"London Borough of Redbridge","http://opendatacommunities.org/doc/london-borough-council/redbridge","1BOTHEROPI&E","Other Operating Income & Expenditure","1CTRADSURDEF","Trading Account Surpluses & Deficits","REV","Revenue","R9252","IT Services","04-SUPPLIES","Supplies And Services","04F","Communications and computing","5858","Phones","3464695","201712",03/03/2017 00:00:00,15,"51500","Mobile Phones - Personal Numbers","REDACTED DATA","EE LTD (AIRTIME PAYMENTS)","2382161","http://opencorporates.com/companies/gb/2382161","771592016"
"London Borough of Redbridge","http://opendatacommunities.org/doc/london-borough-council/redbridge","1BOTHEROPI&E","Other Operating Income & Expenditure","1CTRADSURDEF","Trading Account Surpluses & Deficits","REV","Revenue","R9252","IT Services","04-SUPPLIES","Supplies And Services","04F","Communications and computing","5858","Phones","3464695","201712",03/03/2017 00:00:00,15,"51500","Mobile Phones - Personal Numbers","REDACTED DATA","EE LTD (AIRTIME PAYMENTS)","2382161","http://opencorporates.com/companies/gb/2382161","771592016"
"London Borough of Redbridge","http://opendatacommunities.org/doc/london-borough-council/redbridge","1BOTHEROPI&E","Other Operating Income & Expenditure","1CTRADSURDEF","Trading Account Surpluses & Deficits","REV","Revenue","R9252","IT Services","04-SUPPLIES","Supplies And Services","04F","Communications and computing","5858","Phones","3464695","201712",03/03/2017 00:00:00,15.5,"51500","Mobile Phones - Personal Numbers","REDACTED DATA","EE LTD (AIRTIME PAYMENTS)","2382161","http://opencorporates.com/companies/gb/2382161","771592016"
"London Borough of Redbridge","http://opendatacommunities.org/doc/london-borough-council/redbridge","1BOTHEROPI&E","Other Operating Income & Expenditure","1CTRADSURDEF","Trading Account Surpluses & Deficits","REV","Revenue","R9252","IT Services","04-SUPPLIES","Supplies And Services","04F","Communications and computing","5858","Phones","3464695","201712",03/03/2017 00:00:00,15,"51500","Mobile Phones - Personal Numbers","REDACTED DATA","EE LTD (AIRTIME PAYMENTS)","2382161","http://opencorporates.com/companies/gb/2382161","771592016"
"London Borough of Redbridge","http://opendatacommunities.org/doc/london-borough-council/redbridge","1BOTHEROPI&E","Other Operating Income & Expenditure","1CTRADSURDEF","Trading Account Surpluses & Deficits","REV","Revenue","R9252","IT Services","04-SUPPLIES","Supplies And Services","04F","Communications and computing","5858","Phones","3464695","201712",03/03/2017 00:00:00,15,"51500","Mobile Phones - Personal Numbers","REDACTED DATA","EE LTD (AIRTIME PAYMENTS)","2382161","http://opencorporates.com/companies/gb/2382161","771592016"
"London Borough of Redbridge","http://opendatacommunities.org/doc/london-borough-council/redbridge","1BOTHEROPI&E","Other Operating Income & Expenditure","1CTRADSURDEF","Trading Account Surpluses & Deficits","REV","Revenue","R9252","IT Services","04-SUPPLIES","Supplies And Services","04F","Communications and computing","5858","Phones","3464695","201712",03/03/2017 00:00:00,12.5,"51500","Mobile Phones - Personal Numbers","REDACTED DATA","EE LTD (AIRTIME PAYMENTS)","2382161","http://opencorporates.com/companies/gb/2382161","771592016"
"London Borough of Redbridge","http://opendatacommunities.org/doc/london-borough-council/redbridge","1BOTHEROPI&E","Other Operating Income & Expenditure","1CTRADSURDEF","Trading Account Surpluses & Deficits","REV","Revenue","R9252","IT Services","04-SUPPLIES","Supplies And Services","04F","Communications and computing","5858","Phones","3464695","201712",03/03/2017 00:00:00,12,"51500","Mobile Phones - Personal Numbers","REDACTED DATA","EE LTD (AIRTIME PAYMENTS)","2382161","http://opencorporates.com/companies/gb/2382161","771592016"
"London Borough of Redbridge","http://opendatacommunities.org/doc/london-borough-council/redbridge","1BOTHEROPI&E","Other Operating Income & Expenditure","1CTRADSURDEF","Trading Account Surpluses & Deficits","REV","Revenue","R9252","IT Services","04-SUPPLIES","Supplies And Services","04F","Communications and computing","5858","Phones","3464695","201712",03/03/2017 00:00:00,12.5,"51500","Mobile Phones - Personal Numbers","REDACTED DATA","EE LTD (AIRTIME PAYMENTS)","2382161","http://opencorporates.com/companies/gb/2382161","771592016"
"London Borough of Redbridge","http://opendatacommunities.org/doc/london-borough-council/redbridge","1BOTHEROPI&E","Other Operating Income & Expenditure","1CTRADSURDEF","Trading Account Surpluses & Deficits","REV","Revenue","R9252","IT Services","04-SUPPLIES","Supplies And Services","04F","Communications and computing","5858","Phones","3464695","201712",03/03/2017 00:00:00,15,"51500","Mobile Phones - Personal Numbers","REDACTED DATA","EE LTD (AIRTIME PAYMENTS)","2382161","http://opencorporates.com/companies/gb/2382161","771592016"
"London Borough of Redbridge","http://opendatacommunities.org/doc/london-borough-council/redbridge","1BOTHEROPI&E","Other Operating Income & Expenditure","1CTRADSURDEF","Trading Account Surpluses & Deficits","REV","Revenue","R9252","IT Services","04-SUPPLIES","Supplies And Services","04F","Communications and computing","5858","Phones","3464695","201712",03/03/2017 00:00:00,15,"51500","Mobile Phones - Personal Numbers","REDACTED DATA","EE LTD (AIRTIME PAYMENTS)","2382161","http://opencorporates.com/companies/gb/2382161","771592016"
"London Borough of Redbridge","http://opendatacommunities.org/doc/london-borough-council/redbridge","1BOTHEROPI&E","Other Operating Income & Expenditure","1CTRADSURDEF","Trading Account Surpluses & Deficits","REV","Revenue","R9252","IT Services","04-SUPPLIES","Supplies And Services","04F","Communications and computing","5858","Phones","3464695","201712",03/03/2017 00:00:00,15,"51500","Mobile Phones - Personal Numbers","REDACTED DATA","EE LTD (AIRTIME PAYMENTS)","2382161","http://opencorporates.com/companies/gb/2382161","771592016"
"London Borough of Redbridge","http://opendatacommunities.org/doc/london-borough-council/redbridge","1BOTHEROPI&E","Other Operating Income & Expenditure","1CTRADSURDEF","Trading Account Surpluses & Deficits","REV","Revenue","R9252","IT Services","04-SUPPLIES","Supplies And Services","04F","Communications and computing","5858","Phones","3464695","201712",03/03/2017 00:00:00,15,"51500","Mobile Phones - Personal Numbers","REDACTED DATA","EE LTD (AIRTIME PAYMENTS)","2382161","http://opencorporates.com/companies/gb/2382161","771592016"
"London Borough of Redbridge","http://opendatacommunities.org/doc/london-borough-council/redbridge","1BOTHEROPI&E","Other Operating Income & Expenditure","1CTRADSURDEF","Trading Account Surpluses & Deficits","REV","Revenue","R9252","IT Services","04-SUPPLIES","Supplies And Services","04F","Communications and computing","5858","Phones","3464695","201712",03/03/2017 00:00:00,15,"51500","Mobile Phones - Personal Numbers","REDACTED DATA","EE LTD (AIRTIME PAYMENTS)","2382161","http://opencorporates.com/companies/gb/2382161","771592016"
"London Borough of Redbridge","http://opendatacommunities.org/doc/london-borough-council/redbridge","1BOTHEROPI&E","Other Operating Income & Expenditure","1CTRADSURDEF","Trading Account Surpluses & Deficits","REV","Revenue","R9252","IT Services","04-SUPPLIES","Supplies And Services","04F","Communications and computing","5858","Phones","3464695","201712",03/03/2017 00:00:00,15,"51500","Mobile Phones - Personal Numbers","REDACTED DATA","EE LTD (AIRTIME PAYMENTS)","2382161","http://opencorporates.com/companies/gb/2382161","771592016"
"London Borough of Redbridge","http://opendatacommunities.org/doc/london-borough-council/redbridge","1BOTHEROPI&E","Other Operating Income & Expenditure","1CTRADSURDEF","Trading Account Surpluses & Deficits","REV","Revenue","R9252","IT Services","04-SUPPLIES","Supplies And Services","04F","Communications and computing","5858","Phones","3464695","201712",03/03/2017 00:00:00,15,"51500","Mobile Phones - Personal Numbers","REDACTED DATA","EE LTD (AIRTIME PAYMENTS)","2382161","http://opencorporates.com/companies/gb/2382161","771592016"
"London Borough of Redbridge","http://opendatacommunities.org/doc/london-borough-council/redbridge","1BOTHEROPI&E","Other Operating Income & Expenditure","1CTRADSURDEF","Trading Account Surpluses & Deficits","REV","Revenue","R9252","IT Services","04-SUPPLIES","Supplies And Services","04F","Communications and computing","5858","Phones","3464695","201712",03/03/2017 00:00:00,15,"51500","Mobile Phones - Personal Numbers","REDACTED DATA","EE LTD (AIRTIME PAYMENTS)","2382161","http://opencorporates.com/companies/gb/2382161","771592016"
"London Borough of Redbridge","http://opendatacommunities.org/doc/london-borough-council/redbridge","1BOTHEROPI&E","Other Operating Income & Expenditure","1CTRADSURDEF","Trading Account Surpluses & Deficits","REV","Revenue","R9252","IT Services","04-SUPPLIES","Supplies And Services","04F","Communications and computing","5858","Phones","3464695","201712",03/03/2017 00:00:00,15,"51500","Mobile Phones - Personal Numbers","REDACTED DATA","EE LTD (AIRTIME PAYMENTS)","2382161","http://opencorporates.com/companies/gb/2382161","771592016"
"London Borough of Redbridge","http://opendatacommunities.org/doc/london-borough-council/redbridge","1BOTHEROPI&E","Other Operating Income & Expenditure","1CTRADSURDEF","Trading Account Surpluses & Deficits","REV","Revenue","R9252","IT Services","04-SUPPLIES","Supplies And Services","04F","Communications and computing","5858","Phones","3464695","201712",03/03/2017 00:00:00,15,"51500","Mobile Phones - Personal Numbers","REDACTED DATA","EE LTD (AIRTIME PAYMENTS)","2382161","http://opencorporates.com/companies/gb/2382161","771592016"
"London Borough of Redbridge","http://opendatacommunities.org/doc/london-borough-council/redbridge","1BOTHEROPI&E","Other Operating Income & Expenditure","1CTRADSURDEF","Trading Account Surpluses & Deficits","REV","Revenue","R9252","IT Services","04-SUPPLIES","Supplies And Services","04F","Communications and computing","5858","Phones","3464695","201712",03/03/2017 00:00:00,15,"51500","Mobile Phones - Personal Numbers","REDACTED DATA","EE LTD (AIRTIME PAYMENTS)","2382161","http://opencorporates.com/companies/gb/2382161","771592016"
"London Borough of Redbridge","http://opendatacommunities.org/doc/london-borough-council/redbridge","1BOTHEROPI&E","Other Operating Income & Expenditure","1CTRADSURDEF","Trading Account Surpluses & Deficits","REV","Revenue","R9252","IT Services","04-SUPPLIES","Supplies And Services","04F","Communications and computing","5858","Phones","3464695","201712",03/03/2017 00:00:00,15,"51500","Mobile Phones - Personal Numbers","REDACTED DATA","EE LTD (AIRTIME PAYMENTS)","2382161","http://opencorporates.com/companies/gb/2382161","771592016"
"London Borough of Redbridge","http://opendatacommunities.org/doc/london-borough-council/redbridge","1BOTHEROPI&E","Other Operating Income & Expenditure","1CTRADSURDEF","Trading Account Surpluses & Deficits","REV","Revenue","R9252","IT Services","04-SUPPLIES","Supplies And Services","04F","Communications and computing","5858","Phones","3464695","201712",03/03/2017 00:00:00,15,"51500","Mobile Phones - Personal Numbers","REDACTED DATA","EE LTD (AIRTIME PAYMENTS)","2382161","http://opencorporates.com/companies/gb/2382161","771592016"
"London Borough of Redbridge","http://opendatacommunities.org/doc/london-borough-council/redbridge","1BOTHEROPI&E","Other Operating Income & Expenditure","1CTRADSURDEF","Trading Account Surpluses & Deficits","REV","Revenue","R9252","IT Services","04-SUPPLIES","Supplies And Services","04F","Communications and computing","5858","Phones","3464695","201712",03/03/2017 00:00:00,15,"51500","Mobile Phones - Personal Numbers","REDACTED DATA","EE LTD (AIRTIME PAYMENTS)","2382161","http://opencorporates.com/companies/gb/2382161","771592016"
"London Borough of Redbridge","http://opendatacommunities.org/doc/london-borough-council/redbridge","1BOTHEROPI&E","Other Operating Income & Expenditure","1CTRADSURDEF","Trading Account Surpluses & Deficits","REV","Revenue","R9252","IT Services","04-SUPPLIES","Supplies And Services","04F","Communications and computing","5858","Phones","3464695","201712",03/03/2017 00:00:00,15,"51500","Mobile Phones - Personal Numbers","REDACTED DATA","EE LTD (AIRTIME PAYMENTS)","2382161","http://opencorporates.com/companies/gb/2382161","771592016"
"London Borough of Redbridge","http://opendatacommunities.org/doc/london-borough-council/redbridge","1BOTHEROPI&E","Other Operating Income & Expenditure","1CTRADSURDEF","Trading Account Surpluses & Deficits","REV","Revenue","R9252","IT Services","04-SUPPLIES","Supplies And Services","04F","Communications and computing","5858","Phones","3464695","201712",03/03/2017 00:00:00,15.5,"51500","Mobile Phones - Personal Numbers","REDACTED DATA","EE LTD (AIRTIME PAYMENTS)","2382161","http://opencorporates.com/companies/gb/2382161","771592016"
"London Borough of Redbridge","http://opendatacommunities.org/doc/london-borough-council/redbridge","1BOTHEROPI&E","Other Operating Income & Expenditure","1CTRADSURDEF","Trading Account Surpluses & Deficits","REV","Revenue","R9252","IT Services","04-SUPPLIES","Supplies And Services","04F","Communications and computing","5858","Phones","3464695","201712",03/03/2017 00:00:00,15,"51500","Mobile Phones - Personal Numbers","REDACTED DATA","EE LTD (AIRTIME PAYMENTS)","2382161","http://opencorporates.com/companies/gb/2382161","771592016"
"London Borough of Redbridge","http://opendatacommunities.org/doc/london-borough-council/redbridge","1BOTHEROPI&E","Other Operating Income & Expenditure","1CTRADSURDEF","Trading Account Surpluses & Deficits","REV","Revenue","R9252","IT Services","04-SUPPLIES","Supplies And Services","04F","Communications and computing","5858","Phones","3464695","201712",03/03/2017 00:00:00,15,"51500","Mobile Phones - Personal Numbers","REDACTED DATA","EE LTD (AIRTIME PAYMENTS)","2382161","http://opencorporates.com/companies/gb/2382161","771592016"
"London Borough of Redbridge","http://opendatacommunities.org/doc/london-borough-council/redbridge","1BOTHEROPI&E","Other Operating Income & Expenditure","1CTRADSURDEF","Trading Account Surpluses & Deficits","REV","Revenue","R9252","IT Services","04-SUPPLIES","Supplies And Services","04F","Communications and computing","5858","Phones","3464695","201712",03/03/2017 00:00:00,12.5,"51500","Mobile Phones - Personal Numbers","REDACTED DATA","EE LTD (AIRTIME PAYMENTS)","2382161","http://opencorporates.com/companies/gb/2382161","771592016"
"London Borough of Redbridge","http://opendatacommunities.org/doc/london-borough-council/redbridge","1BOTHEROPI&E","Other Operating Income & Expenditure","1CTRADSURDEF","Trading Account Surpluses & Deficits","REV","Revenue","R9252","IT Services","04-SUPPLIES","Supplies And Services","04F","Communications and computing","5858","Phones","3464695","201712",03/03/2017 00:00:00,15,"51500","Mobile Phones - Personal Numbers","REDACTED DATA","EE LTD (AIRTIME PAYMENTS)","2382161","http://opencorporates.com/companies/gb/2382161","771592016"
"London Borough of Redbridge","http://opendatacommunities.org/doc/london-borough-council/redbridge","1BOTHEROPI&E","Other Operating Income & Expenditure","1CTRADSURDEF","Trading Account Surpluses & Deficits","REV","Revenue","R9252","IT Services","04-SUPPLIES","Supplies And Services","04F","Communications and computing","5858","Phones","3464695","201712",03/03/2017 00:00:00,15,"51500","Mobile Phones - Personal Numbers","REDACTED DATA","EE LTD (AIRTIME PAYMENTS)","2382161","http://opencorporates.com/companies/gb/2382161","771592016"
"London Borough of Redbridge","http://opendatacommunities.org/doc/london-borough-council/redbridge","1BOTHEROPI&E","Other Operating Income & Expenditure","1CTRADSURDEF","Trading Account Surpluses & Deficits","REV","Revenue","R9252","IT Services","04-SUPPLIES","Supplies And Services","04F","Communications and computing","5858","Phones","3464695","201712",03/03/2017 00:00:00,15,"51500","Mobile Phones - Personal Numbers","REDACTED DATA","EE LTD (AIRTIME PAYMENTS)","2382161","http://opencorporates.com/companies/gb/2382161","771592016"
"London Borough of Redbridge","http://opendatacommunities.org/doc/london-borough-council/redbridge","1BOTHEROPI&E","Other Operating Income & Expenditure","1CTRADSURDEF","Trading Account Surpluses & Deficits","REV","Revenue","R9252","IT Services","04-SUPPLIES","Supplies And Services","04F","Communications and computing","5858","Phones","3464695","201712",03/03/2017 00:00:00,12,"51500","Mobile Phones - Personal Numbers","REDACTED DATA","EE LTD (AIRTIME PAYMENTS)","2382161","http://opencorporates.com/companies/gb/2382161","771592016"
"London Borough of Redbridge","http://opendatacommunities.org/doc/london-borough-council/redbridge","1BOTHEROPI&E","Other Operating Income & Expenditure","1CTRADSURDEF","Trading Account Surpluses & Deficits","REV","Revenue","R9252","IT Services","04-SUPPLIES","Supplies And Services","04F","Communications and computing","5858","Phones","3464695","201712",03/03/2017 00:00:00,15,"51500","Mobile Phones - Personal Numbers","REDACTED DATA","EE LTD (AIRTIME PAYMENTS)","2382161","http://opencorporates.com/companies/gb/2382161","771592016"
"London Borough of Redbridge","http://opendatacommunities.org/doc/london-borough-council/redbridge","1BOTHEROPI&E","Other Operating Income & Expenditure","1CTRADSURDEF","Trading Account Surpluses & Deficits","REV","Revenue","R9252","IT Services","04-SUPPLIES","Supplies And Services","04F","Communications and computing","5858","Phones","3464695","201712",03/03/2017 00:00:00,15.5,"51500","Mobile Phones - Personal Numbers","REDACTED DATA","EE LTD (AIRTIME PAYMENTS)","2382161","http://opencorporates.com/companies/gb/2382161","771592016"
"London Borough of Redbridge","http://opendatacommunities.org/doc/london-borough-council/redbridge","1BOTHEROPI&E","Other Operating Income & Expenditure","1CTRADSURDEF","Trading Account Surpluses & Deficits","REV","Revenue","R9252","IT Services","04-SUPPLIES","Supplies And Services","04F","Communications and computing","5858","Phones","3464695","201712",03/03/2017 00:00:00,20,"51500","Mobile Phones - Personal Numbers","REDACTED DATA","EE LTD (AIRTIME PAYMENTS)","2382161","http://opencorporates.com/companies/gb/2382161","771592016"
"London Borough of Redbridge","http://opendatacommunities.org/doc/london-borough-council/redbridge","1BOTHEROPI&E","Other Operating Income & Expenditure","1CTRADSURDEF","Trading Account Surpluses & Deficits","REV","Revenue","R9252","IT Services","04-SUPPLIES","Supplies And Services","04F","Communications and computing","5858","Phones","3464695","201712",03/03/2017 00:00:00,12,"51500","Mobile Phones - Personal Numbers","REDACTED DATA","EE LTD (AIRTIME PAYMENTS)","2382161","http://opencorporates.com/companies/gb/2382161","771592016"
"London Borough of Redbridge","http://opendatacommunities.org/doc/london-borough-council/redbridge","1BOTHEROPI&E","Other Operating Income & Expenditure","1CTRADSURDEF","Trading Account Surpluses & Deficits","REV","Revenue","R9252","IT Services","04-SUPPLIES","Supplies And Services","04F","Communications and computing","5858","Phones","3464695","201712",03/03/2017 00:00:00,15,"51500","Mobile Phones - Personal Numbers","REDACTED DATA","EE LTD (AIRTIME PAYMENTS)","2382161","http://opencorporates.com/companies/gb/2382161","771592016"
"London Borough of Redbridge","http://opendatacommunities.org/doc/london-borough-council/redbridge","1BOTHEROPI&E","Other Operating Income & Expenditure","1CTRADSURDEF","Trading Account Surpluses & Deficits","REV","Revenue","R9252","IT Services","04-SUPPLIES","Supplies And Services","04F","Communications and computing","5858","Phones","3464695","201712",03/03/2017 00:00:00,15,"51500","Mobile Phones - Personal Numbers","REDACTED DATA","EE LTD (AIRTIME PAYMENTS)","2382161","http://opencorporates.com/companies/gb/2382161","771592016"
"London Borough of Redbridge","http://opendatacommunities.org/doc/london-borough-council/redbridge","1BOTHEROPI&E","Other Operating Income & Expenditure","1CTRADSURDEF","Trading Account Surpluses & Deficits","REV","Revenue","R9252","IT Services","04-SUPPLIES","Supplies And Services","04F","Communications and computing","5858","Phones","3464695","201712",03/03/2017 00:00:00,15,"51500","Mobile Phones - Personal Numbers","REDACTED DATA","EE LTD (AIRTIME PAYMENTS)","2382161","http://opencorporates.com/companies/gb/2382161","771592016"
"London Borough of Redbridge","http://opendatacommunities.org/doc/london-borough-council/redbridge","1BOTHEROPI&E","Other Operating Income & Expenditure","1CTRADSURDEF","Trading Account Surpluses & Deficits","REV","Revenue","R9252","IT Services","04-SUPPLIES","Supplies And Services","04F","Communications and computing","5858","Phones","3464695","201712",03/03/2017 00:00:00,15,"51500","Mobile Phones - Personal Numbers","REDACTED DATA","EE LTD (AIRTIME PAYMENTS)","2382161","http://opencorporates.com/companies/gb/2382161","771592016"
"London Borough of Redbridge","http://opendatacommunities.org/doc/london-borough-council/redbridge","1BOTHEROPI&E","Other Operating Income & Expenditure","1CTRADSURDEF","Trading Account Surpluses & Deficits","REV","Revenue","R9252","IT Services","04-SUPPLIES","Supplies And Services","04F","Communications and computing","5858","Phones","3464695","201712",03/03/2017 00:00:00,15,"51500","Mobile Phones - Personal Numbers","REDACTED DATA","EE LTD (AIRTIME PAYMENTS)","2382161","http://opencorporates.com/companies/gb/2382161","771592016"
"London Borough of Redbridge","http://opendatacommunities.org/doc/london-borough-council/redbridge","1BOTHEROPI&E","Other Operating Income & Expenditure","1CTRADSURDEF","Trading Account Surpluses & Deficits","REV","Revenue","R9252","IT Services","04-SUPPLIES","Supplies And Services","04F","Communications and computing","5858","Phones","3464695","201712",03/03/2017 00:00:00,15.5,"51500","Mobile Phones - Personal Numbers","REDACTED DATA","EE LTD (AIRTIME PAYMENTS)","2382161","http://opencorporates.com/companies/gb/2382161","771592016"
"London Borough of Redbridge","http://opendatacommunities.org/doc/london-borough-council/redbridge","1BOTHEROPI&E","Other Operating Income & Expenditure","1CTRADSURDEF","Trading Account Surpluses & Deficits","REV","Revenue","R9252","IT Services","04-SUPPLIES","Supplies And Services","04F","Communications and computing","5858","Phones","3464695","201712",03/03/2017 00:00:00,15,"51500","Mobile Phones - Personal Numbers","REDACTED DATA","EE LTD (AIRTIME PAYMENTS)","2382161","http://opencorporates.com/companies/gb/2382161","771592016"
"London Borough of Redbridge","http://opendatacommunities.org/doc/london-borough-council/redbridge","1BOTHEROPI&E","Other Operating Income & Expenditure","1CTRADSURDEF","Trading Account Surpluses & Deficits","REV","Revenue","R9252","IT Services","04-SUPPLIES","Supplies And Services","04F","Communications and computing","5858","Phones","3464695","201712",03/03/2017 00:00:00,65,"51500","Mobile Phones - Personal Numbers","REDACTED DATA","EE LTD (AIRTIME PAYMENTS)","2382161","http://opencorporates.com/companies/gb/2382161","771592016"
"London Borough of Redbridge","http://opendatacommunities.org/doc/london-borough-council/redbridge","1BOTHEROPI&E","Other Operating Income & Expenditure","1CTRADSURDEF","Trading Account Surpluses & Deficits","REV","Revenue","R9252","IT Services","04-SUPPLIES","Supplies And Services","04F","Communications and computing","5858","Phones","3464695","201712",03/03/2017 00:00:00,12.5,"51500","Mobile Phones - Personal Numbers","REDACTED DATA","EE LTD (AIRTIME PAYMENTS)","2382161","http://opencorporates.com/companies/gb/2382161","771592016"
"London Borough of Redbridge","http://opendatacommunities.org/doc/london-borough-council/redbridge","1BOTHEROPI&E","Other Operating Income & Expenditure","1CTRADSURDEF","Trading Account Surpluses & Deficits","REV","Revenue","R9252","IT Services","04-SUPPLIES","Supplies And Services","04F","Communications and computing","5858","Phones","3464695","201712",03/03/2017 00:00:00,15,"51500","Mobile Phones - Personal Numbers","REDACTED DATA","EE LTD (AIRTIME PAYMENTS)","2382161","http://opencorporates.com/companies/gb/2382161","771592016"
"London Borough of Redbridge","http://opendatacommunities.org/doc/london-borough-council/redbridge","1BOTHEROPI&E","Other Operating Income & Expenditure","1CTRADSURDEF","Trading Account Surpluses & Deficits","REV","Revenue","R9252","IT Services","04-SUPPLIES","Supplies And Services","04F","Communications and computing","5858","Phones","3464695","201712",03/03/2017 00:00:00,15,"51500","Mobile Phones - Personal Numbers","REDACTED DATA","EE LTD (AIRTIME PAYMENTS)","2382161","http://opencorporates.com/companies/gb/2382161","771592016"
"London Borough of Redbridge","http://opendatacommunities.org/doc/london-borough-council/redbridge","1BOTHEROPI&E","Other Operating Income & Expenditure","1CTRADSURDEF","Trading Account Surpluses & Deficits","REV","Revenue","R9252","IT Services","04-SUPPLIES","Supplies And Services","04F","Communications and computing","5858","Phones","3464695","201712",03/03/2017 00:00:00,15,"51500","Mobile Phones - Personal Numbers","REDACTED DATA","EE LTD (AIRTIME PAYMENTS)","2382161","http://opencorporates.com/companies/gb/2382161","771592016"
"London Borough of Redbridge","http://opendatacommunities.org/doc/london-borough-council/redbridge","1BOTHEROPI&E","Other Operating Income & Expenditure","1CTRADSURDEF","Trading Account Surpluses & Deficits","REV","Revenue","R9252","IT Services","04-SUPPLIES","Supplies And Services","04F","Communications and computing","5858","Phones","3464695","201712",03/03/2017 00:00:00,15,"51500","Mobile Phones - Personal Numbers","REDACTED DATA","EE LTD (AIRTIME PAYMENTS)","2382161","http://opencorporates.com/companies/gb/2382161","771592016"
"London Borough of Redbridge","http://opendatacommunities.org/doc/london-borough-council/redbridge","1BOTHEROPI&E","Other Operating Income & Expenditure","1CTRADSURDEF","Trading Account Surpluses & Deficits","REV","Revenue","R9252","IT Services","04-SUPPLIES","Supplies And Services","04F","Communications and computing","5858","Phones","3464695","201712",03/03/2017 00:00:00,15,"51500","Mobile Phones - Personal Numbers","REDACTED DATA","EE LTD (AIRTIME PAYMENTS)","2382161","http://opencorporates.com/companies/gb/2382161","771592016"
"London Borough of Redbridge","http://opendatacommunities.org/doc/london-borough-council/redbridge","1BOTHEROPI&E","Other Operating Income & Expenditure","1CTRADSURDEF","Trading Account Surpluses & Deficits","REV","Revenue","R9252","IT Services","04-SUPPLIES","Supplies And Services","04F","Communications and computing","5858","Phones","3464695","201712",03/03/2017 00:00:00,15,"51500","Mobile Phones - Personal Numbers","REDACTED DATA","EE LTD (AIRTIME PAYMENTS)","2382161","http://opencorporates.com/companies/gb/2382161","771592016"
"London Borough of Redbridge","http://opendatacommunities.org/doc/london-borough-council/redbridge","1BOTHEROPI&E","Other Operating Income & Expenditure","1CTRADSURDEF","Trading Account Surpluses & Deficits","REV","Revenue","R9252","IT Services","04-SUPPLIES","Supplies And Services","04F","Communications and computing","5858","Phones","3464695","201712",03/03/2017 00:00:00,15,"51500","Mobile Phones - Personal Numbers","REDACTED DATA","EE LTD (AIRTIME PAYMENTS)","2382161","http://opencorporates.com/companies/gb/2382161","771592016"
"London Borough of Redbridge","http://opendatacommunities.org/doc/london-borough-council/redbridge","1BOTHEROPI&E","Other Operating Income & Expenditure","1CTRADSURDEF","Trading Account Surpluses & Deficits","REV","Revenue","R9252","IT Services","04-SUPPLIES","Supplies And Services","04F","Communications and computing","5858","Phones","3464695","201712",03/03/2017 00:00:00,15,"51500","Mobile Phones - Personal Numbers","REDACTED DATA","EE LTD (AIRTIME PAYMENTS)","2382161","http://opencorporates.com/companies/gb/2382161","771592016"
"London Borough of Redbridge","http://opendatacommunities.org/doc/london-borough-council/redbridge","1BOTHEROPI&E","Other Operating Income & Expenditure","1CTRADSURDEF","Trading Account Surpluses & Deficits","REV","Revenue","R9252","IT Services","04-SUPPLIES","Supplies And Services","04F","Communications and computing","5858","Phones","3464695","201712",03/03/2017 00:00:00,15,"51500","Mobile Phones - Personal Numbers","REDACTED DATA","EE LTD (AIRTIME PAYMENTS)","2382161","http://opencorporates.com/companies/gb/2382161","771592016"
"London Borough of Redbridge","http://opendatacommunities.org/doc/london-borough-council/redbridge","1BOTHEROPI&E","Other Operating Income & Expenditure","1CTRADSURDEF","Trading Account Surpluses & Deficits","REV","Revenue","R9252","IT Services","04-SUPPLIES","Supplies And Services","04F","Communications and computing","5858","Phones","3464695","201712",03/03/2017 00:00:00,15,"51500","Mobile Phones - Personal Numbers","REDACTED DATA","EE LTD (AIRTIME PAYMENTS)","2382161","http://opencorporates.com/companies/gb/2382161","771592016"
"London Borough of Redbridge","http://opendatacommunities.org/doc/london-borough-council/redbridge","1BOTHEROPI&E","Other Operating Income & Expenditure","1CTRADSURDEF","Trading Account Surpluses & Deficits","REV","Revenue","R9252","IT Services","04-SUPPLIES","Supplies And Services","04F","Communications and computing","5858","Phones","3464695","201712",03/03/2017 00:00:00,15,"51500","Mobile Phones - Personal Numbers","REDACTED DATA","EE LTD (AIRTIME PAYMENTS)","2382161","http://opencorporates.com/companies/gb/2382161","771592016"
"London Borough of Redbridge","http://opendatacommunities.org/doc/london-borough-council/redbridge","1BOTHEROPI&E","Other Operating Income & Expenditure","1CTRADSURDEF","Trading Account Surpluses & Deficits","REV","Revenue","R9252","IT Services","04-SUPPLIES","Supplies And Services","04F","Communications and computing","5858","Phones","3464695","201712",03/03/2017 00:00:00,15,"51500","Mobile Phones - Personal Numbers","REDACTED DATA","EE LTD (AIRTIME PAYMENTS)","2382161","http://opencorporates.com/companies/gb/2382161","771592016"
"London Borough of Redbridge","http://opendatacommunities.org/doc/london-borough-council/redbridge","1BOTHEROPI&E","Other Operating Income & Expenditure","1CTRADSURDEF","Trading Account Surpluses & Deficits","REV","Revenue","R9252","IT Services","04-SUPPLIES","Supplies And Services","04F","Communications and computing","5858","Phones","3464695","201712",03/03/2017 00:00:00,15,"51500","Mobile Phones - Personal Numbers","REDACTED DATA","EE LTD (AIRTIME PAYMENTS)","2382161","http://opencorporates.com/companies/gb/2382161","771592016"
"London Borough of Redbridge","http://opendatacommunities.org/doc/london-borough-council/redbridge","1BOTHEROPI&E","Other Operating Income & Expenditure","1CTRADSURDEF","Trading Account Surpluses & Deficits","REV","Revenue","R9252","IT Services","04-SUPPLIES","Supplies And Services","04F","Communications and computing","5858","Phones","3464695","201712",03/03/2017 00:00:00,12.5,"51500","Mobile Phones - Personal Numbers","REDACTED DATA","EE LTD (AIRTIME PAYMENTS)","2382161","http://opencorporates.com/companies/gb/2382161","771592016"
"London Borough of Redbridge","http://opendatacommunities.org/doc/london-borough-council/redbridge","1BOTHEROPI&E","Other Operating Income & Expenditure","1CTRADSURDEF","Trading Account Surpluses & Deficits","REV","Revenue","R9252","IT Services","04-SUPPLIES","Supplies And Services","04F","Communications and computing","5858","Phones","3464695","201712",03/03/2017 00:00:00,15,"51500","Mobile Phones - Personal Numbers","REDACTED DATA","EE LTD (AIRTIME PAYMENTS)","2382161","http://opencorporates.com/companies/gb/2382161","771592016"
"London Borough of Redbridge","http://opendatacommunities.org/doc/london-borough-council/redbridge","1BOTHEROPI&E","Other Operating Income & Expenditure","1CTRADSURDEF","Trading Account Surpluses & Deficits","REV","Revenue","R9252","IT Services","04-SUPPLIES","Supplies And Services","04F","Communications and computing","5858","Phones","3464695","201712",03/03/2017 00:00:00,15,"51500","Mobile Phones - Personal Numbers","REDACTED DATA","EE LTD (AIRTIME PAYMENTS)","2382161","http://opencorporates.com/companies/gb/2382161","771592016"
"London Borough of Redbridge","http://opendatacommunities.org/doc/london-borough-council/redbridge","1BOTHEROPI&E","Other Operating Income & Expenditure","1CTRADSURDEF","Trading Account Surpluses & Deficits","REV","Revenue","R9252","IT Services","04-SUPPLIES","Supplies And Services","04F","Communications and computing","5858","Phones","3464695","201712",03/03/2017 00:00:00,15,"51500","Mobile Phones - Personal Numbers","REDACTED DATA","EE LTD (AIRTIME PAYMENTS)","2382161","http://opencorporates.com/companies/gb/2382161","771592016"
"London Borough of Redbridge","http://opendatacommunities.org/doc/london-borough-council/redbridge","1BOTHEROPI&E","Other Operating Income & Expenditure","1CTRADSURDEF","Trading Account Surpluses & Deficits","REV","Revenue","R9252","IT Services","04-SUPPLIES","Supplies And Services","04F","Communications and computing","5858","Phones","3464695","201712",03/03/2017 00:00:00,15,"51500","Mobile Phones - Personal Numbers","REDACTED DATA","EE LTD (AIRTIME PAYMENTS)","2382161","http://opencorporates.com/companies/gb/2382161","771592016"
"London Borough of Redbridge","http://opendatacommunities.org/doc/london-borough-council/redbridge","1BOTHEROPI&E","Other Operating Income & Expenditure","1CTRADSURDEF","Trading Account Surpluses & Deficits","REV","Revenue","R9252","IT Services","04-SUPPLIES","Supplies And Services","04F","Communications and computing","5858","Phones","3464695","201712",03/03/2017 00:00:00,30,"51500","Mobile Phones - Personal Numbers","REDACTED DATA","EE LTD (AIRTIME PAYMENTS)","2382161","http://opencorporates.com/companies/gb/2382161","771592016"
"London Borough of Redbridge","http://opendatacommunities.org/doc/london-borough-council/redbridge","1BOTHEROPI&E","Other Operating Income & Expenditure","1CTRADSURDEF","Trading Account Surpluses & Deficits","REV","Revenue","R9252","IT Services","04-SUPPLIES","Supplies And Services","04F","Communications and computing","5858","Phones","3464695","201712",03/03/2017 00:00:00,15,"51500","Mobile Phones - Personal Numbers","REDACTED DATA","EE LTD (AIRTIME PAYMENTS)","2382161","http://opencorporates.com/companies/gb/2382161","771592016"
"London Borough of Redbridge","http://opendatacommunities.org/doc/london-borough-council/redbridge","1BOTHEROPI&E","Other Operating Income & Expenditure","1CTRADSURDEF","Trading Account Surpluses & Deficits","REV","Revenue","R9252","IT Services","04-SUPPLIES","Supplies And Services","04F","Communications and computing","5858","Phones","3464695","201712",03/03/2017 00:00:00,15,"51500","Mobile Phones - Personal Numbers","REDACTED DATA","EE LTD (AIRTIME PAYMENTS)","2382161","http://opencorporates.com/companies/gb/2382161","771592016"
"London Borough of Redbridge","http://opendatacommunities.org/doc/london-borough-council/redbridge","1BOTHEROPI&E","Other Operating Income & Expenditure","1CTRADSURDEF","Trading Account Surpluses & Deficits","REV","Revenue","R9252","IT Services","04-SUPPLIES","Supplies And Services","04F","Communications and computing","5858","Phones","3464695","201712",03/03/2017 00:00:00,12,"51500","Mobile Phones - Personal Numbers","REDACTED DATA","EE LTD (AIRTIME PAYMENTS)","2382161","http://opencorporates.com/companies/gb/2382161","771592016"
"London Borough of Redbridge","http://opendatacommunities.org/doc/london-borough-council/redbridge","1BOTHEROPI&E","Other Operating Income & Expenditure","1CTRADSURDEF","Trading Account Surpluses & Deficits","REV","Revenue","R9252","IT Services","04-SUPPLIES","Supplies And Services","04F","Communications and computing","5858","Phones","3464695","201712",03/03/2017 00:00:00,15.5,"51500","Mobile Phones - Personal Numbers","REDACTED DATA","EE LTD (AIRTIME PAYMENTS)","2382161","http://opencorporates.com/companies/gb/2382161","771592016"
"London Borough of Redbridge","http://opendatacommunities.org/doc/london-borough-council/redbridge","1BOTHEROPI&E","Other Operating Income & Expenditure","1CTRADSURDEF","Trading Account Surpluses & Deficits","REV","Revenue","R9252","IT Services","04-SUPPLIES","Supplies And Services","04F","Communications and computing","5858","Phones","3464695","201712",03/03/2017 00:00:00,15,"51500","Mobile Phones - Personal Numbers","REDACTED DATA","EE LTD (AIRTIME PAYMENTS)","2382161","http://opencorporates.com/companies/gb/2382161","771592016"
"London Borough of Redbridge","http://opendatacommunities.org/doc/london-borough-council/redbridge","1BOTHEROPI&E","Other Operating Income & Expenditure","1CTRADSURDEF","Trading Account Surpluses & Deficits","REV","Revenue","R9352","Legal Supplies & Services","04-SUPPLIES","Supplies And Services","04F","Communications and computing","5858","Phones","3464695","201712",03/03/2017 00:00:00,12.5,"51500","Mobile Phones - Personal Numbers","REDACTED DATA","EE LTD (AIRTIME PAYMENTS)","2382161","http://opencorporates.com/companies/gb/2382161","771592016"
"London Borough of Redbridge","http://opendatacommunities.org/doc/london-borough-council/redbridge","1BOTHEROPI&E","Other Operating Income & Expenditure","1CTRADSURDEF","Trading Account Surpluses & Deficits","REV","Revenue","R9460","Human Resources misc","04-SUPPLIES","Supplies And Services","04F","Communications and computing","5858","Phones","3464695","201712",03/03/2017 00:00:00,12.5,"51500","Mobile Phones - Personal Numbers","REDACTED DATA","EE LTD (AIRTIME PAYMENTS)","2382161","http://opencorporates.com/companies/gb/2382161","771592016"
"London Borough of Redbridge","http://opendatacommunities.org/doc/london-borough-council/redbridge","1BOTHEROPI&E","Other Operating Income & Expenditure","1CTRADSURDEF","Trading Account Surpluses & Deficits","REV","Revenue","R9460","Human Resources misc","04-SUPPLIES","Supplies And Services","04F","Communications and computing","5858","Phones","3464695","201712",03/03/2017 00:00:00,12.5,"51500","Mobile Phones - Personal Numbers","REDACTED DATA","EE LTD (AIRTIME PAYMENTS)","2382161","http://opencorporates.com/companies/gb/2382161","771592016"
"London Borough of Redbridge","http://opendatacommunities.org/doc/london-borough-council/redbridge","2BBUILDCONT","Building Control","","","REV","Revenue","R6503","Building Control Chargeable Trading Account","04-SUPPLIES","Supplies And Services","04F","Communications and computing","5858","Phones","3464695","201712",03/03/2017 00:00:00,12,"51500","Mobile Phones - Personal Numbers","REDACTED DATA","EE LTD (AIRTIME PAYMENTS)","2382161","http://opencorporates.com/companies/gb/2382161","771592016"
"London Borough of Redbridge","http://opendatacommunities.org/doc/london-borough-council/redbridge","2BBUILDCONT","Building Control","","","REV","Revenue","R6503","Building Control Chargeable Trading Account","04-SUPPLIES","Supplies And Services","04F","Communications and computing","5858","Phones","3464695","201712",03/03/2017 00:00:00,12,"51500","Mobile Phones - Personal Numbers","REDACTED DATA","EE LTD (AIRTIME PAYMENTS)","2382161","http://opencorporates.com/companies/gb/2382161","771592016"
"London Borough of Redbridge","http://opendatacommunities.org/doc/london-borough-council/redbridge","2BBUILDCONT","Building Control","","","REV","Revenue","R6503","Building Control Chargeable Trading Account","04-SUPPLIES","Supplies And Services","04F","Communications and computing","5858","Phones","3464695","201712",03/03/2017 00:00:00,12,"51500","Mobile Phones - Personal Numbers","REDACTED DATA","EE LTD (AIRTIME PAYMENTS)","2382161","http://opencorporates.com/companies/gb/2382161","771592016"
"London Borough of Redbridge","http://opendatacommunities.org/doc/london-borough-council/redbridge","2BBUILDCONT","Building Control","","","REV","Revenue","R6503","Building Control Chargeable Trading Account","04-SUPPLIES","Supplies And Services","04F","Communications and computing","5858","Phones","3464695","201712",03/03/2017 00:00:00,62,"51500","Mobile Phones - Personal Numbers","REDACTED DATA","EE LTD (AIRTIME PAYMENTS)","2382161","http://opencorporates.com/companies/gb/2382161","771592016"
"London Borough of Redbridge","http://opendatacommunities.org/doc/london-borough-council/redbridge","2BBUILDCONT","Building Control","","","REV","Revenue","R6503","Building Control Chargeable Trading Account","04-SUPPLIES","Supplies And Services","04F","Communications and computing","5858","Phones","3464695","201712",03/03/2017 00:00:00,12,"51500","Mobile Phones - Personal Numbers","REDACTED DATA","EE LTD (AIRTIME PAYMENTS)","2382161","http://opencorporates.com/companies/gb/2382161","771592016"
"London Borough of Redbridge","http://opendatacommunities.org/doc/london-borough-council/redbridge","2BBUILDCONT","Building Control","","","REV","Revenue","R6503","Building Control Chargeable Trading Account","04-SUPPLIES","Supplies And Services","04F","Communications and computing","5858","Phones","3464695","201712",03/03/2017 00:00:00,12,"51500","Mobile Phones - Personal Numbers","REDACTED DATA","EE LTD (AIRTIME PAYMENTS)","2382161","http://opencorporates.com/companies/gb/2382161","771592016"
"London Borough of Redbridge","http://opendatacommunities.org/doc/london-borough-council/redbridge","2BBUILDCONT","Building Control","","","REV","Revenue","R6503","Building Control Chargeable Trading Account","04-SUPPLIES","Supplies And Services","04F","Communications and computing","5858","Phones","3464695","201712",03/03/2017 00:00:00,12,"51500","Mobile Phones - Personal Numbers","REDACTED DATA","EE LTD (AIRTIME PAYMENTS)","2382161","http://opencorporates.com/companies/gb/2382161","771592016"
"London Borough of Redbridge","http://opendatacommunities.org/doc/london-borough-council/redbridge","2BBUILDCONT","Building Control","","","REV","Revenue","R6503","Building Control Chargeable Trading Account","04-SUPPLIES","Supplies And Services","04F","Communications and computing","5858","Phones","3464695","201712",03/03/2017 00:00:00,12,"51500","Mobile Phones - Personal Numbers","REDACTED DATA","EE LTD (AIRTIME PAYMENTS)","2382161","http://opencorporates.com/companies/gb/2382161","771592016"
"London Borough of Redbridge","http://opendatacommunities.org/doc/london-borough-council/redbridge","2BBUILDCONT","Building Control","","","REV","Revenue","R6503","Building Control Chargeable Trading Account","04-SUPPLIES","Supplies And Services","04F","Communications and computing","5858","Phones","3464695","201712",03/03/2017 00:00:00,12,"51500","Mobile Phones - Personal Numbers","REDACTED DATA","EE LTD (AIRTIME PAYMENTS)","2382161","http://opencorporates.com/companies/gb/2382161","771592016"
"London Borough of Redbridge","http://opendatacommunities.org/doc/london-borough-council/redbridge","2BBUILDCONT","Building Control","","","REV","Revenue","R6503","Building Control Chargeable Trading Account","04-SUPPLIES","Supplies And Services","04F","Communications and computing","5858","Phones","3464695","201712",03/03/2017 00:00:00,12,"51500","Mobile Phones - Personal Numbers","REDACTED DATA","EE LTD (AIRTIME PAYMENTS)","2382161","http://opencorporates.com/companies/gb/2382161","771592016"
"London Borough of Redbridge","http://opendatacommunities.org/doc/london-borough-council/redbridge","2BBUSISUP","Business Support","","","REV","Revenue","R6534","P & BC General Services","04-SUPPLIES","Supplies And Services","04F","Communications and computing","5858","Phones","3464695","201712",03/03/2017 00:00:00,12,"51500","Mobile Phones - Personal Numbers","REDACTED DATA","EE LTD (AIRTIME PAYMENTS)","2382161","http://opencorporates.com/companies/gb/2382161","771592016"
"London Borough of Redbridge","http://opendatacommunities.org/doc/london-borough-council/redbridge","2BDEVCON","Development Control","","","REV","Revenue","R6510","Development Management","04-SUPPLIES","Supplies And Services","04F","Communications and computing","5858","Phones","3464695","201712",03/03/2017 00:00:00,12,"51500","Mobile Phones - Personal Numbers","REDACTED DATA","EE LTD (AIRTIME PAYMENTS)","2382161","http://opencorporates.com/companies/gb/2382161","771592016"
"London Borough of Redbridge","http://opendatacommunities.org/doc/london-borough-council/redbridge","2BDEVCON","Development Control","","","REV","Revenue","R6510","Development Management","04-SUPPLIES","Supplies And Services","04F","Communications and computing","5858","Phones","3464695","201712",03/03/2017 00:00:00,12.5,"51500","Mobile Phones - Personal Numbers","REDACTED DATA","EE LTD (AIRTIME PAYMENTS)","2382161","http://opencorporates.com/companies/gb/2382161","771592016"
"London Borough of Redbridge","http://opendatacommunities.org/doc/london-borough-council/redbridge","2BDEVCON","Development Control","","","REV","Revenue","R6510","Development Management","04-SUPPLIES","Supplies And Services","04F","Communications and computing","5858","Phones","3464695","201712",03/03/2017 00:00:00,12,"51500","Mobile Phones - Personal Numbers","REDACTED DATA","EE LTD (AIRTIME PAYMENTS)","2382161","http://opencorporates.com/companies/gb/2382161","771592016"
"London Borough of Redbridge","http://opendatacommunities.org/doc/london-borough-council/redbridge","2BDEVCON","Development Control","","","REV","Revenue","R6510","Development Management","04-SUPPLIES","Supplies And Services","04F","Communications and computing","5858","Phones","3464695","201712",03/03/2017 00:00:00,12,"51500","Mobile Phones - Personal Numbers","REDACTED DATA","EE LTD (AIRTIME PAYMENTS)","2382161","http://opencorporates.com/companies/gb/2382161","771592016"
"London Borough of Redbridge","http://opendatacommunities.org/doc/london-borough-council/redbridge","2BDEVCON","Development Control","","","REV","Revenue","R6510","Development Management","04-SUPPLIES","Supplies And Services","04F","Communications and computing","5858","Phones","3464695","201712",03/03/2017 00:00:00,12,"51500","Mobile Phones - Personal Numbers","REDACTED DATA","EE LTD (AIRTIME PAYMENTS)","2382161","http://opencorporates.com/companies/gb/2382161","771592016"
"London Borough of Redbridge","http://opendatacommunities.org/doc/london-borough-council/redbridge","2BDEVCON","Development Control","","","REV","Revenue","R6510","Development Management","04-SUPPLIES","Supplies And Services","04F","Communications and computing","5858","Phones","3464695","201712",03/03/2017 00:00:00,12,"51500","Mobile Phones - Personal Numbers","REDACTED DATA","EE LTD (AIRTIME PAYMENTS)","2382161","http://opencorporates.com/companies/gb/2382161","771592016"
"London Borough of Redbridge","http://opendatacommunities.org/doc/london-borough-council/redbridge","2BDEVCON","Development Control","","","REV","Revenue","R6510","Development Management","04-SUPPLIES","Supplies And Services","04F","Communications and computing","5858","Phones","3464695","201712",03/03/2017 00:00:00,15.5,"51500","Mobile Phones - Personal Numbers","REDACTED DATA","EE LTD (AIRTIME PAYMENTS)","2382161","http://opencorporates.com/companies/gb/2382161","771592016"
"London Borough of Redbridge","http://opendatacommunities.org/doc/london-borough-council/redbridge","2BDEVCON","Development Control","","","REV","Revenue","R6510","Development Management","04-SUPPLIES","Supplies And Services","04F","Communications and computing","5858","Phones","3464695","201712",03/03/2017 00:00:00,12,"51500","Mobile Phones - Personal Numbers","REDACTED DATA","EE LTD (AIRTIME PAYMENTS)","2382161","http://opencorporates.com/companies/gb/2382161","771592016"
"London Borough of Redbridge","http://opendatacommunities.org/doc/london-borough-council/redbridge","2BDEVCON","Development Control","","","REV","Revenue","R6510","Development Management","04-SUPPLIES","Supplies And Services","04F","Communications and computing","5858","Phones","3464695","201712",03/03/2017 00:00:00,12,"51500","Mobile Phones - Personal Numbers","REDACTED DATA","EE LTD (AIRTIME PAYMENTS)","2382161","http://opencorporates.com/companies/gb/2382161","771592016"
"London Borough of Redbridge","http://opendatacommunities.org/doc/london-borough-council/redbridge","2BDEVCON","Development Control","","","REV","Revenue","R6510","Development Management","04-SUPPLIES","Supplies And Services","04F","Communications and computing","5858","Phones","3464695","201712",03/03/2017 00:00:00,62,"51500","Mobile Phones - Personal Numbers","REDACTED DATA","EE LTD (AIRTIME PAYMENTS)","2382161","http://opencorporates.com/companies/gb/2382161","771592016"
"London Borough of Redbridge","http://opendatacommunities.org/doc/london-borough-council/redbridge","2BDEVCON","Development Control","","","REV","Revenue","R6510","Development Management","04-SUPPLIES","Supplies And Services","04F","Communications and computing","5858","Phones","3464695","201712",03/03/2017 00:00:00,12,"51500","Mobile Phones - Personal Numbers","REDACTED DATA","EE LTD (AIRTIME PAYMENTS)","2382161","http://opencorporates.com/companies/gb/2382161","771592016"
"London Borough of Redbridge","http://opendatacommunities.org/doc/london-borough-council/redbridge","2BDEVCON","Development Control","","","REV","Revenue","R6510","Development Management","04-SUPPLIES","Supplies And Services","04F","Communications and computing","5858","Phones","3464695","201712",03/03/2017 00:00:00,12,"51500","Mobile Phones - Personal Numbers","REDACTED DATA","EE LTD (AIRTIME PAYMENTS)","2382161","http://opencorporates.com/companies/gb/2382161","771592016"
